Directorate,Department,Expenditure Type,Ref.Doc.1,Vendor Name,Expenditure Amount (exc VAT),Payment Date
Delivery Units,Adults and Health,Ttl IT & Comms,1005995301,HAS TECHNOLOGY LTD,"9,067.50",29/12/2020
Delivery Units,Adults and Health,Ttl IT & Comms,1005996101,HAS TECHNOLOGY LTD,"9,067.50",29/12/2020
Delivery Units,Adults and Health,Voluntary Associations - Third,0050021732,BARNET MENCAP,"11,142.65",21/12/2020
Delivery Units,Adults and Health,Other Services,1005321302,RECRUITMENT TEAM NINE LIMITED,270.00,09/12/2020
Delivery Units,Adults and Health,Other Services,1005322102,RECRUITMENT TEAM NINE LIMITED,270.00,09/12/2020
Delivery Units,Adults and Health,Other Services,1005324402,RECRUITMENT TEAM NINE LIMITED,270.00,09/12/2020
Delivery Units,Adults and Health,Other Services,1005454202,RECRUITMENT TEAM NINE LIMITED,270.00,09/12/2020
Delivery Units,Adults and Health,Other Services,1005450002,RECRUITMENT TEAM NINE LIMITED,270.00,10/12/2020
Delivery Units,Adults and Health,Other Services,1005546002,RECRUITMENT TEAM NINE LIMITED,270.00,10/12/2020
Delivery Units,Adults and Health,Other Services,1005550502,RECRUITMENT TEAM NINE LIMITED,270.00,10/12/2020
Delivery Units,Adults and Health,Other Services,1005597101,RECRUITMENT TEAM NINE LIMITED,270.00,10/12/2020
Delivery Units,Adults and Health,Other Services,1005724201,RECRUITMENT TEAM NINE LIMITED,270.00,15/12/2020
Delivery Units,Adults and Health,Other Services,1005724701,RECRUITMENT TEAM NINE LIMITED,270.00,15/12/2020
Delivery Units,Adults and Health,Other Services,1005879501,RECRUITMENT TEAM NINE LIMITED,270.00,21/12/2020
Delivery Units,Adults and Health,Other Services,1005880001,RECRUITMENT TEAM NINE LIMITED,270.00,21/12/2020
Delivery Units,Adults and Health,Other Services,1005880701,RECRUITMENT TEAM NINE LIMITED,270.00,21/12/2020
Delivery Units,Adults and Health,Other Services,1006009601,RECRUITMENT TEAM NINE LIMITED,270.00,30/12/2020
Delivery Units,Adults and Health,Other Services,1005910901,BARNET HOMES ASSIST,627.38,22/12/2020
Delivery Units,Adults and Health,Equipment and Materials Purcha,1005432902,MILLBROOK HEALTHCARE GROUP,"174,506.46",04/12/2020
Delivery Units,Adults and Health,Equipment and Materials Purcha,1005877701,MILLBROOK HEALTHCARE GROUP,"36,991.12",21/12/2020
Delivery Units,Adults and Health,Equipment and Materials Purcha,1005919601,MILLBROOK HEALTHCARE GROUP,"36,991.12",22/12/2020
Delivery Units,Adults and Health,Equipment and Materials Purcha,1005920201,MILLBROOK HEALTHCARE GROUP,"179,153.31",22/12/2020
Delivery Units,Adults and Health,Other Services,1005598301,DEPRESSION ALLIANCE (BARNET),454.00,10/12/2020
Delivery Units,Adults and Health,Other Transfer Payments to Soc,1005449302,AGE UK,"37,500.00",11/12/2020
Delivery Units,Adults and Health,Other Services,1005478102,BARNET MENCAP,"28,583.33",11/12/2020
Delivery Units,Adults and Health,Voluntary Associations - Third,1005513502,MIDDLESEX ASSOCIATION  FOR THE BLIN,"2,268.25",11/12/2020
Delivery Units,Adults and Health,Other Services,1005702502,POHWER,"4,303.00",14/12/2020
Delivery Units,Adults and Health,Other Transfer Payments to Soc,1005659702,INCLUSION BARNET,"10,123.23",14/12/2020
Delivery Units,Adults and Health,Other Transfer Payments to Soc,1005759102,ALZHEIMER'S SOCIETY (BARNET),"18,166.67",17/12/2020
Delivery Units,Adults and Health,Health authorities - Third Par,1005929001,THE BARNETGROUP LIMITED,"14,166.67",23/12/2020
Delivery Units,Adults and Health,Health authorities - Third Par,1005929501,THE BARNETGROUP LIMITED,"16,666.67",23/12/2020
Delivery Units,Adults and Health,Other Establishments - Third P,1005153002,HERTFORDSHIRE PARTNERSHIP,"116,798.69",15/12/2020
Delivery Units,Adults and Health,Other Establishments - Third P,1005325602,HERTFORDSHIRE PARTNERSHIP,"116,798.69",15/12/2020
Delivery Units,Adults and Health,Other Establishments - Third P,1005325802,HERTFORDSHIRE PARTNERSHIP,"116,798.69",15/12/2020
Delivery Units,Adults and Health,Other Establishments - Third P,1005326802,HERTFORDSHIRE PARTNERSHIP,"116,798.69",15/12/2020
Delivery Units,Adults and Health,Other Establishments - Third P,1005328402,HERTFORDSHIRE PARTNERSHIP,"116,798.69",15/12/2020
Delivery Units,Adults and Health,Other Establishments - Third P,1005325202,HERTFORDSHIRE PARTNERSHIP,"102,593.17",22/12/2020
Delivery Units,Adults and Health,Other Establishments - Third P,1005326902,HERTFORDSHIRE PARTNERSHIP,"105,332.47",22/12/2020
Delivery Units,Adults and Health,Stationery,1005702202,STAPLES UK LTD,34.11,18/12/2020
Delivery Units,Adults and Health,Other Services,1004970001,D.A. LANGUAGES LTD,27.56,01/12/2020
Delivery Units,Adults and Health,Other Services,1004969202,D.A. LANGUAGES LTD,90.48,02/12/2020
Delivery Units,Adults and Health,Other Services,1005546102,D.A. LANGUAGES LTD,69.68,10/12/2020
Delivery Units,Adults and Health,Translation Exp / Interpret,1004975901,D.A. LANGUAGES LTD,68.12,01/12/2020
Delivery Units,Adults and Health,Other Services,1005480602,GOOD IMPRESSIONS (LONDON) LIMITED,120.00,07/12/2020
Delivery Units,Adults and Health,Translation Exp / Interpret,1005546401,D.A. LANGUAGES LTD,96.20,08/12/2020
Delivery Units,Adults and Health,Translation Exp / Interpret,1005547001,D.A. LANGUAGES LTD,126.00,08/12/2020
Delivery Units,Adults and Health,Other Services,1005577501,VACANCY FILLER LIMITED,650.00,08/12/2020
Delivery Units,Adults and Health,Translation Exp / Interpret,1005738901,D.A. LANGUAGES LTD,108.00,15/12/2020
Delivery Units,Adults and Health,Other Services,1005931902,AMOTIVATE LTD,"5,280.00",24/12/2020
Delivery Units,Adults and Health,Other Services,1005933102,AMOTIVATE LTD,"1,260.00",24/12/2020
Delivery Units,Adults and Health,Translation Exp / Interpret,1005979901,D.A. LANGUAGES LTD,28.00,24/12/2020
Delivery Units,Adults and Health,Translation Exp / Interpret,1005980601,D.A. LANGUAGES LTD,40.50,24/12/2020
Delivery Units,Adults and Health,Translation Exp / Interpret,1005983801,D.A. LANGUAGES LTD,33.75,24/12/2020
Delivery Units,Adults and Health,Translation Exp / Interpret,1004971601,D.A. LANGUAGES LTD,67.08,01/12/2020
Delivery Units,Adults and Health,Translation Exp / Interpret,1005546502,D.A. LANGUAGES LTD,89.96,10/12/2020
Delivery Units,Adults and Health,Translation Exp / Interpret,1004908201,D.A. LANGUAGES LTD,27.00,11/12/2020
Delivery Units,Adults and Health,Cleaning and domestic material,1005658401,NORSE COMMERCIAL SERVICES LTD,635.76,11/12/2020
Delivery Units,Adults and Health,Cleaning and domestic material,1005799901,NORSE COMMERCIAL SERVICES LTD,635.76,17/12/2020
Delivery Units,Adults and Health,Cleaning and domestic material,1005800601,BPR GROUP EUROPE LTD,28.00,17/12/2020
Delivery Units,Adults and Health,Other Services,1005576501,AGUA FABRICS LTD,396.00,08/12/2020
Delivery Units,Adults and Health,Other Services,1005762601,BARNET SENIOR'S ASSEMBLY,"1,250.00",16/12/2020
Delivery Units,Adults and Health,Other Services,1005542901,D.A. LANGUAGES LTD,16.64,08/12/2020
Delivery Units,Adults and Health,Translation Exp / Interpret,1004968901,D.A. LANGUAGES LTD,89.96,01/12/2020
Delivery Units,Adults and Health,Translation Exp / Interpret,1004972801,D.A. LANGUAGES LTD,79.04,01/12/2020
Delivery Units,Adults and Health,Translation Exp / Interpret,1004981801,D.A. LANGUAGES LTD,98.00,01/12/2020
Delivery Units,Adults and Health,Translation Exp / Interpret,1005004401,D.A. LANGUAGES LTD,98.00,01/12/2020
Delivery Units,Adults and Health,Translation Exp / Interpret,1005010201,D.A. LANGUAGES LTD,98.00,01/12/2020
Delivery Units,Adults and Health,Translation Exp / Interpret,1005450801,D.A. LANGUAGES LTD,54.00,02/12/2020
Delivery Units,Adults and Health,Translation Exp / Interpret,1005449801,D.A. LANGUAGES LTD,40.50,03/12/2020
Delivery Units,Adults and Health,Translation Exp / Interpret,1005480701,D.A. LANGUAGES LTD,22.00,07/12/2020
Delivery Units,Adults and Health,Translation Exp / Interpret,1005549201,D.A. LANGUAGES LTD,98.00,08/12/2020
Delivery Units,Adults and Health,Translation Exp / Interpret,1005543402,D.A. LANGUAGES LTD,14.56,10/12/2020
Delivery Units,Adults and Health,Translation Exp / Interpret,1005547302,D.A. LANGUAGES LTD,104.00,10/12/2020
Delivery Units,Adults and Health,Translation Exp / Interpret,1005547502,D.A. LANGUAGES LTD,13.00,10/12/2020
Delivery Units,Adults and Health,Translation Exp / Interpret,1005551002,D.A. LANGUAGES LTD,86.32,10/12/2020
Delivery Units,Adults and Health,Translation Exp / Interpret,1005571201,D.A. LANGUAGES LTD,98.00,11/12/2020
Delivery Units,Adults and Health,Translation Exp / Interpret,1005597701,D.A. LANGUAGES LTD,33.00,11/12/2020
Delivery Units,Adults and Health,Translation Exp / Interpret,1005478902,D.A. LANGUAGES LTD,40.50,14/12/2020
Delivery Units,Adults and Health,Translation Exp / Interpret,1005765501,D.A. LANGUAGES LTD,216.00,16/12/2020
Delivery Units,Adults and Health,Translation Exp / Interpret,1005979401,D.A. LANGUAGES LTD,33.00,24/12/2020
Delivery Units,Adults and Health,Translation Exp / Interpret,1005979801,D.A. LANGUAGES LTD,54.00,24/12/2020
Delivery Units,Adults and Health,Translation Exp / Interpret,1004980301,D.A. LANGUAGES LTD,2.60,01/12/2020
Delivery Units,Adults and Health,Stationery,1003662802,STAPLES UK LTD,76.38,04/12/2020
Delivery Units,Adults and Health,Other Services,1005512001,D.A. LANGUAGES LTD,108.00,04/12/2020
Delivery Units,Adults and Health,Translation Exp / Interpret,1004907601,D.A. LANGUAGES LTD,23.40,11/12/2020
Delivery Units,Adults and Health,Other Services,1005014502,BACK CARE SOLUTIONS LIMITED,225.00,24/12/2020
Delivery Units,Adults and Health,Other Services,1005248002,BACK CARE SOLUTIONS LIMITED,225.00,24/12/2020
Delivery Units,Adults and Health,Other Services,1005706401,OPUS PHARMACY SERVICES LTD,795.00,14/12/2020
Delivery Units,Adults and Health,Other Transfer Payments to Soc,1004930802,AKRAS SOLUTIONS LIMITED,"5,540.80",01/12/2020
Delivery Units,Adults and Health,Other Transfer Payments to Soc,1005439702,EMPOWERING SOCIAL WORK LTD,"7,350.00",01/12/2020
Delivery Units,Adults and Health,Other Transfer Payments to Soc,1005248802,AMIN ENTERPRISE LTD,190.33,04/12/2020
Delivery Units,Adults and Health,Other Transfer Payments to Soc,1005479001,ACTION FIRST ASSESSMENT LTD,"8,375.00",04/12/2020
Delivery Units,Adults and Health,Other Transfer Payments to Soc,1005483901,EDUHEZ LTD,"3,890.00",04/12/2020
Delivery Units,Adults and Health,Other Transfer Payments to Soc,1005487602,AISA MEDICAL LTD,"3,294.03",14/12/2020
Delivery Units,Adults and Health,Translation Exp / Interpret,1005740601,D.A. LANGUAGES LTD,60.00,15/12/2020
Delivery Units,Adults and Health,Other Transfer Payments to Soc,1005759301,ACTION FIRST ASSESSMENT LTD,"1,172.50",16/12/2020
Delivery Units,Adults and Health,Other Transfer Payments to Soc,1005869701,ASHPRI LIMITED,"11,315.00",18/12/2020
Delivery Units,Adults and Health,Other Transfer Payments to Soc,1005801802,FAVORE DIDIO LTD,"2,240.00",21/12/2020
Delivery Units,Adults and Health,Other Services,1005198501,RECRUITMENT TEAM NINE LIMITED,270.00,22/12/2020
Delivery Units,Adults and Health,Other Services,1005199401,RECRUITMENT TEAM NINE LIMITED,270.00,22/12/2020
Delivery Units,Adults and Health,Other Services,1005739402,CAREBUZ,"2,750.00",31/12/2020
Delivery Units,Adults and Health,Other Services,1006032502,AMBROSIAL SERVICES LIMITED,"2,750.00",31/12/2020
Delivery Units,Adults and Health,Other Agencies - Third Party P,0090309744,AGUDAS ISRAEL HOUSING ASSCTN LTD,"2,648.57",03/12/2020
Delivery Units,Adults and Health,Other Agencies - Third Party P,0090309494,BARCHESTER HEALTHCARE HOMES LTD (BROOK,"4,071.43",03/12/2020
Delivery Units,Adults and Health,Other Agencies - Third Party P,0090309495,HC-ONE OVAL LTD,"2,368.62",03/12/2020
Delivery Units,Adults and Health,Other Agencies - Third Party P,0090309496,HC-ONE OVAL LTD,"2,292.21",03/12/2020
Delivery Units,Adults and Health,Other Agencies - Third Party P,0090309497,HC-ONE OVAL LTD,"2,368.62",03/12/2020
Delivery Units,Adults and Health,Other Agencies - Third Party P,0090309506,ABBEY RAVENSCROFT PARK NURSING HOME,"3,214.29",03/12/2020
Delivery Units,Adults and Health,Other Agencies - Third Party P,0090309508,ABBEY RAVENSCROFT PARK NURSING HOME,"2,698.37",03/12/2020
Delivery Units,Adults and Health,Other Agencies - Third Party P,0090309509,ABBEY RAVENSCROFT PARK NURSING HOME,"3,214.29",03/12/2020
Delivery Units,Adults and Health,Other Agencies - Third Party P,0090309510,ABBEY RAVENSCROFT PARK NURSING HOME,"2,698.37",03/12/2020
Delivery Units,Adults and Health,Other Agencies - Third Party P,0090309511,ABBEY RAVENSCROFT PARK NURSING HOME,"3,214.29",03/12/2020
Delivery Units,Adults and Health,Other Agencies - Third Party P,0090309512,ABBEY RAVENSCROFT PARK NURSING HOME,"3,214.29",03/12/2020
Delivery Units,Adults and Health,Other Agencies - Third Party P,0090309513,ABBEY RAVENSCROFT PARK NURSING HOME,"4,834.29",03/12/2020
Delivery Units,Adults and Health,Other Agencies - Third Party P,0090309516,ABBEY RAVENSCROFT PARK NURSING HOME,"3,214.29",03/12/2020
Delivery Units,Adults and Health,Other Agencies - Third Party P,0090309518,ABBEY RAVENSCROFT PARK NURSING HOME,"3,642.89",03/12/2020
Delivery Units,Adults and Health,Other Agencies - Third Party P,0090309519,ABBEY RAVENSCROFT PARK NURSING HOME,"3,642.86",03/12/2020
Delivery Units,Adults and Health,Other Agencies - Third Party P,0090309520,ABBEY RAVENSCROFT PARK NURSING HOME,"3,642.86",03/12/2020
Delivery Units,Adults and Health,Other Agencies - Third Party P,0090309742,SANCTUARY CARE LTD,"2,459.10",03/12/2020
Delivery Units,Adults and Health,Other Agencies - Third Party P,0090310122,NEW CENTURY CARE (FINCHLEY),"3,494.12",04/12/2020
Delivery Units,Adults and Health,Other Agencies - Third Party P,0090310129,NEW CENTURY CARE (FINCHLEY),"4,264.32",04/12/2020
Delivery Units,Adults and Health,Other Agencies - Third Party P,0090310131,NEW CENTURY CARE (FINCHLEY),"-3,825.15",04/12/2020
Delivery Units,Adults and Health,Other Agencies - Third Party P,0090310136,NEW CENTURY CARE (FINCHLEY),"3,232.00",04/12/2020
Delivery Units,Adults and Health,Other Agencies - Third Party P,0090310140,NEW CENTURY CARE (FINCHLEY),"3,400.00",04/12/2020
Delivery Units,Adults and Health,Other Agencies - Third Party P,0090310146,NEW CENTURY CARE (FINCHLEY),"7,853.63",04/12/2020
Delivery Units,Adults and Health,Other Agencies - Third Party P,0090310408,CARETECH COMMUNITY SERVICES LTD,"4,815.09",04/12/2020
Delivery Units,Adults and Health,Other Agencies - Third Party P,0090311024,KARUNA MANOR,"4,071.43",04/12/2020
Delivery Units,Adults and Health,Other Agencies - Third Party P,0090311025,KARUNA MANOR,"4,250.74",04/12/2020
Delivery Units,Adults and Health,Other Agencies - Third Party P,0090311026,KARUNA MANOR,"2,297.14",04/12/2020
Delivery Units,Adults and Health,Other Agencies - Third Party P,0090311039,M D HOMES,"3,531.37",04/12/2020
Delivery Units,Adults and Health,Other Agencies - Third Party P,0090311040,M D HOMES,"3,063.00",04/12/2020
Delivery Units,Adults and Health,Other Agencies - Third Party P,0090312473,SUNRISE SENIOR LIVING,"6,176.40",07/12/2020
Delivery Units,Adults and Health,Other Agencies - Third Party P,0090312462,GCH NORTH LONDON LTD,"1,392.86",07/12/2020
Delivery Units,Adults and Health,Other Agencies - Third Party P,0090312463,GCH NORTH LONDON LTD,"3,000.00",07/12/2020
Delivery Units,Adults and Health,Other Agencies - Third Party P,0090312476,WESTMINSTER HEALTH CARE LTD,"4,861.88",07/12/2020
Delivery Units,Adults and Health,Other Agencies - Third Party P,0090312477,WESTMINSTER HEALTH CARE LTD,"4,860.00",07/12/2020
Delivery Units,Adults and Health,Other Agencies - Third Party P,0090312478,WESTMINSTER HEALTH CARE LTD,"5,227.24",07/12/2020
Delivery Units,Adults and Health,Other Agencies - Third Party P,0090313054,ST VINCENTS NURSING HOME,"2,077.73",08/12/2020
Delivery Units,Adults and Health,Other Agencies - Third Party P,0090313055,ST VINCENTS NURSING HOME,"7,474.28",08/12/2020
Delivery Units,Adults and Health,Other Agencies - Third Party P,0090313430,BUPA NURSING HOMES LTD - ARKLEY,"2,660.00",11/12/2020
Delivery Units,Adults and Health,Other Agencies - Third Party P,0090313431,BUPA NURSING HOMES LTD - ARKLEY,"2,660.00",11/12/2020
Delivery Units,Adults and Health,Other Agencies - Third Party P,0090313432,BUPA NURSING HOMES LTD - ARKLEY,"2,660.00",11/12/2020
Delivery Units,Adults and Health,Other Agencies - Third Party P,0090313434,BUPA NURSING HOMES LTD - ARKLEY,"2,660.00",11/12/2020
Delivery Units,Adults and Health,Other Agencies - Third Party P,0090313435,BUPA NURSING HOMES LTD - ARKLEY,"2,660.00",11/12/2020
Delivery Units,Adults and Health,Other Agencies - Third Party P,0090313436,BUPA NURSING HOMES LTD - ARKLEY,"2,660.00",11/12/2020
Delivery Units,Adults and Health,Other Agencies - Third Party P,0090313437,BUPA NURSING HOMES LTD - ARKLEY,"1,900.00",11/12/2020
Delivery Units,Adults and Health,Other Agencies - Third Party P,0090313438,BUPA NURSING HOMES LTD - ARKLEY,"1,900.00",11/12/2020
Delivery Units,Adults and Health,Other Agencies - Third Party P,0090313439,BUPA NURSING HOMES LTD - ARKLEY,"1,900.00",11/12/2020
Delivery Units,Adults and Health,Other Agencies - Third Party P,0090313440,BUPA NURSING HOMES LTD - ARKLEY,"1,900.00",11/12/2020
Delivery Units,Adults and Health,Other Agencies - Third Party P,0090313442,BUPA NURSING HOMES LTD - ARKLEY,"1,900.00",11/12/2020
Delivery Units,Adults and Health,Other Agencies - Third Party P,0090313443,BUPA NURSING HOMES LTD - ARKLEY,"1,900.00",11/12/2020
Delivery Units,Adults and Health,Other Agencies - Third Party P,0090313444,BUPA CARE HOMES,"2,660.00",11/12/2020
Delivery Units,Adults and Health,Other Agencies - Third Party P,0090313446,BUPA CARE HOMES,"2,660.00",11/12/2020
Delivery Units,Adults and Health,Other Agencies - Third Party P,0090313447,BUPA CARE HOMES,"2,660.00",11/12/2020
Delivery Units,Adults and Health,Other Agencies - Third Party P,0090313448,BUPA CARE HOMES,"2,660.00",11/12/2020
Delivery Units,Adults and Health,Other Agencies - Third Party P,0090313449,BUPA CARE HOMES,"5,320.00",11/12/2020
Delivery Units,Adults and Health,Other Agencies - Third Party P,0090313450,BUPA CARE HOMES,"2,660.00",11/12/2020
Delivery Units,Adults and Health,Other Agencies - Third Party P,0090313451,BUPA CARE HOMES,"2,660.00",11/12/2020
Delivery Units,Adults and Health,Other Agencies - Third Party P,0090313452,BUPA CARE HOMES,"2,660.00",11/12/2020
Delivery Units,Adults and Health,Other Agencies - Third Party P,0090313453,BUPA CARE HOMES,"1,900.00",11/12/2020
Delivery Units,Adults and Health,Other Agencies - Third Party P,0090313455,BUPA CARE HOMES,"1,900.00",11/12/2020
Delivery Units,Adults and Health,Other Agencies - Third Party P,0090313456,BUPA CARE HOMES,"1,900.00",11/12/2020
Delivery Units,Adults and Health,Other Agencies - Third Party P,0090313457,BUPA CARE HOMES,"1,900.00",11/12/2020
Delivery Units,Adults and Health,Other Agencies - Third Party P,0090313458,BUPA CARE HOMES,"1,900.00",11/12/2020
Delivery Units,Adults and Health,Other Agencies - Third Party P,0090313459,BUPA CARE HOMES,"1,900.00",11/12/2020
Delivery Units,Adults and Health,Other Agencies - Third Party P,0090313460,BUPA CARE HOMES,"1,900.00",11/12/2020
Delivery Units,Adults and Health,Other Agencies - Third Party P,0090313462,BUPA CARE HOMES,"1,900.00",11/12/2020
Delivery Units,Adults and Health,Other Agencies - Third Party P,0090313463,BUPA CARE HOMES,"2,660.00",11/12/2020
Delivery Units,Adults and Health,Other Agencies - Third Party P,0090313465,BUPA CARE HOMES,"2,660.00",11/12/2020
Delivery Units,Adults and Health,Other Agencies - Third Party P,0090313466,BUPA CARE HOMES,"2,660.00",11/12/2020
Delivery Units,Adults and Health,Other Agencies - Third Party P,0090313467,BUPA CARE HOMES,"2,660.00",11/12/2020
Delivery Units,Adults and Health,Other Agencies - Third Party P,0090313468,BUPA CARE HOMES,"2,660.00",11/12/2020
Delivery Units,Adults and Health,Other Agencies - Third Party P,0090313469,BUPA CARE HOMES,"2,660.00",11/12/2020
Delivery Units,Adults and Health,Other Agencies - Third Party P,0090313471,BUPA CARE HOMES,855.00,11/12/2020
Delivery Units,Adults and Health,Other Agencies - Third Party P,0090313472,BUPA CARE HOMES,"2,660.00",11/12/2020
Delivery Units,Adults and Health,Other Agencies - Third Party P,0090313642,CARLTON COURT (TLC GROUP),"3,375.00",14/12/2020
Delivery Units,Adults and Health,Other Agencies - Third Party P,0090313702,CARLTON COURT (TLC GROUP),"3,400.00",14/12/2020
Delivery Units,Adults and Health,Other Agencies - Third Party P,0090313771,CARLTON COURT (TLC GROUP),"-3,000.00",14/12/2020
Delivery Units,Adults and Health,Other Agencies - Third Party P,0090313975,CARLTON COURT (TLC GROUP),"5,400.00",14/12/2020
Delivery Units,Adults and Health,Other Agencies - Third Party P,0090314008,CARLTON COURT (TLC GROUP),"16,500.00",14/12/2020
Delivery Units,Adults and Health,Other Agencies - Third Party P,0090314092,AUTUMN GARDENS,"4,800.00",14/12/2020
Delivery Units,Adults and Health,Other Agencies - Third Party P,0090314097,AUTUMN GARDENS,"3,440.00",14/12/2020
Delivery Units,Adults and Health,Other Agencies - Third Party P,0090313614,ASHTON LODGE CARE CENTRE,9.31,14/12/2020
Delivery Units,Adults and Health,Other Agencies - Third Party P,0090313624,NEW CENTURY CARE (FINCHLEY),"3,232.00",14/12/2020
Delivery Units,Adults and Health,Other Agencies - Third Party P,0090313631,JEWISH CARE,"2,727.16",14/12/2020
Delivery Units,Adults and Health,Other Agencies - Third Party P,0090313632,ASHTON LODGE CARE CENTRE,"3,625.91",14/12/2020
Delivery Units,Adults and Health,Other Agencies - Third Party P,0090313633,JEWISH CARE,"2,478.24",14/12/2020
Delivery Units,Adults and Health,Other Agencies - Third Party P,0090313644,FOUR SEASONS HEALTH CARE,"2,577.04",14/12/2020
Delivery Units,Adults and Health,Other Agencies - Third Party P,0090313645,ASHTON LODGE CARE CENTRE,"3,382.49",14/12/2020
Delivery Units,Adults and Health,Other Agencies - Third Party P,0090313647,NEW CENTURY CARE (FINCHLEY),"3,400.00",14/12/2020
Delivery Units,Adults and Health,Other Agencies - Third Party P,0090313650,ASHTON LODGE CARE CENTRE,"4,660.67",14/12/2020
Delivery Units,Adults and Health,Other Agencies - Third Party P,0090313656,JEWISH CARE,"2,478.24",14/12/2020
Delivery Units,Adults and Health,Other Agencies - Third Party P,0090313658,APPLE TREE COURT CARE HOME,"3,800.00",14/12/2020
Delivery Units,Adults and Health,Other Agencies - Third Party P,0090313666,NEW CENTURY CARE (FINCHLEY),"3,494.12",14/12/2020
Delivery Units,Adults and Health,Other Agencies - Third Party P,0090313667,ASHTON LODGE CARE CENTRE,55.07,14/12/2020
Delivery Units,Adults and Health,Other Agencies - Third Party P,0090313669,LIFESTYLE CARE PLC,"2,716.88",14/12/2020
Delivery Units,Adults and Health,Other Agencies - Third Party P,0090313674,FOUR SEASONS HEALTH CARE,"2,636.80",14/12/2020
Delivery Units,Adults and Health,Other Agencies - Third Party P,0090313677,ASHTON LODGE CARE CENTRE,"4,040.31",14/12/2020
Delivery Units,Adults and Health,Other Agencies - Third Party P,0090313679,SAGE NURSING HOME,"2,358.24",14/12/2020
Delivery Units,Adults and Health,Other Agencies - Third Party P,0090313682,SONESTA NURSING HOME LTD.,"2,583.77",14/12/2020
Delivery Units,Adults and Health,Other Agencies - Third Party P,0090313684,BUPA CARE HOMES,"3,432.35",14/12/2020
Delivery Units,Adults and Health,Other Agencies - Third Party P,0090313686,SAGE NURSING HOME,"3,800.00",14/12/2020
Delivery Units,Adults and Health,Other Agencies - Third Party P,0090313687,ASHTON LODGE CARE CENTRE,"4,503.71",14/12/2020
Delivery Units,Adults and Health,Other Agencies - Third Party P,0090313690,ASHTON LODGE CARE CENTRE,16.97,14/12/2020
Delivery Units,Adults and Health,Other Agencies - Third Party P,0090313696,ASHTON LODGE CARE CENTRE,"3,125.99",14/12/2020
Delivery Units,Adults and Health,Other Agencies - Third Party P,0090313701,JEWISH CARE,"8,682.28",14/12/2020
Delivery Units,Adults and Health,Other Agencies - Third Party P,0090313706,ASHTON LODGE CARE CENTRE,"3,950.52",14/12/2020
Delivery Units,Adults and Health,Other Agencies - Third Party P,0090313709,APPLE TREE COURT CARE HOME,"3,600.00",14/12/2020
Delivery Units,Adults and Health,Other Agencies - Third Party P,0090313711,JEWISH CARE,"2,478.24",14/12/2020
Delivery Units,Adults and Health,Other Agencies - Third Party P,0090313712,BUPA CARE HOMES,"2,950.89",14/12/2020
Delivery Units,Adults and Health,Other Agencies - Third Party P,0090313724,HENRY NIHILL HOUSE,"2,358.24",14/12/2020
Delivery Units,Adults and Health,Other Agencies - Third Party P,0090313726,JEWISH CARE,"2,478.24",14/12/2020
Delivery Units,Adults and Health,Other Agencies - Third Party P,0090313731,FOUR SEASONS HEALTH CARE,"2,636.80",14/12/2020
Delivery Units,Adults and Health,Other Agencies - Third Party P,0090313732,BUPA CARE HOMES,"3,903.98",14/12/2020
Delivery Units,Adults and Health,Other Agencies - Third Party P,0090313733,APPLE TREE COURT CARE HOME,"2,595.28",14/12/2020
Delivery Units,Adults and Health,Other Agencies - Third Party P,0090313735,AARANDALE MANOR CARE HOME,"2,595.28",14/12/2020
Delivery Units,Adults and Health,Other Agencies - Third Party P,0090313737,ASHTON LODGE CARE CENTRE,"3,786.47",14/12/2020
Delivery Units,Adults and Health,Other Agencies - Third Party P,0090313742,ASHTON LODGE CARE CENTRE,"4,112.41",14/12/2020
Delivery Units,Adults and Health,Other Agencies - Third Party P,0090313745,HENRY NIHILL HOUSE,"2,265.36",14/12/2020
Delivery Units,Adults and Health,Other Agencies - Third Party P,0090313749,JEWISH CARE,"2,478.24",14/12/2020
Delivery Units,Adults and Health,Other Agencies - Third Party P,0090313750,ASHTON LODGE CARE CENTRE,"3,893.79",14/12/2020
Delivery Units,Adults and Health,Other Agencies - Third Party P,0090313757,NEW CENTURY CARE (FINCHLEY),"4,028.48",14/12/2020
Delivery Units,Adults and Health,Other Agencies - Third Party P,0090313760,JEWISH CARE,"2,380.92",14/12/2020
Delivery Units,Adults and Health,Other Agencies - Third Party P,0090313762,FOUR SEASONS HEALTH CARE,"2,636.80",14/12/2020
Delivery Units,Adults and Health,Other Agencies - Third Party P,0090313768,ASHTON LODGE CARE CENTRE,322.29,14/12/2020
Delivery Units,Adults and Health,Other Agencies - Third Party P,0090313769,ASHTON LODGE CARE CENTRE,47.18,14/12/2020
Delivery Units,Adults and Health,Other Agencies - Third Party P,0090313772,ASHTON LODGE CARE CENTRE,"5,607.52",14/12/2020
Delivery Units,Adults and Health,Other Agencies - Third Party P,0090313774,BUPA CARE HOMES,"2,049.45",14/12/2020
Delivery Units,Adults and Health,Other Agencies - Third Party P,0090313775,LIFESTYLE CARE PLC,"4,851.57",14/12/2020
Delivery Units,Adults and Health,Other Agencies - Third Party P,0090313776,FOUR SEASONS HEALTH CARE,"2,636.80",14/12/2020
Delivery Units,Adults and Health,Other Agencies - Third Party P,0090313777,FOUR SEASONS HEALTH CARE,"2,636.80",14/12/2020
Delivery Units,Adults and Health,Other Agencies - Third Party P,0090313779,FOUR SEASONS HEALTH CARE,"2,636.80",14/12/2020
Delivery Units,Adults and Health,Other Agencies - Third Party P,0090313780,ASHTON LODGE CARE CENTRE,29.37,14/12/2020
Delivery Units,Adults and Health,Other Agencies - Third Party P,0090313782,SONESTA NURSING HOME LTD.,"2,583.77",14/12/2020
Delivery Units,Adults and Health,Other Agencies - Third Party P,0090313783,SONESTA NURSING HOME LTD.,"2,583.77",14/12/2020
Delivery Units,Adults and Health,Other Agencies - Third Party P,0090313786,JEWISH CARE,"2,604.15",14/12/2020
Delivery Units,Adults and Health,Other Agencies - Third Party P,0090313791,LIFESTYLE CARE PLC,"2,716.88",14/12/2020
Delivery Units,Adults and Health,Other Agencies - Third Party P,0090313794,AARANDALE MANOR CARE HOME,"1,780.00",14/12/2020
Delivery Units,Adults and Health,Other Agencies - Third Party P,0090313798,BUPA CARE HOMES,494.00,14/12/2020
Delivery Units,Adults and Health,Other Agencies - Third Party P,0090313800,SONESTA NURSING HOME LTD.,"2,560.00",14/12/2020
Delivery Units,Adults and Health,Other Agencies - Third Party P,0090313801,JEWISH CARE,"2,727.16",14/12/2020
Delivery Units,Adults and Health,Other Agencies - Third Party P,0090313803,JEWISH CARE,"2,478.24",14/12/2020
Delivery Units,Adults and Health,Other Agencies - Third Party P,0090313804,JEWISH CARE,"2,727.16",14/12/2020
Delivery Units,Adults and Health,Other Agencies - Third Party P,0090313809,APPLE TREE COURT CARE HOME,"13,303.22",14/12/2020
Delivery Units,Adults and Health,Other Agencies - Third Party P,0090313812,ASHTON LODGE CARE CENTRE,204.45,14/12/2020
Delivery Units,Adults and Health,Other Agencies - Third Party P,0090313816,ASHTON LODGE CARE CENTRE,"3,376.47",14/12/2020
Delivery Units,Adults and Health,Other Agencies - Third Party P,0090313821,JEWISH CARE,"3,489.64",14/12/2020
Delivery Units,Adults and Health,Other Agencies - Third Party P,0090313824,JEWISH CARE,"2,478.24",14/12/2020
Delivery Units,Adults and Health,Other Agencies - Third Party P,0090313827,ASHTON LODGE CARE CENTRE,"4,742.80",14/12/2020
Delivery Units,Adults and Health,Other Agencies - Third Party P,0090313840,JEWISH CARE,"2,478.24",14/12/2020
Delivery Units,Adults and Health,Other Agencies - Third Party P,0090313842,JEWISH CARE,"2,478.24",14/12/2020
Delivery Units,Adults and Health,Other Agencies - Third Party P,0090313845,BUPA CARE HOMES,"2,660.00",14/12/2020
Delivery Units,Adults and Health,Other Agencies - Third Party P,0090313862,BUPA CARE HOMES,"2,660.00",14/12/2020
Delivery Units,Adults and Health,Other Agencies - Third Party P,0090313864,SONESTA NURSING HOME LTD.,-717.70,14/12/2020
Delivery Units,Adults and Health,Other Agencies - Third Party P,0090313866,FOUR SEASONS HEALTH CARE,"2,636.80",14/12/2020
Delivery Units,Adults and Health,Other Agencies - Third Party P,0090313868,LIFESTYLE CARE PLC,"2,716.88",14/12/2020
Delivery Units,Adults and Health,Other Agencies - Third Party P,0090313869,LIFESTYLE CARE PLC,"2,716.88",14/12/2020
Delivery Units,Adults and Health,Other Agencies - Third Party P,0090313870,APPLE TREE COURT CARE HOME,0.04,14/12/2020
Delivery Units,Adults and Health,Other Agencies - Third Party P,0090313871,APPLE TREE COURT CARE HOME,"4,449.80",14/12/2020
Delivery Units,Adults and Health,Other Agencies - Third Party P,0090313872,FOUR SEASONS HEALTH CARE,"-2,577.04",14/12/2020
Delivery Units,Adults and Health,Other Agencies - Third Party P,0090313873,FOUR SEASONS HEALTH CARE,"2,636.80",14/12/2020
Delivery Units,Adults and Health,Other Agencies - Third Party P,0090313874,FOUR SEASONS HEALTH CARE,"2,636.80",14/12/2020
Delivery Units,Adults and Health,Other Agencies - Third Party P,0090313875,FOUR SEASONS HEALTH CARE,"2,636.80",14/12/2020
Delivery Units,Adults and Health,Other Agencies - Third Party P,0090313876,APPLE TREE COURT CARE HOME,"3,190.68",14/12/2020
Delivery Units,Adults and Health,Other Agencies - Third Party P,0090313878,JEWISH CARE,"2,727.16",14/12/2020
Delivery Units,Adults and Health,Other Agencies - Third Party P,0090313879,BUPA CARE HOMES,"2,660.00",14/12/2020
Delivery Units,Adults and Health,Other Agencies - Third Party P,0090313881,APPLE TREE COURT CARE HOME,"3,643.88",14/12/2020
Delivery Units,Adults and Health,Other Agencies - Third Party P,0090313883,JEWISH CARE,"2,727.16",14/12/2020
Delivery Units,Adults and Health,Other Agencies - Third Party P,0090313884,HENRY NIHILL HOUSE,"5,400.00",14/12/2020
Delivery Units,Adults and Health,Other Agencies - Third Party P,0090313885,SONESTA NURSING HOME LTD.,"2,583.77",14/12/2020
Delivery Units,Adults and Health,Other Agencies - Third Party P,0090313887,SONESTA NURSING HOME LTD.,"2,400.00",14/12/2020
Delivery Units,Adults and Health,Other Agencies - Third Party P,0090313888,LIFESTYLE CARE PLC,"2,716.88",14/12/2020
Delivery Units,Adults and Health,Other Agencies - Third Party P,0090313889,AARANDALE MANOR CARE HOME,"23,139.96",14/12/2020
Delivery Units,Adults and Health,Other Agencies - Third Party P,0090313891,AARANDALE MANOR CARE HOME,"3,560.00",14/12/2020
Delivery Units,Adults and Health,Other Agencies - Third Party P,0090313899,APPLE TREE COURT CARE HOME,"3,190.68",14/12/2020
Delivery Units,Adults and Health,Other Agencies - Third Party P,0090313900,APPLE TREE COURT CARE HOME,"3,190.68",14/12/2020
Delivery Units,Adults and Health,Other Agencies - Third Party P,0090313903,NEW CENTURY CARE (FINCHLEY),"4,264.32",14/12/2020
Delivery Units,Adults and Health,Other Agencies - Third Party P,0090313905,SONESTA NURSING HOME LTD.,"2,583.77",14/12/2020
Delivery Units,Adults and Health,Other Agencies - Third Party P,0090313906,LIFESTYLE CARE PLC,"2,716.88",14/12/2020
Delivery Units,Adults and Health,Other Agencies - Third Party P,0090313907,JEWISH CARE,"2,479.44",14/12/2020
Delivery Units,Adults and Health,Other Agencies - Third Party P,0090313909,LIFESTYLE CARE PLC,"2,716.88",14/12/2020
Delivery Units,Adults and Health,Other Agencies - Third Party P,0090313910,ELEANOR PALMER TRUST NO 2 A/C.,"3,000.00",14/12/2020
Delivery Units,Adults and Health,Other Agencies - Third Party P,0090313915,APPLE TREE COURT CARE HOME,"4,330.21",14/12/2020
Delivery Units,Adults and Health,Other Agencies - Third Party P,0090313916,APPLE TREE COURT CARE HOME,"3,764.00",14/12/2020
Delivery Units,Adults and Health,Other Agencies - Third Party P,0090313918,ASHTON LODGE CARE CENTRE,214.58,14/12/2020
Delivery Units,Adults and Health,Other Agencies - Third Party P,0090313924,APPLE TREE COURT CARE HOME,"3,190.68",14/12/2020
Delivery Units,Adults and Health,Other Agencies - Third Party P,0090313925,APPLE TREE COURT CARE HOME,"3,190.68",14/12/2020
Delivery Units,Adults and Health,Other Agencies - Third Party P,0090313926,APPLE TREE COURT CARE HOME,"3,190.68",14/12/2020
Delivery Units,Adults and Health,Other Agencies - Third Party P,0090313930,JEWISH CARE,"6,018.18",14/12/2020
Delivery Units,Adults and Health,Other Agencies - Third Party P,0090313935,JEWISH CARE,"2,727.16",14/12/2020
Delivery Units,Adults and Health,Other Agencies - Third Party P,0090313939,AARANDALE MANOR CARE HOME,"3,560.00",14/12/2020
Delivery Units,Adults and Health,Other Agencies - Third Party P,0090313940,AARANDALE MANOR CARE HOME,"3,560.00",14/12/2020
Delivery Units,Adults and Health,Other Agencies - Third Party P,0090313943,LIFESTYLE CARE PLC,"4,800.00",14/12/2020
Delivery Units,Adults and Health,Other Agencies - Third Party P,0090313945,FOUR SEASONS HEALTH CARE,"2,636.80",14/12/2020
Delivery Units,Adults and Health,Other Agencies - Third Party P,0090313950,JEWISH CARE,"2,727.16",14/12/2020
Delivery Units,Adults and Health,Other Agencies - Third Party P,0090313951,JEWISH CARE,"2,479.44",14/12/2020
Delivery Units,Adults and Health,Other Agencies - Third Party P,0090313952,LIFESTYLE CARE PLC,"2,716.88",14/12/2020
Delivery Units,Adults and Health,Other Agencies - Third Party P,0090313957,FOUR SEASONS HEALTH CARE,"2,636.80",14/12/2020
Delivery Units,Adults and Health,Other Agencies - Third Party P,0090313961,LIFESTYLE CARE PLC,"4,800.00",14/12/2020
Delivery Units,Adults and Health,Other Agencies - Third Party P,0090313964,JEWISH CARE,"4,175.12",14/12/2020
Delivery Units,Adults and Health,Other Agencies - Third Party P,0090313966,JEWISH CARE,"29,170.44",14/12/2020
Delivery Units,Adults and Health,Other Agencies - Third Party P,0090313967,FOUR SEASONS HEALTH CARE,"2,636.80",14/12/2020
Delivery Units,Adults and Health,Other Agencies - Third Party P,0090313970,JEWISH CARE,"2,478.24",14/12/2020
Delivery Units,Adults and Health,Other Agencies - Third Party P,0090313972,SONESTA NURSING HOME LTD.,"2,583.77",14/12/2020
Delivery Units,Adults and Health,Other Agencies - Third Party P,0090313973,SONESTA NURSING HOME LTD.,"2,583.77",14/12/2020
Delivery Units,Adults and Health,Other Agencies - Third Party P,0090313976,LIFESTYLE CARE PLC,"2,716.88",14/12/2020
Delivery Units,Adults and Health,Other Agencies - Third Party P,0090313980,LIFESTYLE CARE PLC,"2,716.88",14/12/2020
Delivery Units,Adults and Health,Other Agencies - Third Party P,0090313982,AARANDALE MANOR CARE HOME,"3,560.00",14/12/2020
Delivery Units,Adults and Health,Other Agencies - Third Party P,0090313983,AARANDALE MANOR CARE HOME,"3,560.00",14/12/2020
Delivery Units,Adults and Health,Other Agencies - Third Party P,0090313984,APPLE TREE COURT CARE HOME,"3,190.68",14/12/2020
Delivery Units,Adults and Health,Other Agencies - Third Party P,0090313986,BUPA CARE HOMES,65.00,14/12/2020
Delivery Units,Adults and Health,Other Agencies - Third Party P,0090313987,LIFESTYLE CARE PLC,"2,716.88",14/12/2020
Delivery Units,Adults and Health,Other Agencies - Third Party P,0090313991,APPLE TREE COURT CARE HOME,"3,190.68",14/12/2020
Delivery Units,Adults and Health,Other Agencies - Third Party P,0090313997,FOUR SEASONS HEALTH CARE,"2,636.80",14/12/2020
Delivery Units,Adults and Health,Other Agencies - Third Party P,0090314004,LIFESTYLE CARE PLC,"3,299.07",14/12/2020
Delivery Units,Adults and Health,Other Agencies - Third Party P,0090314009,VICTORIA CARE CENTRE,"2,863.50",14/12/2020
Delivery Units,Adults and Health,Other Agencies - Third Party P,0090314084,BUPA CARE HOMES,"2,929.00",14/12/2020
Delivery Units,Adults and Health,Other Agencies - Third Party P,0090314085,BUPA CARE HOMES,"1,882.93",14/12/2020
Delivery Units,Adults and Health,Other Agencies - Third Party P,0090314086,BUPA NURSING HOMES LTD - ARKLEY,"3,218.55",14/12/2020
Delivery Units,Adults and Health,Other Agencies - Third Party P,0090314087,BUPA NURSING HOMES LTD - ARKLEY,"4,242.86",14/12/2020
Delivery Units,Adults and Health,Other Agencies - Third Party P,0090314088,BUPA NURSING HOMES LTD - ARKLEY,"3,664.29",14/12/2020
Delivery Units,Adults and Health,Other Agencies - Third Party P,0090314089,BUPA NURSING HOMES LTD - ARKLEY,"2,184.45",14/12/2020
Delivery Units,Adults and Health,Other Agencies - Third Party P,0090315268,BIRCHWOOD GRANGE CARE HOME,"3,214.29",21/12/2020
Delivery Units,Adults and Health,Other Agencies - Third Party P,0090315474,BUPA NURSING HOMES LTD - ARKLEY,"2,660.00",21/12/2020
Delivery Units,Adults and Health,Other Agencies - Third Party P,0090315475,BUPA NURSING HOMES LTD - ARKLEY,"2,660.00",21/12/2020
Delivery Units,Adults and Health,Other Agencies - Third Party P,0090315476,BUPA NURSING HOMES LTD - ARKLEY,"2,660.00",21/12/2020
Delivery Units,Adults and Health,Other Agencies - Third Party P,0090315478,BUPA NURSING HOMES LTD - ARKLEY,"2,660.00",21/12/2020
Delivery Units,Adults and Health,Other Agencies - Third Party P,0090315479,BUPA NURSING HOMES LTD - ARKLEY,"2,660.00",21/12/2020
Delivery Units,Adults and Health,Other Agencies - Third Party P,0090315480,BUPA NURSING HOMES LTD - ARKLEY,"2,660.00",21/12/2020
Delivery Units,Adults and Health,Other Agencies - Third Party P,0090315481,BUPA NURSING HOMES LTD - ARKLEY,"3,800.00",21/12/2020
Delivery Units,Adults and Health,Other Agencies - Third Party P,0090315482,BUPA NURSING HOMES LTD - ARKLEY,"4,400.00",21/12/2020
Delivery Units,Adults and Health,Other Agencies - Third Party P,0090315483,BUPA NURSING HOMES LTD - ARKLEY,"1,699.02",21/12/2020
Delivery Units,Adults and Health,Other Agencies - Third Party P,0090315484,BUPA NURSING HOMES LTD - ARKLEY,"3,337.76",21/12/2020
Delivery Units,Adults and Health,Other Agencies - Third Party P,0090315485,BUPA NURSING HOMES LTD - ARKLEY,"4,387.00",21/12/2020
Delivery Units,Adults and Health,Other Agencies - Third Party P,0090315498,BUPA NURSING HOMES LTD - ARKLEY,"2,660.00",21/12/2020
Delivery Units,Adults and Health,Other Agencies - Third Party P,0090315499,BUPA NURSING HOMES LTD - ARKLEY,"2,660.00",21/12/2020
Delivery Units,Adults and Health,Other Agencies - Third Party P,0090315500,BUPA NURSING HOMES LTD - ARKLEY,"2,660.00",21/12/2020
Delivery Units,Adults and Health,Other Agencies - Third Party P,0090315502,BUPA NURSING HOMES LTD - ARKLEY,"2,660.00",21/12/2020
Delivery Units,Adults and Health,Other Agencies - Third Party P,0090315503,BUPA NURSING HOMES LTD - ARKLEY,"2,660.00",21/12/2020
Delivery Units,Adults and Health,Other Agencies - Third Party P,0090315504,BUPA NURSING HOMES LTD - ARKLEY,"2,660.00",21/12/2020
Delivery Units,Adults and Health,Other Agencies - Third Party P,0090315519,BARCHESTER HEALTHCARE HOMES LTD (BROOK,"4,207.14",21/12/2020
Delivery Units,Adults and Health,Other Agencies - Third Party P,0090315776,WESTGATE HOUSE CARE CENTRE,"3,725.76",21/12/2020
Delivery Units,Adults and Health,Other Agencies - Third Party P,0090316710,FERNBANK NURSING HOME.,"3,542.68",23/12/2020
Delivery Units,Adults and Health,Other Agencies - Third Party P,0090316723,CONTEMPLATION HOMES,"3,409.78",23/12/2020
Delivery Units,Adults and Health,Other Agencies - Third Party P,0090316953,CARETECH COMMUNITY SERVICES LTD,"5,858.34",24/12/2020
Delivery Units,Adults and Health,Other Agencies - Third Party P,0090317041,ADARA HEALTHCARE LTD,"3,400.00",24/12/2020
Delivery Units,Adults and Health,Other Agencies - Third Party P,0090317046,SANCTUARY CARE LTD,"2,541.07",24/12/2020
Delivery Units,Adults and Health,Other Agencies - Third Party P,0090317048,M D HOMES,"3,165.10",24/12/2020
Delivery Units,Adults and Health,Other Agencies - Third Party P,0090317049,HC ONE BEAMISH LTD,"2,624.19",24/12/2020
Delivery Units,Adults and Health,Other Agencies - Third Party P,0090317059,ST VINCENTS NURSING HOME,"1,802.65",24/12/2020
Delivery Units,Adults and Health,Other Agencies - Third Party P,0090317060,ST VINCENTS NURSING HOME,"6,775.71",24/12/2020
Delivery Units,Adults and Health,Other Agencies - Third Party P,0090318141,KARUNA MANOR,"4,207.14",29/12/2020
Delivery Units,Adults and Health,Other Agencies - Third Party P,0090318142,KARUNA MANOR,"2,373.71",29/12/2020
Delivery Units,Adults and Health,Other Agencies - Third Party P,0090318317,ASPEN VILLAGES LTD,"2,657.14",30/12/2020
Delivery Units,Adults and Health,Other Agencies - Third Party P,0090318302,CEDARS NURSING HOME,"4,428.57",30/12/2020
Delivery Units,Adults and Health,Other Agencies - Third Party P,0090318303,CEDARS NURSING HOME,"5,526.86",30/12/2020
Delivery Units,Adults and Health,Other Agencies - Third Party P,0090318305,CEDARS NURSING HOME,"5,314.29",30/12/2020
Delivery Units,Adults and Health,Other Agencies - Third Party P,0090318306,CEDARS NURSING HOME,"3,919.29",30/12/2020
Delivery Units,Adults and Health,Other Agencies - Third Party P,0090318307,CEDARS NURSING HOME,"2,610.91",30/12/2020
Delivery Units,Adults and Health,Other Agencies - Third Party P,0090318308,CEDARS NURSING HOME,"2,964.93",30/12/2020
Delivery Units,Adults and Health,Other Agencies - Third Party P,0090318309,CEDARS NURSING HOME,"4,207.14",30/12/2020
Delivery Units,Adults and Health,Other Agencies - Third Party P,0090309747,SYDMAR LODGE,"2,497.50",03/12/2020
Delivery Units,Adults and Health,Other Agencies - Third Party P,0090309749,SYDMAR LODGE,16.57,03/12/2020
Delivery Units,Adults and Health,Other Agencies - Third Party P,0090309493,BEAUMONT COURT CARE HOME,"3,642.86",03/12/2020
Delivery Units,Adults and Health,Other Agencies - Third Party P,0090309499,SCIMITAR CARE HOTELS PLC,"3,715.71",03/12/2020
Delivery Units,Adults and Health,Other Agencies - Third Party P,0090309500,SCIMITAR CARE HOTELS PLC,519.71,03/12/2020
Delivery Units,Adults and Health,Other Agencies - Third Party P,0090309501,SAFEQUARTER SOUTH LTD,"2,517.94",03/12/2020
Delivery Units,Adults and Health,Other Agencies - Third Party P,0090309531,ELM PARK LODGE,"3,137.91",03/12/2020
Delivery Units,Adults and Health,Other Agencies - Third Party P,0090309569,VENTRY RESIDENTIAL CARE - ERNEST DENE,749.99,03/12/2020
Delivery Units,Adults and Health,Other Agencies - Third Party P,0090309570,VENTRY RESIDENTIAL CARE - ERNEST DENE,"3,214.29",03/12/2020
Delivery Units,Adults and Health,Other Agencies - Third Party P,0090309572,VENTRY RESIDENTIAL CARE - ERNEST DENE,"3,214.29",03/12/2020
Delivery Units,Adults and Health,Other Agencies - Third Party P,0090309573,VENTRY RESIDENTIAL CARE - ERNEST DENE,"2,357.14",03/12/2020
Delivery Units,Adults and Health,Other Agencies - Third Party P,0090309574,VENTRY RESIDENTIAL CARE - ERNEST DENE,"3,321.43",03/12/2020
Delivery Units,Adults and Health,Other Agencies - Third Party P,0090309576,VENTRY RESIDENTIAL CARE - ERNEST DENE,"3,321.43",03/12/2020
Delivery Units,Adults and Health,Other Agencies - Third Party P,0090309577,VENTRY RESIDENTIAL CARE - ERNEST DENE,"3,321.43",03/12/2020
Delivery Units,Adults and Health,Other Agencies - Third Party P,0090309578,VENTRY RESIDENTIAL CARE - ERNEST DENE,642.86,03/12/2020
Delivery Units,Adults and Health,Other Agencies - Third Party P,0090309750,EASTSIDE HOUSE CARE HOME,"3,580.00",03/12/2020
Delivery Units,Adults and Health,Other Agencies - Third Party P,0090309751,GREEN TREES,"3,385.50",03/12/2020
Delivery Units,Adults and Health,Other Agencies - Third Party P,0090310183,THE BARNETGROUP LIMITED,"2,144.00",04/12/2020
Delivery Units,Adults and Health,Other Agencies - Third Party P,0090310184,THE BARNETGROUP LIMITED,"2,144.00",04/12/2020
Delivery Units,Adults and Health,Other Agencies - Third Party P,0090310185,THE BARNETGROUP LIMITED,"2,304.00",04/12/2020
Delivery Units,Adults and Health,Other Agencies - Third Party P,0090310186,THE BARNETGROUP LIMITED,"2,144.00",04/12/2020
Delivery Units,Adults and Health,Other Agencies - Third Party P,0090310187,THE BARNETGROUP LIMITED,"2,144.00",04/12/2020
Delivery Units,Adults and Health,Other Agencies - Third Party P,0090310188,THE BARNETGROUP LIMITED,"2,144.00",04/12/2020
Delivery Units,Adults and Health,Other Agencies - Third Party P,0090310190,THE BARNETGROUP LIMITED,"-10,396.90",04/12/2020
Delivery Units,Adults and Health,Other Agencies - Third Party P,0090310191,THE BARNETGROUP LIMITED,"4,080.00",04/12/2020
Delivery Units,Adults and Health,Other Agencies - Third Party P,0090310192,THE BARNETGROUP LIMITED,"10,847.32",04/12/2020
Delivery Units,Adults and Health,Other Agencies - Third Party P,0090310193,THE BARNETGROUP LIMITED,"2,144.00",04/12/2020
Delivery Units,Adults and Health,Other Agencies - Third Party P,0090310195,THE BARNETGROUP LIMITED,"2,304.00",04/12/2020
Delivery Units,Adults and Health,Other Agencies - Third Party P,0090310196,THE BARNETGROUP LIMITED,"2,144.00",04/12/2020
Delivery Units,Adults and Health,Other Agencies - Third Party P,0090310197,THE BARNETGROUP LIMITED,"2,139.42",04/12/2020
Delivery Units,Adults and Health,Other Agencies - Third Party P,0090310198,THE BARNETGROUP LIMITED,"1,990.86",04/12/2020
Delivery Units,Adults and Health,Other Agencies - Third Party P,0090310199,THE BARNETGROUP LIMITED,"6,355.43",04/12/2020
Delivery Units,Adults and Health,Other Agencies - Third Party P,0090310201,THE BARNETGROUP LIMITED,"2,144.00",04/12/2020
Delivery Units,Adults and Health,Other Agencies - Third Party P,0090310204,THE BARNETGROUP LIMITED,"2,144.00",04/12/2020
Delivery Units,Adults and Health,Other Agencies - Third Party P,0090310205,THE BARNETGROUP LIMITED,"2,144.00",04/12/2020
Delivery Units,Adults and Health,Other Agencies - Third Party P,0090310206,THE BARNETGROUP LIMITED,"2,304.00",04/12/2020
Delivery Units,Adults and Health,Other Agencies - Third Party P,0090310207,THE BARNETGROUP LIMITED,"2,304.00",04/12/2020
Delivery Units,Adults and Health,Other Agencies - Third Party P,0090310208,THE BARNETGROUP LIMITED,"2,144.00",04/12/2020
Delivery Units,Adults and Health,Other Agencies - Third Party P,0090310209,THE BARNETGROUP LIMITED,"-4,134.86",04/12/2020
Delivery Units,Adults and Health,Other Agencies - Third Party P,0090310210,THE BARNETGROUP LIMITED,"2,144.00",04/12/2020
Delivery Units,Adults and Health,Other Agencies - Third Party P,0090310211,THE BARNETGROUP LIMITED,"-1,914.29",04/12/2020
Delivery Units,Adults and Health,Other Agencies - Third Party P,0090310212,THE BARNETGROUP LIMITED,"2,144.00",04/12/2020
Delivery Units,Adults and Health,Other Agencies - Third Party P,0090310213,THE BARNETGROUP LIMITED,"2,304.00",04/12/2020
Delivery Units,Adults and Health,Other Agencies - Third Party P,0090310214,THE BARNETGROUP LIMITED,"2,304.00",04/12/2020
Delivery Units,Adults and Health,Other Agencies - Third Party P,0090310215,THE BARNETGROUP LIMITED,"2,144.00",04/12/2020
Delivery Units,Adults and Health,Other Agencies - Third Party P,0090310217,THE BARNETGROUP LIMITED,"2,144.00",04/12/2020
Delivery Units,Adults and Health,Other Agencies - Third Party P,0090310218,THE BARNETGROUP LIMITED,"2,144.00",04/12/2020
Delivery Units,Adults and Health,Other Agencies - Third Party P,0090310219,THE BARNETGROUP LIMITED,-822.86,04/12/2020
Delivery Units,Adults and Health,Other Agencies - Third Party P,0090310220,THE BARNETGROUP LIMITED,"2,304.00",04/12/2020
Delivery Units,Adults and Health,Other Agencies - Third Party P,0090310221,THE BARNETGROUP LIMITED,"2,144.00",04/12/2020
Delivery Units,Adults and Health,Other Agencies - Third Party P,0090310224,THE BARNETGROUP LIMITED,"2,144.00",04/12/2020
Delivery Units,Adults and Health,Other Agencies - Third Party P,0090310225,THE BARNETGROUP LIMITED,"2,144.00",04/12/2020
Delivery Units,Adults and Health,Other Agencies - Third Party P,0090310227,THE BARNETGROUP LIMITED,"2,304.00",04/12/2020
Delivery Units,Adults and Health,Other Agencies - Third Party P,0090310228,THE BARNETGROUP LIMITED,"2,304.00",04/12/2020
Delivery Units,Adults and Health,Other Agencies - Third Party P,0090310229,THE BARNETGROUP LIMITED,"2,304.00",04/12/2020
Delivery Units,Adults and Health,Other Agencies - Third Party P,0090310230,THE BARNETGROUP LIMITED,"2,144.00",04/12/2020
Delivery Units,Adults and Health,Other Agencies - Third Party P,0090310231,THE BARNETGROUP LIMITED,"2,144.00",04/12/2020
Delivery Units,Adults and Health,Other Agencies - Third Party P,0090310232,THE BARNETGROUP LIMITED,"2,144.00",04/12/2020
Delivery Units,Adults and Health,Other Agencies - Third Party P,0090310233,THE BARNETGROUP LIMITED,"2,144.00",04/12/2020
Delivery Units,Adults and Health,Other Agencies - Third Party P,0090310234,THE BARNETGROUP LIMITED,"2,144.00",04/12/2020
Delivery Units,Adults and Health,Other Agencies - Third Party P,0090310235,THE BARNETGROUP LIMITED,"2,144.00",04/12/2020
Delivery Units,Adults and Health,Other Agencies - Third Party P,0090310237,THE BARNETGROUP LIMITED,"2,304.00",04/12/2020
Delivery Units,Adults and Health,Other Agencies - Third Party P,0090310238,THE BARNETGROUP LIMITED,"-8,785.71",04/12/2020
Delivery Units,Adults and Health,Other Agencies - Third Party P,0090310239,THE BARNETGROUP LIMITED,"4,062.40",04/12/2020
Delivery Units,Adults and Health,Other Agencies - Third Party P,0090310240,THE BARNETGROUP LIMITED,"51,264.81",04/12/2020
Delivery Units,Adults and Health,Other Agencies - Third Party P,0090310241,THE BARNETGROUP LIMITED,"2,304.00",04/12/2020
Delivery Units,Adults and Health,Other Agencies - Third Party P,0090310242,THE BARNETGROUP LIMITED,"2,304.00",04/12/2020
Delivery Units,Adults and Health,Other Agencies - Third Party P,0090310243,THE BARNETGROUP LIMITED,"9,164.00",04/12/2020
Delivery Units,Adults and Health,Other Agencies - Third Party P,0090310244,THE BARNETGROUP LIMITED,"2,304.00",04/12/2020
Delivery Units,Adults and Health,Other Agencies - Third Party P,0090310246,THE BARNETGROUP LIMITED,"1,446.85",04/12/2020
Delivery Units,Adults and Health,Other Agencies - Third Party P,0090310247,THE BARNETGROUP LIMITED,"2,144.00",04/12/2020
Delivery Units,Adults and Health,Other Agencies - Third Party P,0090310249,THE BARNETGROUP LIMITED,"2,550.86",04/12/2020
Delivery Units,Adults and Health,Other Agencies - Third Party P,0090310250,THE BARNETGROUP LIMITED,"2,373.71",04/12/2020
Delivery Units,Adults and Health,Other Agencies - Third Party P,0090310251,THE BARNETGROUP LIMITED,"2,304.00",04/12/2020
Delivery Units,Adults and Health,Other Agencies - Third Party P,0090310252,THE BARNETGROUP LIMITED,"-7,323.43",04/12/2020
Delivery Units,Adults and Health,Other Agencies - Third Party P,0090310253,THE BARNETGROUP LIMITED,"2,304.00",04/12/2020
Delivery Units,Adults and Health,Other Agencies - Third Party P,0090310255,THE BARNETGROUP LIMITED,"2,304.00",04/12/2020
Delivery Units,Adults and Health,Other Agencies - Third Party P,0090310256,THE BARNETGROUP LIMITED,"2,304.00",04/12/2020
Delivery Units,Adults and Health,Other Agencies - Third Party P,0090310257,THE BARNETGROUP LIMITED,"2,144.00",04/12/2020
Delivery Units,Adults and Health,Other Agencies - Third Party P,0090310258,THE BARNETGROUP LIMITED,"2,144.00",04/12/2020
Delivery Units,Adults and Health,Other Agencies - Third Party P,0090310259,THE BARNETGROUP LIMITED,"2,304.00",04/12/2020
Delivery Units,Adults and Health,Other Agencies - Third Party P,0090310260,THE BARNETGROUP LIMITED,740.57,04/12/2020
Delivery Units,Adults and Health,Other Agencies - Third Party P,0090310261,THE BARNETGROUP LIMITED,"2,694.00",04/12/2020
Delivery Units,Adults and Health,Other Agencies - Third Party P,0090310262,THE BARNETGROUP LIMITED,"97,728.00",04/12/2020
Delivery Units,Adults and Health,Other Agencies - Third Party P,0090310263,THE BARNETGROUP LIMITED,"2,144.00",04/12/2020
Delivery Units,Adults and Health,Other Agencies - Third Party P,0090310264,THE BARNETGROUP LIMITED,"2,304.00",04/12/2020
Delivery Units,Adults and Health,Other Agencies - Third Party P,0090310265,THE BARNETGROUP LIMITED,"2,304.00",04/12/2020
Delivery Units,Adults and Health,Other Agencies - Third Party P,0090310266,THE BARNETGROUP LIMITED,"2,304.00",04/12/2020
Delivery Units,Adults and Health,Other Agencies - Third Party P,0090310267,THE BARNETGROUP LIMITED,"2,144.00",04/12/2020
Delivery Units,Adults and Health,Other Agencies - Third Party P,0090310268,THE BARNETGROUP LIMITED,"2,304.00",04/12/2020
Delivery Units,Adults and Health,Other Agencies - Third Party P,0090310315,THE BARNETGROUP LIMITED,"2,144.00",04/12/2020
Delivery Units,Adults and Health,Other Agencies - Third Party P,0090310316,THE BARNETGROUP LIMITED,"2,144.00",04/12/2020
Delivery Units,Adults and Health,Other Agencies - Third Party P,0090310317,THE BARNETGROUP LIMITED,"2,304.00",04/12/2020
Delivery Units,Adults and Health,Other Agencies - Third Party P,0090310318,THE BARNETGROUP LIMITED,"2,144.00",04/12/2020
Delivery Units,Adults and Health,Other Agencies - Third Party P,0090310319,THE BARNETGROUP LIMITED,"2,144.00",04/12/2020
Delivery Units,Adults and Health,Other Agencies - Third Party P,0090310320,THE BARNETGROUP LIMITED,"2,144.00",04/12/2020
Delivery Units,Adults and Health,Other Agencies - Third Party P,0090310322,THE BARNETGROUP LIMITED,100.70,04/12/2020
Delivery Units,Adults and Health,Other Agencies - Third Party P,0090310324,THE BARNETGROUP LIMITED,"4,080.00",04/12/2020
Delivery Units,Adults and Health,Other Agencies - Third Party P,0090310325,THE BARNETGROUP LIMITED,"10,923.89",04/12/2020
Delivery Units,Adults and Health,Other Agencies - Third Party P,0090310326,THE BARNETGROUP LIMITED,"2,144.00",04/12/2020
Delivery Units,Adults and Health,Other Agencies - Third Party P,0090310327,THE BARNETGROUP LIMITED,"2,304.00",04/12/2020
Delivery Units,Adults and Health,Other Agencies - Third Party P,0090310328,THE BARNETGROUP LIMITED,"2,144.00",04/12/2020
Delivery Units,Adults and Health,Other Agencies - Third Party P,0090310329,THE BARNETGROUP LIMITED,"2,144.00",04/12/2020
Delivery Units,Adults and Health,Other Agencies - Third Party P,0090310330,THE BARNETGROUP LIMITED,"2,144.00",04/12/2020
Delivery Units,Adults and Health,Other Agencies - Third Party P,0090310331,THE BARNETGROUP LIMITED,"2,144.00",04/12/2020
Delivery Units,Adults and Health,Other Agencies - Third Party P,0090310332,THE BARNETGROUP LIMITED,"2,144.00",04/12/2020
Delivery Units,Adults and Health,Other Agencies - Third Party P,0090310334,THE BARNETGROUP LIMITED,"2,304.00",04/12/2020
Delivery Units,Adults and Health,Other Agencies - Third Party P,0090310335,THE BARNETGROUP LIMITED,"2,304.00",04/12/2020
Delivery Units,Adults and Health,Other Agencies - Third Party P,0090310336,THE BARNETGROUP LIMITED,"2,304.00",04/12/2020
Delivery Units,Adults and Health,Other Agencies - Third Party P,0090310337,THE BARNETGROUP LIMITED,"2,144.00",04/12/2020
Delivery Units,Adults and Health,Other Agencies - Third Party P,0090310338,THE BARNETGROUP LIMITED,"2,144.00",04/12/2020
Delivery Units,Adults and Health,Other Agencies - Third Party P,0090310339,THE BARNETGROUP LIMITED,"2,144.00",04/12/2020
Delivery Units,Adults and Health,Other Agencies - Third Party P,0090310340,THE BARNETGROUP LIMITED,"2,144.00",04/12/2020
Delivery Units,Adults and Health,Other Agencies - Third Party P,0090310341,THE BARNETGROUP LIMITED,"2,144.00",04/12/2020
Delivery Units,Adults and Health,Other Agencies - Third Party P,0090310342,THE BARNETGROUP LIMITED,"2,144.00",04/12/2020
Delivery Units,Adults and Health,Other Agencies - Third Party P,0090310344,THE BARNETGROUP LIMITED,"2,304.00",04/12/2020
Delivery Units,Adults and Health,Other Agencies - Third Party P,0090310345,THE BARNETGROUP LIMITED,210.00,04/12/2020
Delivery Units,Adults and Health,Other Agencies - Third Party P,0090310346,THE BARNETGROUP LIMITED,"4,062.40",04/12/2020
Delivery Units,Adults and Health,Other Agencies - Third Party P,0090310347,THE BARNETGROUP LIMITED,"-18,569.77",04/12/2020
Delivery Units,Adults and Health,Other Agencies - Third Party P,0090310348,THE BARNETGROUP LIMITED,"2,304.00",04/12/2020
Delivery Units,Adults and Health,Other Agencies - Third Party P,0090310349,THE BARNETGROUP LIMITED,"2,304.00",04/12/2020
Delivery Units,Adults and Health,Other Agencies - Third Party P,0090310350,THE BARNETGROUP LIMITED,"9,164.00",04/12/2020
Delivery Units,Adults and Health,Other Agencies - Third Party P,0090310351,THE BARNETGROUP LIMITED,"2,304.00",04/12/2020
Delivery Units,Adults and Health,Other Agencies - Third Party P,0090310353,THE BARNETGROUP LIMITED,"2,144.00",04/12/2020
Delivery Units,Adults and Health,Other Agencies - Third Party P,0090310354,THE BARNETGROUP LIMITED,"2,144.00",04/12/2020
Delivery Units,Adults and Health,Other Agencies - Third Party P,0090310355,THE BARNETGROUP LIMITED,"2,144.00",04/12/2020
Delivery Units,Adults and Health,Other Agencies - Third Party P,0090310357,THE BARNETGROUP LIMITED,"3,072.86",04/12/2020
Delivery Units,Adults and Health,Other Agencies - Third Party P,0090310358,THE BARNETGROUP LIMITED,"2,304.00",04/12/2020
Delivery Units,Adults and Health,Other Agencies - Third Party P,0090310359,THE BARNETGROUP LIMITED,"2,304.00",04/12/2020
Delivery Units,Adults and Health,Other Agencies - Third Party P,0090310361,THE BARNETGROUP LIMITED,"2,304.00",04/12/2020
Delivery Units,Adults and Health,Other Agencies - Third Party P,0090310362,THE BARNETGROUP LIMITED,"2,304.00",04/12/2020
Delivery Units,Adults and Health,Other Agencies - Third Party P,0090310363,THE BARNETGROUP LIMITED,"2,144.00",04/12/2020
Delivery Units,Adults and Health,Other Agencies - Third Party P,0090310364,THE BARNETGROUP LIMITED,"2,144.00",04/12/2020
Delivery Units,Adults and Health,Other Agencies - Third Party P,0090310365,THE BARNETGROUP LIMITED,"2,304.00",04/12/2020
Delivery Units,Adults and Health,Other Agencies - Third Party P,0090310366,THE BARNETGROUP LIMITED,"2,694.00",04/12/2020
Delivery Units,Adults and Health,Other Agencies - Third Party P,0090310367,THE BARNETGROUP LIMITED,"17,088.00",04/12/2020
Delivery Units,Adults and Health,Other Agencies - Third Party P,0090310368,THE BARNETGROUP LIMITED,"2,144.00",04/12/2020
Delivery Units,Adults and Health,Other Agencies - Third Party P,0090310369,THE BARNETGROUP LIMITED,"2,304.00",04/12/2020
Delivery Units,Adults and Health,Other Agencies - Third Party P,0090310370,THE BARNETGROUP LIMITED,"2,304.00",04/12/2020
Delivery Units,Adults and Health,Other Agencies - Third Party P,0090310371,THE BARNETGROUP LIMITED,"2,304.00",04/12/2020
Delivery Units,Adults and Health,Other Agencies - Third Party P,0090310372,THE BARNETGROUP LIMITED,"2,144.00",04/12/2020
Delivery Units,Adults and Health,Other Agencies - Third Party P,0090310373,THE BARNETGROUP LIMITED,"2,304.00",04/12/2020
Delivery Units,Adults and Health,Other Agencies - Third Party P,0090310377,THE BARNETGROUP LIMITED,"2,144.00",04/12/2020
Delivery Units,Adults and Health,Other Agencies - Third Party P,0090310379,THE BARNETGROUP LIMITED,"2,144.00",04/12/2020
Delivery Units,Adults and Health,Other Agencies - Third Party P,0090310380,THE BARNETGROUP LIMITED,"2,144.00",04/12/2020
Delivery Units,Adults and Health,Other Agencies - Third Party P,0090310381,THE BARNETGROUP LIMITED,"2,304.00",04/12/2020
Delivery Units,Adults and Health,Other Agencies - Third Party P,0090310382,THE BARNETGROUP LIMITED,"2,304.00",04/12/2020
Delivery Units,Adults and Health,Other Agencies - Third Party P,0090310383,THE BARNETGROUP LIMITED,"2,144.00",04/12/2020
Delivery Units,Adults and Health,Other Agencies - Third Party P,0090310384,THE BARNETGROUP LIMITED,"2,144.00",04/12/2020
Delivery Units,Adults and Health,Other Agencies - Third Party P,0090310385,THE BARNETGROUP LIMITED,"2,144.00",04/12/2020
Delivery Units,Adults and Health,Other Agencies - Third Party P,0090310386,THE BARNETGROUP LIMITED,"2,304.00",04/12/2020
Delivery Units,Adults and Health,Other Agencies - Third Party P,0090310387,THE BARNETGROUP LIMITED,"2,304.00",04/12/2020
Delivery Units,Adults and Health,Other Agencies - Third Party P,0090310388,THE BARNETGROUP LIMITED,"2,144.00",04/12/2020
Delivery Units,Adults and Health,Other Agencies - Third Party P,0090310389,THE BARNETGROUP LIMITED,"2,144.00",04/12/2020
Delivery Units,Adults and Health,Other Agencies - Third Party P,0090310390,THE BARNETGROUP LIMITED,"2,144.00",04/12/2020
Delivery Units,Adults and Health,Other Agencies - Third Party P,0090310391,THE BARNETGROUP LIMITED,"2,304.00",04/12/2020
Delivery Units,Adults and Health,Other Agencies - Third Party P,0090310392,THE BARNETGROUP LIMITED,"2,144.00",04/12/2020
Delivery Units,Adults and Health,Other Agencies - Third Party P,0090311033,DR FRENCH MEMORIAL HOME LTD,"2,517.94",04/12/2020
Delivery Units,Adults and Health,Other Agencies - Third Party P,0090311034,DR FRENCH MEMORIAL HOME LTD,"3,428.57",04/12/2020
Delivery Units,Adults and Health,Other Agencies - Third Party P,0090311035,DR FRENCH MEMORIAL HOME LTD,"3,428.57",04/12/2020
Delivery Units,Adults and Health,Other Agencies - Third Party P,0090311036,DR FRENCH MEMORIAL HOME LTD,"3,642.86",04/12/2020
Delivery Units,Adults and Health,Other Agencies - Third Party P,0090311037,DR FRENCH MEMORIAL HOME LTD,"3,642.86",04/12/2020
Delivery Units,Adults and Health,Other Agencies - Third Party P,0090311022,SPANISH AND PORTUGUESE JEWISH,"5,022.86",04/12/2020
Delivery Units,Adults and Health,Other Agencies - Third Party P,0090311027,RNID,"2,969.44",04/12/2020
Delivery Units,Adults and Health,Other Agencies - Third Party P,0090310125,ELMHURST RESIDENTIAL HOME,"9,228.57",04/12/2020
Delivery Units,Adults and Health,Other Agencies - Third Party P,0090310127,ELMHURST RESIDENTIAL HOME,"9,228.57",04/12/2020
Delivery Units,Adults and Health,Other Agencies - Third Party P,0090310133,ELMHURST RESIDENTIAL HOME,"9,228.57",04/12/2020
Delivery Units,Adults and Health,Other Agencies - Third Party P,0090310134,ELMHURST RESIDENTIAL HOME,"9,228.57",04/12/2020
Delivery Units,Adults and Health,Other Agencies - Third Party P,0090310137,ELMHURST RESIDENTIAL HOME,"6,672.26",04/12/2020
Delivery Units,Adults and Health,Other Agencies - Third Party P,0090310139,ELMHURST RESIDENTIAL HOME,"6,672.25",04/12/2020
Delivery Units,Adults and Health,Other Agencies - Third Party P,0090310142,ELMHURST RESIDENTIAL HOME,"4,614.29",04/12/2020
Delivery Units,Adults and Health,Other Agencies - Third Party P,0090310144,ELMHURST RESIDENTIAL HOME,"7,057.14",04/12/2020
Delivery Units,Adults and Health,Other Agencies - Third Party P,0090310145,ELMHURST RESIDENTIAL HOME,"7,057.14",04/12/2020
Delivery Units,Adults and Health,Other Agencies - Third Party P,0090310147,ELMHURST RESIDENTIAL HOME,"6,672.26",04/12/2020
Delivery Units,Adults and Health,Other Agencies - Third Party P,0090310425,ELIZABETH FINN HOMES LTD,"4,242.86",04/12/2020
Delivery Units,Adults and Health,Other Agencies - Third Party P,0090311023,KARUNA MANOR,"4,071.43",04/12/2020
Delivery Units,Adults and Health,Other Agencies - Third Party P,0090311029,TORRINGTON HOMES,"2,369.79",04/12/2020
Delivery Units,Adults and Health,Other Agencies - Third Party P,0090311030,TORRINGTON HOMES,"3,642.86",04/12/2020
Delivery Units,Adults and Health,Other Agencies - Third Party P,0090311031,TORRINGTON HOMES,"2,176.89",04/12/2020
Delivery Units,Adults and Health,Other Agencies - Third Party P,0090312484,DR FRENCH MEMORIAL HOME LTD,"57,489.29",07/12/2020
Delivery Units,Adults and Health,Other Agencies - Third Party P,0090312464,GCH (HERTFORDSHIRE) LTD T/A,"2,414.68",07/12/2020
Delivery Units,Adults and Health,Other Agencies - Third Party P,0090312465,GCH (HERTFORDSHIRE) LTD T/A,"2,414.68",07/12/2020
Delivery Units,Adults and Health,Other Agencies - Third Party P,0090312466,GCH (HERTFORDSHIRE) LTD T/A,"2,414.68",07/12/2020
Delivery Units,Adults and Health,Other Agencies - Third Party P,0090312467,GCH (HERTFORDSHIRE) LTD T/A,"2,414.68",07/12/2020
Delivery Units,Adults and Health,Other Agencies - Third Party P,0090313056,ST VINCENTS NURSING HOME,78.21,08/12/2020
Delivery Units,Adults and Health,Other Agencies - Third Party P,0090313059,QUANTUM CARE LIMITED,"3,542.86",08/12/2020
Delivery Units,Adults and Health,Other Agencies - Third Party P,0090313060,QUANTUM CARE LIMITED,"3,428.57",08/12/2020
Delivery Units,Adults and Health,Other Agencies - Third Party P,0090313061,QUANTUM CARE LIMITED,"4,071.43",08/12/2020
Delivery Units,Adults and Health,Other Agencies - Third Party P,0090313118,FINBOND LIMITED,"3,321.43",09/12/2020
Delivery Units,Adults and Health,Other Agencies - Third Party P,0090313153,SYDMAR LODGE,"2,000.00",09/12/2020
Delivery Units,Adults and Health,Other Agencies - Third Party P,0090313145,EASTSIDE HOUSE CARE HOME,"3,500.00",09/12/2020
Delivery Units,Adults and Health,Other Agencies - Third Party P,0090313148,THE CHRISTIAN CARE TRUST,"2,458.20",09/12/2020
Delivery Units,Adults and Health,Other Agencies - Third Party P,0090313473,GCH (NORTH LONDON) T/A THE TUDORS,"2,300.00",11/12/2020
Delivery Units,Adults and Health,Other Agencies - Third Party P,0090313240,NAZARETH HOUSE,"3,427.92",11/12/2020
Delivery Units,Adults and Health,Other Agencies - Third Party P,0090313241,NAZARETH HOUSE,"3,427.92",11/12/2020
Delivery Units,Adults and Health,Other Agencies - Third Party P,0090313243,NAZARETH HOUSE,"3,427.92",11/12/2020
Delivery Units,Adults and Health,Other Agencies - Third Party P,0090313244,NAZARETH HOUSE,"3,687.30",11/12/2020
Delivery Units,Adults and Health,Other Agencies - Third Party P,0090313245,NAZARETH HOUSE,"3,687.30",11/12/2020
Delivery Units,Adults and Health,Other Agencies - Third Party P,0090313246,NAZARETH HOUSE,"3,427.92",11/12/2020
Delivery Units,Adults and Health,Other Agencies - Third Party P,0090313247,NAZARETH HOUSE,"5,700.00",11/12/2020
Delivery Units,Adults and Health,Other Agencies - Third Party P,0090313248,NAZARETH HOUSE,"3,427.92",11/12/2020
Delivery Units,Adults and Health,Other Agencies - Third Party P,0090313249,NAZARETH HOUSE,"2,611.75",11/12/2020
Delivery Units,Adults and Health,Other Agencies - Third Party P,0090313250,NAZARETH HOUSE,"3,101.45",11/12/2020
Delivery Units,Adults and Health,Other Agencies - Third Party P,0090313251,NAZARETH HOUSE,"2,122.05",11/12/2020
Delivery Units,Adults and Health,Other Agencies - Third Party P,0090313252,NAZARETH HOUSE,"3,427.92",11/12/2020
Delivery Units,Adults and Health,Other Agencies - Third Party P,0090313253,NAZARETH HOUSE,"3,427.92",11/12/2020
Delivery Units,Adults and Health,Other Agencies - Third Party P,0090313254,NAZARETH HOUSE,"3,687.30",11/12/2020
Delivery Units,Adults and Health,Other Agencies - Third Party P,0090313255,NAZARETH HOUSE,"5,670.00",11/12/2020
Delivery Units,Adults and Health,Other Agencies - Third Party P,0090313256,NAZARETH HOUSE,"3,525.12",11/12/2020
Delivery Units,Adults and Health,Other Agencies - Third Party P,0090313257,NAZARETH HOUSE,"3,427.92",11/12/2020
Delivery Units,Adults and Health,Other Agencies - Third Party P,0090313258,NAZARETH HOUSE,"3,427.92",11/12/2020
Delivery Units,Adults and Health,Other Agencies - Third Party P,0090313259,NAZARETH HOUSE,"3,427.92",11/12/2020
Delivery Units,Adults and Health,Other Agencies - Third Party P,0090313260,NAZARETH HOUSE,"3,427.92",11/12/2020
Delivery Units,Adults and Health,Other Agencies - Third Party P,0090313261,NAZARETH HOUSE,"3,427.92",11/12/2020
Delivery Units,Adults and Health,Other Agencies - Third Party P,0090313262,NAZARETH HOUSE,"3,687.30",11/12/2020
Delivery Units,Adults and Health,Other Agencies - Third Party P,0090313263,NAZARETH HOUSE,"3,427.92",11/12/2020
Delivery Units,Adults and Health,Other Agencies - Third Party P,0090313264,NAZARETH HOUSE,"3,687.30",11/12/2020
Delivery Units,Adults and Health,Other Agencies - Third Party P,0090313266,NAZARETH HOUSE,"3,687.30",11/12/2020
Delivery Units,Adults and Health,Other Agencies - Third Party P,0090313268,NAZARETH HOUSE,"2,530.13",11/12/2020
Delivery Units,Adults and Health,Other Agencies - Third Party P,0090313269,NAZARETH HOUSE,"1,958.81",11/12/2020
Delivery Units,Adults and Health,Other Agencies - Third Party P,0090313270,NAZARETH HOUSE,"2,194.82",11/12/2020
Delivery Units,Adults and Health,Other Agencies - Third Party P,0090313271,NAZARETH HOUSE,"1,061.02",11/12/2020
Delivery Units,Adults and Health,Other Agencies - Third Party P,0090313272,NAZARETH HOUSE,526.76,11/12/2020
Delivery Units,Adults and Health,Other Agencies - Third Party P,0090313273,NAZARETH HOUSE,"3,975.60",11/12/2020
Delivery Units,Adults and Health,Other Agencies - Third Party P,0090313274,NAZARETH HOUSE,"3,687.30",11/12/2020
Delivery Units,Adults and Health,Other Agencies - Third Party P,0090313275,NAZARETH HOUSE,"3,427.92",11/12/2020
Delivery Units,Adults and Health,Other Agencies - Third Party P,0090313276,NAZARETH HOUSE,"3,427.92",11/12/2020
Delivery Units,Adults and Health,Other Agencies - Third Party P,0090313277,NAZARETH HOUSE,"3,427.92",11/12/2020
Delivery Units,Adults and Health,Other Agencies - Third Party P,0090313278,NAZARETH HOUSE,"3,427.92",11/12/2020
Delivery Units,Adults and Health,Other Agencies - Third Party P,0090313279,NAZARETH HOUSE,"3,427.92",11/12/2020
Delivery Units,Adults and Health,Other Agencies - Third Party P,0090313280,NAZARETH HOUSE,"3,687.30",11/12/2020
Delivery Units,Adults and Health,Other Agencies - Third Party P,0090313489,CLOVELLY HOUSE RESID. HOME LTD,"3,000.00",11/12/2020
Delivery Units,Adults and Health,Other Agencies - Third Party P,0090313490,CLOVELLY HOUSE RESID. HOME LTD,"3,000.00",11/12/2020
Delivery Units,Adults and Health,Other Agencies - Third Party P,0090313491,CLOVELLY HOUSE RESID. HOME LTD,"3,100.00",11/12/2020
Delivery Units,Adults and Health,Other Agencies - Third Party P,0090313492,CLOVELLY HOUSE RESID. HOME LTD,"3,000.00",11/12/2020
Delivery Units,Adults and Health,Other Agencies - Third Party P,0090313493,CLOVELLY HOUSE RESID. HOME LTD,"3,000.00",11/12/2020
Delivery Units,Adults and Health,Other Agencies - Third Party P,0090313496,CLOVELLY HOUSE RESID. HOME LTD,"2,600.00",11/12/2020
Delivery Units,Adults and Health,Other Agencies - Third Party P,0090313497,CLOVELLY HOUSE RESID. HOME LTD,"2,458.20",11/12/2020
Delivery Units,Adults and Health,Other Agencies - Third Party P,0090313499,CLOVELLY HOUSE RESID. HOME LTD,"3,000.00",11/12/2020
Delivery Units,Adults and Health,Other Agencies - Third Party P,0090313501,CLOVELLY HOUSE RESID. HOME LTD,"1,229.10",11/12/2020
Delivery Units,Adults and Health,Other Agencies - Third Party P,0090297677,SPRINGDENE,"-3,925.71",14/12/2020
Delivery Units,Adults and Health,Other Agencies - Third Party P,0090313627,ROSEACRES CARE HOME LIMITED,"2,458.20",14/12/2020
Delivery Units,Adults and Health,Other Agencies - Third Party P,0090313630,ROSEACRES CARE HOME LIMITED,"3,000.00",14/12/2020
Delivery Units,Adults and Health,Other Agencies - Third Party P,0090313641,ROSEACRES CARE HOME LIMITED,"2,699.32",14/12/2020
Delivery Units,Adults and Health,Other Agencies - Third Party P,0090313649,CATHERINE LODGE,"3,400.00",14/12/2020
Delivery Units,Adults and Health,Other Agencies - Third Party P,0090313725,ROSEACRES CARE HOME LIMITED,"2,458.20",14/12/2020
Delivery Units,Adults and Health,Other Agencies - Third Party P,0090313751,CATHERINE LODGE,"2,458.20",14/12/2020
Delivery Units,Adults and Health,Other Agencies - Third Party P,0090313759,ROSEACRES CARE HOME LIMITED,"2,458.20",14/12/2020
Delivery Units,Adults and Health,Other Agencies - Third Party P,0090313773,CATHERINE LODGE,"3,400.00",14/12/2020
Delivery Units,Adults and Health,Other Agencies - Third Party P,0090313790,CATHERINE LODGE,"3,580.00",14/12/2020
Delivery Units,Adults and Health,Other Agencies - Third Party P,0090313792,CARLTON COURT (TLC GROUP),"5,800.00",14/12/2020
Delivery Units,Adults and Health,Other Agencies - Third Party P,0090313807,CARLTON COURT (TLC GROUP),"15,814.29",14/12/2020
Delivery Units,Adults and Health,Other Agencies - Third Party P,0090313811,ROSEACRES CARE HOME LIMITED,"2,304.00",14/12/2020
Delivery Units,Adults and Health,Other Agencies - Third Party P,0090313818,ROSEACRES CARE HOME LIMITED,"3,000.00",14/12/2020
Delivery Units,Adults and Health,Other Agencies - Third Party P,0090313837,CATHERINE LODGE,"2,458.20",14/12/2020
Delivery Units,Adults and Health,Other Agencies - Third Party P,0090313838,CATHERINE LODGE,"3,000.00",14/12/2020
Delivery Units,Adults and Health,Other Agencies - Third Party P,0090313841,ROSEACRES CARE HOME LIMITED,"2,458.20",14/12/2020
Delivery Units,Adults and Health,Other Agencies - Third Party P,0090313844,CARLTON COURT (TLC GROUP),"2,031.76",14/12/2020
Delivery Units,Adults and Health,Other Agencies - Third Party P,0090313851,ROSEACRES CARE HOME LIMITED,"3,000.00",14/12/2020
Delivery Units,Adults and Health,Other Agencies - Third Party P,0090313922,ROSEACRES CARE HOME LIMITED,"3,400.00",14/12/2020
Delivery Units,Adults and Health,Other Agencies - Third Party P,0090313998,ROSEACRES CARE HOME LIMITED,364.29,14/12/2020
Delivery Units,Adults and Health,Other Agencies - Third Party P,0090314011,SPRINGDENE,"4,500.00",14/12/2020
Delivery Units,Adults and Health,Other Agencies - Third Party P,0090314013,FINBOND LIMITED,"3,214.29",14/12/2020
Delivery Units,Adults and Health,Other Agencies - Third Party P,0090314090,TENTERDEN HOUSE,"3,829.84",14/12/2020
Delivery Units,Adults and Health,Other Agencies - Third Party P,0090314095,AUTUMN GARDENS,"3,200.00",14/12/2020
Delivery Units,Adults and Health,Other Agencies - Third Party P,0090314096,AUTUMN GARDENS,"3,160.00",14/12/2020
Delivery Units,Adults and Health,Other Agencies - Third Party P,0090313621,THE GRANGE,"2,600.00",14/12/2020
Delivery Units,Adults and Health,Other Agencies - Third Party P,0090313671,THE GRANGE,"2,458.20",14/12/2020
Delivery Units,Adults and Health,Other Agencies - Third Party P,0090313785,THE GRANGE,"3,000.00",14/12/2020
Delivery Units,Adults and Health,Other Agencies - Third Party P,0090313793,THE GRANGE,"3,000.00",14/12/2020
Delivery Units,Adults and Health,Other Agencies - Third Party P,0090313808,THE GRANGE,"1,500.00",14/12/2020
Delivery Units,Adults and Health,Other Agencies - Third Party P,0090313978,THE GRANGE,"3,000.00",14/12/2020
Delivery Units,Adults and Health,Other Agencies - Third Party P,0090314078,RNID,"2,969.44",14/12/2020
Delivery Units,Adults and Health,Other Agencies - Third Party P,0090313902,WOODFIELD HOUSE,"15,080.00",14/12/2020
Delivery Units,Adults and Health,Other Agencies - Third Party P,0090313605,JEWISH CARE,-181.09,14/12/2020
Delivery Units,Adults and Health,Other Agencies - Third Party P,0090313607,THE LIMES RESIDENTIAL HOME,"2,304.00",14/12/2020
Delivery Units,Adults and Health,Other Agencies - Third Party P,0090313608,BUPA CARE HOMES,"2,323.28",14/12/2020
Delivery Units,Adults and Health,Other Agencies - Third Party P,0090313613,ELEANOR PALMER TRUST NO 2 A/C.,"3,098.48",14/12/2020
Delivery Units,Adults and Health,Other Agencies - Third Party P,0090313615,NAZARETH HOUSE,"2,285.28",14/12/2020
Delivery Units,Adults and Health,Other Agencies - Third Party P,0090313619,JEWISH CARE,"4,265.48",14/12/2020
Delivery Units,Adults and Health,Other Agencies - Third Party P,0090313623,JEWISH CARE,"2,399.56",14/12/2020
Delivery Units,Adults and Health,Other Agencies - Third Party P,0090313626,JEWISH CARE,"2,484.56",14/12/2020
Delivery Units,Adults and Health,Other Agencies - Third Party P,0090313628,ELMHURST RESIDENTIAL HOME,"2,458.20",14/12/2020
Delivery Units,Adults and Health,Other Agencies - Third Party P,0090313640,ELMHURST RESIDENTIAL HOME,"2,458.20",14/12/2020
Delivery Units,Adults and Health,Other Agencies - Third Party P,0090313643,APPLE TREE COURT CARE HOME,"3,400.00",14/12/2020
Delivery Units,Adults and Health,Other Agencies - Third Party P,0090313646,THE LIMES RESIDENTIAL HOME,965.72,14/12/2020
Delivery Units,Adults and Health,Other Agencies - Third Party P,0090313648,JEWISH CARE,"4,825.16",14/12/2020
Delivery Units,Adults and Health,Other Agencies - Third Party P,0090313652,ASHTON LODGE CARE CENTRE,"4,660.67",14/12/2020
Delivery Units,Adults and Health,Other Agencies - Third Party P,0090313653,NAZARETH HOUSE,"2,285.28",14/12/2020
Delivery Units,Adults and Health,Other Agencies - Third Party P,0090313654,NAZARETH HOUSE,"2,458.20",14/12/2020
Delivery Units,Adults and Health,Other Agencies - Third Party P,0090313655,ELEANOR PALMER TRUST NO 2 A/C.,"3,000.00",14/12/2020
Delivery Units,Adults and Health,Other Agencies - Third Party P,0090313657,JEWISH CARE,"2,581.00",14/12/2020
Delivery Units,Adults and Health,Other Agencies - Third Party P,0090313659,JEWISH CARE,"2,581.00",14/12/2020
Delivery Units,Adults and Health,Other Agencies - Third Party P,0090313665,NAZARETH HOUSE,"2,650.40",14/12/2020
Delivery Units,Adults and Health,Other Agencies - Third Party P,0090313680,NAZARETH HOUSE,"2,458.20",14/12/2020
Delivery Units,Adults and Health,Other Agencies - Third Party P,0090313683,NAZARETH HOUSE,"2,285.28",14/12/2020
Delivery Units,Adults and Health,Other Agencies - Third Party P,0090313685,THE LIMES RESIDENTIAL HOME,"2,458.20",14/12/2020
Delivery Units,Adults and Health,Other Agencies - Third Party P,0090313688,JEWISH CARE,"2,484.56",14/12/2020
Delivery Units,Adults and Health,Other Agencies - Third Party P,0090313692,ELEANOR PALMER TRUST NO 2 A/C.,"2,458.20",14/12/2020
Delivery Units,Adults and Health,Other Agencies - Third Party P,0090313693,ELEANOR PALMER TRUST NO 2 A/C.,"2,458.20",14/12/2020
Delivery Units,Adults and Health,Other Agencies - Third Party P,0090313697,ELEANOR PALMER TRUST NO 2 A/C.,"3,030.00",14/12/2020
Delivery Units,Adults and Health,Other Agencies - Third Party P,0090313698,ELMHURST RESIDENTIAL HOME,"3,400.00",14/12/2020
Delivery Units,Adults and Health,Other Agencies - Third Party P,0090313700,NAZARETH HOUSE,"2,285.28",14/12/2020
Delivery Units,Adults and Health,Other Agencies - Third Party P,0090313704,ELMHURST RESIDENTIAL HOME,"3,400.00",14/12/2020
Delivery Units,Adults and Health,Other Agencies - Third Party P,0090313707,NAZARETH HOUSE,"2,285.28",14/12/2020
Delivery Units,Adults and Health,Other Agencies - Third Party P,0090313708,JEWISH CARE,"2,399.56",14/12/2020
Delivery Units,Adults and Health,Other Agencies - Third Party P,0090313713,THE LIMES RESIDENTIAL HOME,"3,040.00",14/12/2020
Delivery Units,Adults and Health,Other Agencies - Third Party P,0090313714,JEWISH CARE,"2,399.56",14/12/2020
Delivery Units,Adults and Health,Other Agencies - Third Party P,0090313715,NAZARETH HOUSE,"2,285.28",14/12/2020
Delivery Units,Adults and Health,Other Agencies - Third Party P,0090313721,NAZARETH HOUSE,"2,285.28",14/12/2020
Delivery Units,Adults and Health,Other Agencies - Third Party P,0090313743,ELEANOR PALMER TRUST NO 2 A/C.,"3,098.48",14/12/2020
Delivery Units,Adults and Health,Other Agencies - Third Party P,0090313746,ELEANOR PALMER TRUST NO 2 A/C.,"2,285.28",14/12/2020
Delivery Units,Adults and Health,Other Agencies - Third Party P,0090313752,ELMHURST RESIDENTIAL HOME,"2,600.00",14/12/2020
Delivery Units,Adults and Health,Other Agencies - Third Party P,0090313754,ELMHURST RESIDENTIAL HOME,"2,600.00",14/12/2020
Delivery Units,Adults and Health,Other Agencies - Third Party P,0090313755,ELEANOR PALMER TRUST NO 2 A/C.,"2,811.97",14/12/2020
Delivery Units,Adults and Health,Other Agencies - Third Party P,0090313756,ELEANOR PALMER TRUST NO 2 A/C.,"3,030.00",14/12/2020
Delivery Units,Adults and Health,Other Agencies - Third Party P,0090313761,ELMHURST RESIDENTIAL HOME,"2,458.20",14/12/2020
Delivery Units,Adults and Health,Other Agencies - Third Party P,0090313763,JEWISH CARE,"2,581.00",14/12/2020
Delivery Units,Adults and Health,Other Agencies - Third Party P,0090313764,JEWISH CARE,"2,399.56",14/12/2020
Delivery Units,Adults and Health,Other Agencies - Third Party P,0090313766,ELEANOR PALMER TRUST NO 2 A/C.,"3,000.00",14/12/2020
Delivery Units,Adults and Health,Other Agencies - Third Party P,0090313767,JEWISH CARE,"2,399.56",14/12/2020
Delivery Units,Adults and Health,Other Agencies - Third Party P,0090313770,NAZARETH HOUSE,"2,285.28",14/12/2020
Delivery Units,Adults and Health,Other Agencies - Third Party P,0090313789,JEWISH CARE,"2,581.00",14/12/2020
Delivery Units,Adults and Health,Other Agencies - Third Party P,0090313795,JEWISH CARE,"1,474.86",14/12/2020
Delivery Units,Adults and Health,Other Agencies - Third Party P,0090313796,JEWISH CARE,"2,581.00",14/12/2020
Delivery Units,Adults and Health,Other Agencies - Third Party P,0090313797,JEWISH CARE,"2,581.00",14/12/2020
Delivery Units,Adults and Health,Other Agencies - Third Party P,0090313799,NAZARETH HOUSE,"3,780.00",14/12/2020
Delivery Units,Adults and Health,Other Agencies - Third Party P,0090313806,JEWISH CARE,"5,251.49",14/12/2020
Delivery Units,Adults and Health,Other Agencies - Third Party P,0090313817,NAZARETH HOUSE,"2,350.08",14/12/2020
Delivery Units,Adults and Health,Other Agencies - Third Party P,0090313819,THE LIMES RESIDENTIAL HOME,"2,304.00",14/12/2020
Delivery Units,Adults and Health,Other Agencies - Third Party P,0090313820,NAZARETH HOUSE,"2,285.28",14/12/2020
Delivery Units,Adults and Health,Other Agencies - Third Party P,0090313823,ELEANOR PALMER TRUST NO 2 A/C.,"2,285.28",14/12/2020
Delivery Units,Adults and Health,Other Agencies - Third Party P,0090313825,SAGE NURSING HOME,"2,400.00",14/12/2020
Delivery Units,Adults and Health,Other Agencies - Third Party P,0090313826,JEWISH CARE,368.71,14/12/2020
Delivery Units,Adults and Health,Other Agencies - Third Party P,0090313828,JEWISH CARE,"2,399.56",14/12/2020
Delivery Units,Adults and Health,Other Agencies - Third Party P,0090313830,THE LIMES RESIDENTIAL HOME,"2,458.20",14/12/2020
Delivery Units,Adults and Health,Other Agencies - Third Party P,0090313833,THE LIMES RESIDENTIAL HOME,"2,458.20",14/12/2020
Delivery Units,Adults and Health,Other Agencies - Third Party P,0090313839,THE LIMES RESIDENTIAL HOME,"2,458.20",14/12/2020
Delivery Units,Adults and Health,Other Agencies - Third Party P,0090313843,NAZARETH HOUSE,"2,285.28",14/12/2020
Delivery Units,Adults and Health,Other Agencies - Third Party P,0090313846,NAZARETH HOUSE,"2,285.28",14/12/2020
Delivery Units,Adults and Health,Other Agencies - Third Party P,0090313847,ELEANOR PALMER TRUST NO 2 A/C.,"3,030.00",14/12/2020
Delivery Units,Adults and Health,Other Agencies - Third Party P,0090313848,THE LIMES RESIDENTIAL HOME,"2,458.20",14/12/2020
Delivery Units,Adults and Health,Other Agencies - Third Party P,0090313849,JEWISH CARE,"2,581.00",14/12/2020
Delivery Units,Adults and Health,Other Agencies - Third Party P,0090313850,ELMHURST RESIDENTIAL HOME,"3,400.00",14/12/2020
Delivery Units,Adults and Health,Other Agencies - Third Party P,0090313852,NAZARETH HOUSE,"2,285.28",14/12/2020
Delivery Units,Adults and Health,Other Agencies - Third Party P,0090313853,NAZARETH HOUSE,"2,285.28",14/12/2020
Delivery Units,Adults and Health,Other Agencies - Third Party P,0090313854,NAZARETH HOUSE,"2,458.20",14/12/2020
Delivery Units,Adults and Health,Other Agencies - Third Party P,0090313855,JEWISH CARE,921.80,14/12/2020
Delivery Units,Adults and Health,Other Agencies - Third Party P,0090313858,ELMHURST RESIDENTIAL HOME,"3,400.00",14/12/2020
Delivery Units,Adults and Health,Other Agencies - Third Party P,0090313860,APPLE TREE COURT CARE HOME,"-1,548.88",14/12/2020
Delivery Units,Adults and Health,Other Agencies - Third Party P,0090313861,SAGE NURSING HOME,"2,800.00",14/12/2020
Delivery Units,Adults and Health,Other Agencies - Third Party P,0090313863,JEWISH CARE,"2,581.00",14/12/2020
Delivery Units,Adults and Health,Other Agencies - Third Party P,0090313867,ELEANOR PALMER TRUST NO 2 A/C.,"3,000.00",14/12/2020
Delivery Units,Adults and Health,Other Agencies - Third Party P,0090313877,NAZARETH HOUSE,"1,877.19",14/12/2020
Delivery Units,Adults and Health,Other Agencies - Third Party P,0090313880,JEWISH CARE,"3,800.00",14/12/2020
Delivery Units,Adults and Health,Other Agencies - Third Party P,0090313882,BUPA CARE HOMES,-299.88,14/12/2020
Delivery Units,Adults and Health,Other Agencies - Third Party P,0090313893,JEWISH CARE,"2,581.00",14/12/2020
Delivery Units,Adults and Health,Other Agencies - Third Party P,0090313894,JEWISH CARE,"2,581.00",14/12/2020
Delivery Units,Adults and Health,Other Agencies - Third Party P,0090313895,JEWISH CARE,"2,581.00",14/12/2020
Delivery Units,Adults and Health,Other Agencies - Third Party P,0090313896,JEWISH CARE,"2,581.00",14/12/2020
Delivery Units,Adults and Health,Other Agencies - Third Party P,0090313897,NAZARETH HOUSE,"2,285.28",14/12/2020
Delivery Units,Adults and Health,Other Agencies - Third Party P,0090313898,NAZARETH HOUSE,"2,458.20",14/12/2020
Delivery Units,Adults and Health,Other Agencies - Third Party P,0090313904,JEWISH CARE,"2,581.00",14/12/2020
Delivery Units,Adults and Health,Other Agencies - Third Party P,0090313908,JEWISH CARE,"2,581.00",14/12/2020
Delivery Units,Adults and Health,Other Agencies - Third Party P,0090313911,JEWISH CARE,"5,860.75",14/12/2020
Delivery Units,Adults and Health,Other Agencies - Third Party P,0090313914,THE LIMES RESIDENTIAL HOME,"3,535.71",14/12/2020
Delivery Units,Adults and Health,Other Agencies - Third Party P,0090313919,JEWISH CARE,"2,399.56",14/12/2020
Delivery Units,Adults and Health,Other Agencies - Third Party P,0090313921,JEWISH CARE,"2,581.00",14/12/2020
Delivery Units,Adults and Health,Other Agencies - Third Party P,0090313923,ELEANOR PALMER TRUST NO 2 A/C.,"3,000.00",14/12/2020
Delivery Units,Adults and Health,Other Agencies - Third Party P,0090313927,THE LIMES RESIDENTIAL HOME,"3,000.00",14/12/2020
Delivery Units,Adults and Health,Other Agencies - Third Party P,0090313928,NAZARETH HOUSE,"2,458.20",14/12/2020
Delivery Units,Adults and Health,Other Agencies - Third Party P,0090313932,NAZARETH HOUSE,"2,458.20",14/12/2020
Delivery Units,Adults and Health,Other Agencies - Third Party P,0090313933,NAZARETH HOUSE,"2,285.28",14/12/2020
Delivery Units,Adults and Health,Other Agencies - Third Party P,0090313934,JEWISH CARE,"2,455.12",14/12/2020
Delivery Units,Adults and Health,Other Agencies - Third Party P,0090313942,JEWISH CARE,"2,399.56",14/12/2020
Delivery Units,Adults and Health,Other Agencies - Third Party P,0090313946,NAZARETH HOUSE,"3,800.00",14/12/2020
Delivery Units,Adults and Health,Other Agencies - Third Party P,0090313947,JEWISH CARE,"2,581.00",14/12/2020
Delivery Units,Adults and Health,Other Agencies - Third Party P,0090313948,NAZARETH HOUSE,"2,285.28",14/12/2020
Delivery Units,Adults and Health,Other Agencies - Third Party P,0090313953,JEWISH CARE,"2,581.00",14/12/2020
Delivery Units,Adults and Health,Other Agencies - Third Party P,0090313955,JEWISH CARE,"2,399.56",14/12/2020
Delivery Units,Adults and Health,Other Agencies - Third Party P,0090313958,NAZARETH HOUSE,"2,285.28",14/12/2020
Delivery Units,Adults and Health,Other Agencies - Third Party P,0090313959,NAZARETH HOUSE,"2,285.28",14/12/2020
Delivery Units,Adults and Health,Other Agencies - Third Party P,0090313960,NAZARETH HOUSE,"2,285.28",14/12/2020
Delivery Units,Adults and Health,Other Agencies - Third Party P,0090313962,JEWISH CARE,599.89,14/12/2020
Delivery Units,Adults and Health,Other Agencies - Third Party P,0090313965,NAZARETH HOUSE,"2,122.05",14/12/2020
Delivery Units,Adults and Health,Other Agencies - Third Party P,0090313968,ELEANOR PALMER TRUST NO 2 A/C.,"3,000.00",14/12/2020
Delivery Units,Adults and Health,Other Agencies - Third Party P,0090313969,ELEANOR PALMER TRUST NO 2 A/C.,"3,000.00",14/12/2020
Delivery Units,Adults and Health,Other Agencies - Third Party P,0090313979,ELEANOR PALMER TRUST NO 2 A/C.,"3,000.00",14/12/2020
Delivery Units,Adults and Health,Other Agencies - Third Party P,0090313985,JEWISH CARE,"2,581.00",14/12/2020
Delivery Units,Adults and Health,Other Agencies - Third Party P,0090313988,NAZARETH HOUSE,"2,285.28",14/12/2020
Delivery Units,Adults and Health,Other Agencies - Third Party P,0090313989,NAZARETH HOUSE,"2,458.20",14/12/2020
Delivery Units,Adults and Health,Other Agencies - Third Party P,0090313992,NAZARETH HOUSE,"2,458.20",14/12/2020
Delivery Units,Adults and Health,Other Agencies - Third Party P,0090313995,JEWISH CARE,"2,399.56",14/12/2020
Delivery Units,Adults and Health,Other Agencies - Third Party P,0090313996,JEWISH CARE,"2,581.00",14/12/2020
Delivery Units,Adults and Health,Other Agencies - Third Party P,0090313999,NAZARETH HOUSE,"2,285.28",14/12/2020
Delivery Units,Adults and Health,Other Agencies - Third Party P,0090314000,NAZARETH HOUSE,326.47,14/12/2020
Delivery Units,Adults and Health,Other Agencies - Third Party P,0090314001,NAZARETH HOUSE,"2,458.20",14/12/2020
Delivery Units,Adults and Health,Other Agencies - Third Party P,0090314002,NAZARETH HOUSE,"2,285.28",14/12/2020
Delivery Units,Adults and Health,Other Agencies - Third Party P,0090314006,NAZARETH HOUSE,"2,458.20",14/12/2020
Delivery Units,Adults and Health,Other Agencies - Third Party P,0090314079,CLOVELLY HOUSE RESID. HOME LTD,964.29,14/12/2020
Delivery Units,Adults and Health,Other Agencies - Third Party P,0090314080,CLOVELLY HOUSE RESID. HOME LTD,964.29,14/12/2020
Delivery Units,Adults and Health,Other Agencies - Third Party P,0090314081,CLOVELLY HOUSE RESID. HOME LTD,"1,499.99",14/12/2020
Delivery Units,Adults and Health,Other Agencies - Third Party P,0090314091,A.H.J. DAVID LTD T/A FLORENCE HOUSE,"3,200.00",14/12/2020
Delivery Units,Adults and Health,Other Agencies - Third Party P,0090314094,ANASTASIA LODGE,"3,800.00",14/12/2020
Delivery Units,Adults and Health,Other Agencies - Third Party P,0090314098,WILTON HOUSE LTD,"2,527.24",14/12/2020
Delivery Units,Adults and Health,Other Agencies - Third Party P,0090314099,WILTON HOUSE LTD,"2,536.46",14/12/2020
Delivery Units,Adults and Health,Other Agencies - Third Party P,1005434702,THE BARNETGROUP LIMITED,"301,310.37",16/12/2020
Delivery Units,Adults and Health,Other Agencies - Third Party P,0090315037,CLOVELLY HOUSE RESID. HOME LTD,"3,000.00",17/12/2020
Delivery Units,Adults and Health,Other Agencies - Third Party P,0090315038,CLOVELLY HOUSE RESID. HOME LTD,"3,000.00",17/12/2020
Delivery Units,Adults and Health,Other Agencies - Third Party P,0090315039,CLOVELLY HOUSE RESID. HOME LTD,"3,000.00",17/12/2020
Delivery Units,Adults and Health,Other Agencies - Third Party P,0090315040,CLOVELLY HOUSE RESID. HOME LTD,"3,000.00",17/12/2020
Delivery Units,Adults and Health,Other Agencies - Third Party P,0090315044,THE CHRISTIAN CARE TRUST,"2,458.20",17/12/2020
Delivery Units,Adults and Health,Other Agencies - Third Party P,0090315045,THE CHRISTIAN CARE TRUST,"3,360.00",17/12/2020
Delivery Units,Adults and Health,Other Agencies - Third Party P,0090315046,THE CHRISTIAN CARE TRUST,"2,458.20",17/12/2020
Delivery Units,Adults and Health,Other Agencies - Third Party P,1005801402,THE BARNETGROUP LIMITED,"85,879.07",18/12/2020
Delivery Units,Adults and Health,Other Agencies - Third Party P,0090315768,SYDMAR LODGE,"2,996.94",21/12/2020
Delivery Units,Adults and Health,Other Agencies - Third Party P,0090315777,SYDMAR LODGE,"2,580.75",21/12/2020
Delivery Units,Adults and Health,Other Agencies - Third Party P,0090315512,LIVABILITY,"3,211.80",21/12/2020
Delivery Units,Adults and Health,Other Agencies - Third Party P,0090315513,LIVABILITY,"3,458.24",21/12/2020
Delivery Units,Adults and Health,Other Agencies - Third Party P,0090315517,LIVABILITY,"4,364.00",21/12/2020
Delivery Units,Adults and Health,Other Agencies - Third Party P,0090315771,SPANISH AND PORTUGUESE JEWISH,"5,190.29",21/12/2020
Delivery Units,Adults and Health,Other Agencies - Third Party P,0090315267,GUYSFIELD HOUSE,771.43,21/12/2020
Delivery Units,Adults and Health,Other Agencies - Third Party P,0090315269,EASTSIDE HOUSE CARE HOME,"3,580.00",21/12/2020
Delivery Units,Adults and Health,Other Agencies - Third Party P,0090315488,THE WOODSIDE HOME,"2,285.28",21/12/2020
Delivery Units,Adults and Health,Other Agencies - Third Party P,0090315489,THE WOODSIDE HOME,"2,458.20",21/12/2020
Delivery Units,Adults and Health,Other Agencies - Third Party P,0090315490,THE WOODSIDE HOME,"2,285.28",21/12/2020
Delivery Units,Adults and Health,Other Agencies - Third Party P,0090315491,THE WOODSIDE HOME,"2,285.28",21/12/2020
Delivery Units,Adults and Health,Other Agencies - Third Party P,0090315492,THE WOODSIDE HOME,"2,285.28",21/12/2020
Delivery Units,Adults and Health,Other Agencies - Third Party P,0090315493,WORDSWORTH HOUSE CARE HOME,"2,657.14",21/12/2020
Delivery Units,Adults and Health,Other Agencies - Third Party P,0090315522,METHODIST HOMES FOR THE AGED,"2,631.76",21/12/2020
Delivery Units,Adults and Health,Other Agencies - Third Party P,0090315769,WILTON HOUSE LTD,"2,621.01",21/12/2020
Delivery Units,Adults and Health,Other Agencies - Third Party P,0090315770,WILTON HOUSE LTD,"2,611.48",21/12/2020
Delivery Units,Adults and Health,Other Agencies - Third Party P,0090316332,TORRINGTON HOMES,"2,249.45",22/12/2020
Delivery Units,Adults and Health,Other Agencies - Third Party P,0090316333,TORRINGTON HOMES,"3,764.29",22/12/2020
Delivery Units,Adults and Health,Other Agencies - Third Party P,0090316334,TORRINGTON HOMES,"2,448.78",22/12/2020
Delivery Units,Adults and Health,Other Agencies - Third Party P,0090316337,B & M CARE,"3,764.29",22/12/2020
Delivery Units,Adults and Health,Other Agencies - Third Party P,0090316338,B & M CARE,"4,428.57",22/12/2020
Delivery Units,Adults and Health,Other Agencies - Third Party P,0090316722,SAFEQUARTER SOUTH LTD,"2,601.87",23/12/2020
Delivery Units,Adults and Health,Other Agencies - Third Party P,0090316728,B & M CARE,"2,171.43",23/12/2020
Delivery Units,Adults and Health,Other Agencies - Third Party P,0090316729,B & M CARE,"4,071.43",23/12/2020
Delivery Units,Adults and Health,Other Agencies - Third Party P,0090316730,B & M CARE,"4,207.14",23/12/2020
Delivery Units,Adults and Health,Other Agencies - Third Party P,0090317058,SONNET CARE HOMES (ESSEX) LTD,"4,871.43",24/12/2020
Delivery Units,Adults and Health,Other Agencies - Third Party P,0090316968,SCIMITAR CARE HOTELS PLC,"3,764.29",24/12/2020
Delivery Units,Adults and Health,Other Agencies - Third Party P,0090317042,BELMONT LODGE CARE CENTRE,"2,418.04",24/12/2020
Delivery Units,Adults and Health,Other Agencies - Third Party P,0090317062,Z & M CARE LTD,"2,600.00",24/12/2020
Delivery Units,Adults and Health,Other Agencies - Third Party P,0090318140,KARUNA MANOR,"4,207.14",29/12/2020
Delivery Units,Adults and Health,Other Agencies - Third Party P,0090318155,WORDSWORTH HOUSE CARE HOME,"2,571.43",29/12/2020
Delivery Units,Adults and Health,Other Transfer Payments to Soc,1006009001,ADVANCE HEALTHCARE UK LTD,392.96,30/12/2020
Delivery Units,Adults and Health,Other Agencies - Third Party P,0090318289,ASHFIELDS RESIDENTIAL CARE HOME,"2,892.86",30/12/2020
Delivery Units,Adults and Health,Other Agencies - Third Party P,0090318290,VENTRY RESIDENTIAL CARE LTD,"3,214.29",30/12/2020
Delivery Units,Adults and Health,Other Agencies - Third Party P,0090318291,ASHFIELDS RESIDENTIAL CARE HOME,"3,214.29",30/12/2020
Delivery Units,Adults and Health,Other Agencies - Third Party P,0090318292,ASHFIELDS RESIDENTIAL CARE HOME,"2,785.71",30/12/2020
Delivery Units,Adults and Health,Other Agencies - Third Party P,0090318293,VENTRY RESIDENTIAL CARE LTD,"1,071.43",30/12/2020
Delivery Units,Adults and Health,Other Agencies - Third Party P,0090318294,VENTRY RESIDENTIAL CARE LTD,"2,035.71",30/12/2020
Delivery Units,Adults and Health,Other Agencies - Third Party P,0090318295,VENTRY RESIDENTIAL CARE LTD,"3,000.00",30/12/2020
Delivery Units,Adults and Health,Other Agencies - Third Party P,0090318296,VENTRY RESIDENTIAL CARE LTD,428.57,30/12/2020
Delivery Units,Adults and Health,Other Agencies - Third Party P,0090318297,VENTRY RESIDENTIAL CARE - ERNEST DENE,"1,607.14",30/12/2020
Delivery Units,Adults and Health,Other Agencies - Third Party P,0090318299,VENTRY RESIDENTIAL CARE - ERNEST DENE,"3,214.29",30/12/2020
Delivery Units,Adults and Health,Other Agencies - Third Party P,0090318300,VENTRY RESIDENTIAL CARE - ERNEST DENE,"3,214.29",30/12/2020
Delivery Units,Adults and Health,Other Agencies - Third Party P,0090318301,CEDARS NURSING HOME,"4,428.57",30/12/2020
Delivery Units,Adults and Health,Other Agencies - Third Party P,0090309594,SURECARE BARNET & BRENT,710.85,03/12/2020
Delivery Units,Adults and Health,Other Agencies - Third Party P,0090309595,SURECARE BARNET & BRENT,304.64,03/12/2020
Delivery Units,Adults and Health,Other Agencies - Third Party P,0090309597,SURECARE BARNET & BRENT,473.90,03/12/2020
Delivery Units,Adults and Health,Other Agencies - Third Party P,0090309598,SURECARE BARNET & BRENT,227.28,03/12/2020
Delivery Units,Adults and Health,Other Agencies - Third Party P,0090309599,SURECARE BARNET & BRENT,169.26,03/12/2020
Delivery Units,Adults and Health,Other Agencies - Third Party P,0090309600,SURECARE BARNET & BRENT,236.95,03/12/2020
Delivery Units,Adults and Health,Other Agencies - Third Party P,0090309601,SURECARE BARNET & BRENT,236.95,03/12/2020
Delivery Units,Adults and Health,Other Agencies - Third Party P,0090309602,SURECARE BARNET & BRENT,706.02,03/12/2020
Delivery Units,Adults and Health,Other Agencies - Third Party P,0090309604,SURECARE BARNET & BRENT,222.41,03/12/2020
Delivery Units,Adults and Health,Other Agencies - Third Party P,0090309606,SURECARE BARNET & BRENT,58.02,03/12/2020
Delivery Units,Adults and Health,Other Agencies - Third Party P,0090309607,SURECARE BARNET & BRENT,676.90,03/12/2020
Delivery Units,Adults and Health,Other Agencies - Third Party P,0090309609,SURECARE BARNET & BRENT,270.76,03/12/2020
Delivery Units,Adults and Health,Other Agencies - Third Party P,0090309610,SURECARE BARNET & BRENT,120.90,03/12/2020
Delivery Units,Adults and Health,Other Agencies - Third Party P,0090309612,SURECARE BARNET & BRENT,507.71,03/12/2020
Delivery Units,Adults and Health,Other Agencies - Third Party P,0090309613,SURECARE BARNET & BRENT,135.38,03/12/2020
Delivery Units,Adults and Health,Other Agencies - Third Party P,0090309614,SURECARE BARNET & BRENT,377.13,03/12/2020
Delivery Units,Adults and Health,Other Agencies - Third Party P,0090309615,SURECARE BARNET & BRENT,290.10,03/12/2020
Delivery Units,Adults and Health,Other Agencies - Third Party P,0090309616,SURECARE BARNET & BRENT,710.85,03/12/2020
Delivery Units,Adults and Health,Other Agencies - Third Party P,0090309617,SURECARE BARNET & BRENT,304.64,03/12/2020
Delivery Units,Adults and Health,Other Agencies - Third Party P,0090309619,SURECARE BARNET & BRENT,473.90,03/12/2020
Delivery Units,Adults and Health,Other Agencies - Third Party P,0090309620,SURECARE BARNET & BRENT,227.28,03/12/2020
Delivery Units,Adults and Health,Other Agencies - Third Party P,0090309621,SURECARE BARNET & BRENT,169.26,03/12/2020
Delivery Units,Adults and Health,Other Agencies - Third Party P,0090309622,SURECARE BARNET & BRENT,236.95,03/12/2020
Delivery Units,Adults and Health,Other Agencies - Third Party P,0090309623,SURECARE BARNET & BRENT,236.95,03/12/2020
Delivery Units,Adults and Health,Other Agencies - Third Party P,0090309624,SURECARE BARNET & BRENT,710.85,03/12/2020
Delivery Units,Adults and Health,Other Agencies - Third Party P,0090309626,SURECARE BARNET & BRENT,222.41,03/12/2020
Delivery Units,Adults and Health,Other Agencies - Third Party P,0090309628,SURECARE BARNET & BRENT,58.02,03/12/2020
Delivery Units,Adults and Health,Other Agencies - Third Party P,0090309629,SURECARE BARNET & BRENT,676.90,03/12/2020
Delivery Units,Adults and Health,Other Agencies - Third Party P,0090309631,SURECARE BARNET & BRENT,270.76,03/12/2020
Delivery Units,Adults and Health,Other Agencies - Third Party P,0090309632,SURECARE BARNET & BRENT,106.39,03/12/2020
Delivery Units,Adults and Health,Other Agencies - Third Party P,0090309634,SURECARE BARNET & BRENT,507.71,03/12/2020
Delivery Units,Adults and Health,Other Agencies - Third Party P,0090309635,SURECARE BARNET & BRENT,135.38,03/12/2020
Delivery Units,Adults and Health,Other Agencies - Third Party P,0090309636,SURECARE BARNET & BRENT,362.71,03/12/2020
Delivery Units,Adults and Health,Other Agencies - Third Party P,0090309637,SURECARE BARNET & BRENT,377.13,03/12/2020
Delivery Units,Adults and Health,Other Agencies - Third Party P,0090309638,SURECARE BARNET & BRENT,290.10,03/12/2020
Delivery Units,Adults and Health,Other Agencies - Third Party P,0090309639,SURECARE BARNET & BRENT,372.30,03/12/2020
Delivery Units,Adults and Health,Other Agencies - Third Party P,0090309640,SURECARE BARNET & BRENT,710.85,03/12/2020
Delivery Units,Adults and Health,Other Agencies - Third Party P,0090309641,SURECARE BARNET & BRENT,304.64,03/12/2020
Delivery Units,Adults and Health,Other Agencies - Third Party P,0090309643,SURECARE BARNET & BRENT,473.90,03/12/2020
Delivery Units,Adults and Health,Other Agencies - Third Party P,0090309644,SURECARE BARNET & BRENT,227.28,03/12/2020
Delivery Units,Adults and Health,Other Agencies - Third Party P,0090309645,SURECARE BARNET & BRENT,169.26,03/12/2020
Delivery Units,Adults and Health,Other Agencies - Third Party P,0090309646,SURECARE BARNET & BRENT,236.95,03/12/2020
Delivery Units,Adults and Health,Other Agencies - Third Party P,0090309647,SURECARE BARNET & BRENT,236.95,03/12/2020
Delivery Units,Adults and Health,Other Agencies - Third Party P,0090309649,SURECARE BARNET & BRENT,125.71,03/12/2020
Delivery Units,Adults and Health,Other Agencies - Third Party P,0090309651,SURECARE BARNET & BRENT,58.02,03/12/2020
Delivery Units,Adults and Health,Other Agencies - Third Party P,0090309652,SURECARE BARNET & BRENT,676.90,03/12/2020
Delivery Units,Adults and Health,Other Agencies - Third Party P,0090309654,SURECARE BARNET & BRENT,270.76,03/12/2020
Delivery Units,Adults and Health,Other Agencies - Third Party P,0090309655,SURECARE BARNET & BRENT,169.26,03/12/2020
Delivery Units,Adults and Health,Other Agencies - Third Party P,0090309657,SURECARE BARNET & BRENT,507.71,03/12/2020
Delivery Units,Adults and Health,Other Agencies - Third Party P,0090309658,SURECARE BARNET & BRENT,135.38,03/12/2020
Delivery Units,Adults and Health,Other Agencies - Third Party P,0090309659,SURECARE BARNET & BRENT,178.93,03/12/2020
Delivery Units,Adults and Health,Other Agencies - Third Party P,0090309660,SURECARE BARNET & BRENT,406.14,03/12/2020
Delivery Units,Adults and Health,Other Agencies - Third Party P,0090309661,SURECARE BARNET & BRENT,290.10,03/12/2020
Delivery Units,Adults and Health,Other Agencies - Third Party P,0090309662,SURECARE BARNET & BRENT,372.30,03/12/2020
Delivery Units,Adults and Health,Other Agencies - Third Party P,0090309665,ANGELIC HEALTHCARE SERVICES LTD,"1,203.32",03/12/2020
Delivery Units,Adults and Health,Other Agencies - Third Party P,0090309666,ANGELIC HEALTHCARE SERVICES LTD,"1,638.02",03/12/2020
Delivery Units,Adults and Health,Other Agencies - Third Party P,0090309704,MI HOMECARE LIMITED,"1,023.29",03/12/2020
Delivery Units,Adults and Health,Other Agencies - Third Party P,0090309705,MI HOMECARE LIMITED,"1,032.29",03/12/2020
Delivery Units,Adults and Health,Other Agencies - Third Party P,0090309706,MI HOMECARE LIMITED,686.68,03/12/2020
Delivery Units,Adults and Health,Other Agencies - Third Party P,0090309707,MI HOMECARE LIMITED,350.16,03/12/2020
Delivery Units,Adults and Health,Other Agencies - Third Party P,0090309708,MI HOMECARE LIMITED,159.16,03/12/2020
Delivery Units,Adults and Health,Other Agencies - Third Party P,0090309709,MI HOMECARE LIMITED,857.24,03/12/2020
Delivery Units,Adults and Health,Other Agencies - Third Party P,0090309710,MI HOMECARE LIMITED,627.56,03/12/2020
Delivery Units,Adults and Health,Other Agencies - Third Party P,0090309714,MI HOMECARE LIMITED,329.72,03/12/2020
Delivery Units,Adults and Health,Other Agencies - Third Party P,0090309715,MI HOMECARE LIMITED,63.67,03/12/2020
Delivery Units,Adults and Health,Other Agencies - Third Party P,0090309716,MI HOMECARE LIMITED,40.86,03/12/2020
Delivery Units,Adults and Health,Other Agencies - Third Party P,0090309718,MI HOMECARE LIMITED,245.56,03/12/2020
Delivery Units,Adults and Health,Other Agencies - Third Party P,0090309719,MI HOMECARE LIMITED,204.64,03/12/2020
Delivery Units,Adults and Health,Other Agencies - Third Party P,0090309720,MI HOMECARE LIMITED,162.77,03/12/2020
Delivery Units,Adults and Health,Other Agencies - Third Party P,0090309721,MI HOMECARE LIMITED,241.02,03/12/2020
Delivery Units,Adults and Health,Other Agencies - Third Party P,0090309722,MI HOMECARE LIMITED,245.57,03/12/2020
Delivery Units,Adults and Health,Other Agencies - Third Party P,0090309723,SERVICESCALE LIMITED,278.31,03/12/2020
Delivery Units,Adults and Health,Other Agencies - Third Party P,0090309726,SERVICESCALE LIMITED,"1,610.56",03/12/2020
Delivery Units,Adults and Health,Other Agencies - Third Party P,0090309729,SERVICESCALE LIMITED,319.38,03/12/2020
Delivery Units,Adults and Health,Other Agencies - Third Party P,0090309730,SERVICESCALE LIMITED,223.56,03/12/2020
Delivery Units,Adults and Health,Other Agencies - Third Party P,0090309731,SERVICESCALE LIMITED,269.19,03/12/2020
Delivery Units,Adults and Health,Other Agencies - Third Party P,0090309733,SERVICESCALE LIMITED,"1,628.81",03/12/2020
Delivery Units,Adults and Health,Other Agencies - Third Party P,0090309735,SERVICESCALE LIMITED,223.56,03/12/2020
Delivery Units,Adults and Health,Other Agencies - Third Party P,0090309736,SERVICESCALE LIMITED,319.38,03/12/2020
Delivery Units,Adults and Health,Other Agencies - Third Party P,0090309737,SERVICESCALE LIMITED,281.42,03/12/2020
Delivery Units,Adults and Health,Other Agencies - Third Party P,0090309752,DEAFBLIND UK,"1,406.88",03/12/2020
Delivery Units,Adults and Health,Other Agencies - Third Party P,0090309759,DYNAMIC PEOPLE LTD,82.17,03/12/2020
Delivery Units,Adults and Health,Other Agencies - Third Party P,0090309760,DYNAMIC PEOPLE LTD,68.48,03/12/2020
Delivery Units,Adults and Health,Other Agencies - Third Party P,0090309761,DYNAMIC PEOPLE LTD,95.86,03/12/2020
Delivery Units,Adults and Health,Other Agencies - Third Party P,0090309762,DYNAMIC PEOPLE LTD,146.08,03/12/2020
Delivery Units,Adults and Health,Other Agencies - Third Party P,0090309763,DYNAMIC PEOPLE LTD,223.69,03/12/2020
Delivery Units,Adults and Health,Other Agencies - Third Party P,0090309764,DYNAMIC PEOPLE LTD,319.55,03/12/2020
Delivery Units,Adults and Health,Other Agencies - Third Party P,0090309766,DYNAMIC PEOPLE LTD,95.86,03/12/2020
Delivery Units,Adults and Health,Other Agencies - Third Party P,0090309768,DYNAMIC PEOPLE LTD,68.48,03/12/2020
Delivery Units,Adults and Health,Other Agencies - Third Party P,0090309769,DYNAMIC PEOPLE LTD,287.60,03/12/2020
Delivery Units,Adults and Health,Other Agencies - Third Party P,0090309770,DYNAMIC PEOPLE LTD,214.56,03/12/2020
Delivery Units,Adults and Health,Other Agencies - Third Party P,0090309773,DYNAMIC PEOPLE LTD,59.35,03/12/2020
Delivery Units,Adults and Health,Other Agencies - Third Party P,0090309775,DYNAMIC PEOPLE LTD,159.78,03/12/2020
Delivery Units,Adults and Health,Other Agencies - Third Party P,0090309777,DYNAMIC PEOPLE LTD,54.78,03/12/2020
Delivery Units,Adults and Health,Other Agencies - Third Party P,0090309778,DYNAMIC PEOPLE LTD,127.82,03/12/2020
Delivery Units,Adults and Health,Other Agencies - Third Party P,0090309779,DYNAMIC PEOPLE LTD,141.52,03/12/2020
Delivery Units,Adults and Health,Other Agencies - Third Party P,0090309780,DYNAMIC PEOPLE LTD,68.48,03/12/2020
Delivery Units,Adults and Health,Other Agencies - Third Party P,0090309781,DYNAMIC PEOPLE LTD,109.56,03/12/2020
Delivery Units,Adults and Health,Other Agencies - Third Party P,0090309782,DYNAMIC PEOPLE LTD,287.60,03/12/2020
Delivery Units,Adults and Health,Other Agencies - Third Party P,0090309783,DYNAMIC PEOPLE LTD,520.41,03/12/2020
Delivery Units,Adults and Health,Other Agencies - Third Party P,0090309785,DYNAMIC PEOPLE LTD,383.46,03/12/2020
Delivery Units,Adults and Health,Other Agencies - Third Party P,0090309786,DYNAMIC PEOPLE LTD,109.56,03/12/2020
Delivery Units,Adults and Health,Other Agencies - Third Party P,0090309788,DYNAMIC PEOPLE LTD,255.64,03/12/2020
Delivery Units,Adults and Health,Other Agencies - Third Party P,0090309790,DYNAMIC PEOPLE LTD,273.90,03/12/2020
Delivery Units,Adults and Health,Other Agencies - Third Party P,0090309791,DYNAMIC PEOPLE LTD,13.70,03/12/2020
Delivery Units,Adults and Health,Other Agencies - Third Party P,0090309792,DYNAMIC PEOPLE LTD,223.69,03/12/2020
Delivery Units,Adults and Health,Other Agencies - Third Party P,0090309793,DYNAMIC PEOPLE LTD,63.91,03/12/2020
Delivery Units,Adults and Health,Other Agencies - Third Party P,0090309794,DYNAMIC PEOPLE LTD,159.78,03/12/2020
Delivery Units,Adults and Health,Other Agencies - Third Party P,0090309799,DYNAMIC PEOPLE LTD,41.08,03/12/2020
Delivery Units,Adults and Health,Other Agencies - Third Party P,0090309801,DYNAMIC PEOPLE LTD,95.86,03/12/2020
Delivery Units,Adults and Health,Other Agencies - Third Party P,0090309803,DYNAMIC PEOPLE LTD,95.86,03/12/2020
Delivery Units,Adults and Health,Other Agencies - Third Party P,0090309805,DYNAMIC PEOPLE LTD,127.82,03/12/2020
Delivery Units,Adults and Health,Other Agencies - Third Party P,0090309806,DYNAMIC PEOPLE LTD,95.86,03/12/2020
Delivery Units,Adults and Health,Other Agencies - Third Party P,0090309808,DYNAMIC PEOPLE LTD,319.55,03/12/2020
Delivery Units,Adults and Health,Other Agencies - Third Party P,0090309810,DYNAMIC PEOPLE LTD,36.52,03/12/2020
Delivery Units,Adults and Health,Other Agencies - Third Party P,0090309811,DYNAMIC PEOPLE LTD,351.51,03/12/2020
Delivery Units,Adults and Health,Other Agencies - Third Party P,0090309812,DYNAMIC PEOPLE LTD,54.78,03/12/2020
Delivery Units,Adults and Health,Other Agencies - Third Party P,0090309813,DYNAMIC PEOPLE LTD,703.01,03/12/2020
Delivery Units,Adults and Health,Other Agencies - Third Party P,0090309814,DYNAMIC PEOPLE LTD,159.78,03/12/2020
Delivery Units,Adults and Health,Other Agencies - Third Party P,0090309815,DYNAMIC PEOPLE LTD,136.95,03/12/2020
Delivery Units,Adults and Health,Other Agencies - Third Party P,0090309817,DYNAMIC PEOPLE LTD,671.06,03/12/2020
Delivery Units,Adults and Health,Other Agencies - Third Party P,0090309818,DYNAMIC PEOPLE LTD,319.55,03/12/2020
Delivery Units,Adults and Health,Other Agencies - Third Party P,0090309819,DYNAMIC PEOPLE LTD,214.56,03/12/2020
Delivery Units,Adults and Health,Other Agencies - Third Party P,0090309820,DYNAMIC PEOPLE LTD,223.69,03/12/2020
Delivery Units,Adults and Health,Other Agencies - Third Party P,0090309821,DYNAMIC PEOPLE LTD,415.42,03/12/2020
Delivery Units,Adults and Health,Other Agencies - Third Party P,0090309822,DYNAMIC PEOPLE LTD,141.52,03/12/2020
Delivery Units,Adults and Health,Other Agencies - Third Party P,0090309823,DYNAMIC PEOPLE LTD,68.48,03/12/2020
Delivery Units,Adults and Health,Other Agencies - Third Party P,0090309824,DYNAMIC PEOPLE LTD,73.04,03/12/2020
Delivery Units,Adults and Health,Other Agencies - Third Party P,0090309825,DYNAMIC PEOPLE LTD,223.69,03/12/2020
Delivery Units,Adults and Health,Other Agencies - Third Party P,0090309826,DYNAMIC PEOPLE LTD,305.86,03/12/2020
Delivery Units,Adults and Health,Other Agencies - Third Party P,0090309827,DYNAMIC PEOPLE LTD,369.77,03/12/2020
Delivery Units,Adults and Health,Other Agencies - Third Party P,0090309828,DYNAMIC PEOPLE LTD,68.48,03/12/2020
Delivery Units,Adults and Health,Other Agencies - Third Party P,0090309830,DYNAMIC PEOPLE LTD,95.86,03/12/2020
Delivery Units,Adults and Health,Other Agencies - Third Party P,0090309831,DYNAMIC PEOPLE LTD,95.86,03/12/2020
Delivery Units,Adults and Health,Other Agencies - Third Party P,0090309833,DYNAMIC PEOPLE LTD,150.65,03/12/2020
Delivery Units,Adults and Health,Other Agencies - Third Party P,0090309834,DYNAMIC PEOPLE LTD,100.43,03/12/2020
Delivery Units,Adults and Health,Other Agencies - Third Party P,0090309836,DYNAMIC PEOPLE LTD,292.16,03/12/2020
Delivery Units,Adults and Health,Other Agencies - Third Party P,0090309837,DYNAMIC PEOPLE LTD,319.55,03/12/2020
Delivery Units,Adults and Health,Other Agencies - Third Party P,0090309838,DYNAMIC PEOPLE LTD,264.77,03/12/2020
Delivery Units,Adults and Health,Other Agencies - Third Party P,0090309839,DYNAMIC PEOPLE LTD,95.86,03/12/2020
Delivery Units,Adults and Health,Other Agencies - Third Party P,0090309840,DYNAMIC PEOPLE LTD,141.52,03/12/2020
Delivery Units,Adults and Health,Other Agencies - Third Party P,0090309841,DYNAMIC PEOPLE LTD,255.64,03/12/2020
Delivery Units,Adults and Health,Other Agencies - Third Party P,0090309843,DYNAMIC PEOPLE LTD,269.34,03/12/2020
Delivery Units,Adults and Health,Other Agencies - Third Party P,0090309844,DYNAMIC PEOPLE LTD,447.37,03/12/2020
Delivery Units,Adults and Health,Other Agencies - Third Party P,0090309845,DYNAMIC PEOPLE LTD,273.90,03/12/2020
Delivery Units,Adults and Health,Other Agencies - Third Party P,0090309846,DYNAMIC PEOPLE LTD,511.28,03/12/2020
Delivery Units,Adults and Health,Other Agencies - Third Party P,0090309847,DYNAMIC PEOPLE LTD,73.04,03/12/2020
Delivery Units,Adults and Health,Other Agencies - Third Party P,0090309848,DYNAMIC PEOPLE LTD,136.95,03/12/2020
Delivery Units,Adults and Health,Other Agencies - Third Party P,0090309849,DYNAMIC PEOPLE LTD,319.55,03/12/2020
Delivery Units,Adults and Health,Other Agencies - Third Party P,0090309850,DYNAMIC PEOPLE LTD,95.86,03/12/2020
Delivery Units,Adults and Health,Other Agencies - Third Party P,0090309851,DYNAMIC PEOPLE LTD,159.78,03/12/2020
Delivery Units,Adults and Health,Other Agencies - Third Party P,0090309853,DYNAMIC PEOPLE LTD,159.78,03/12/2020
Delivery Units,Adults and Health,Other Agencies - Third Party P,0090309855,DYNAMIC PEOPLE LTD,337.81,03/12/2020
Delivery Units,Adults and Health,Other Agencies - Third Party P,0090309857,DYNAMIC PEOPLE LTD,200.86,03/12/2020
Delivery Units,Adults and Health,Other Agencies - Third Party P,0090309858,DYNAMIC PEOPLE LTD,182.60,03/12/2020
Delivery Units,Adults and Health,Other Agencies - Third Party P,0090309861,DYNAMIC PEOPLE LTD,191.73,03/12/2020
Delivery Units,Adults and Health,Other Agencies - Third Party P,0090309864,DYNAMIC PEOPLE LTD,260.21,03/12/2020
Delivery Units,Adults and Health,Other Agencies - Third Party P,0090309865,DYNAMIC PEOPLE LTD,296.73,03/12/2020
Delivery Units,Adults and Health,Other Agencies - Third Party P,0090309866,DYNAMIC PEOPLE LTD,95.86,03/12/2020
Delivery Units,Adults and Health,Other Agencies - Third Party P,0090309868,DYNAMIC PEOPLE LTD,639.10,03/12/2020
Delivery Units,Adults and Health,Other Agencies - Third Party P,0090309869,DYNAMIC PEOPLE LTD,91.30,03/12/2020
Delivery Units,Adults and Health,Other Agencies - Third Party P,0090309870,DYNAMIC PEOPLE LTD,73.04,03/12/2020
Delivery Units,Adults and Health,Other Agencies - Third Party P,0090309872,DYNAMIC PEOPLE LTD,54.78,03/12/2020
Delivery Units,Adults and Health,Other Agencies - Third Party P,0090309873,DYNAMIC PEOPLE LTD,68.48,03/12/2020
Delivery Units,Adults and Health,Other Agencies - Third Party P,0090309874,DYNAMIC PEOPLE LTD,200.86,03/12/2020
Delivery Units,Adults and Health,Other Agencies - Third Party P,0090309875,DYNAMIC PEOPLE LTD,223.69,03/12/2020
Delivery Units,Adults and Health,Other Agencies - Third Party P,0090309876,DYNAMIC PEOPLE LTD,575.19,03/12/2020
Delivery Units,Adults and Health,Other Agencies - Third Party P,0090309877,DYNAMIC PEOPLE LTD,18.26,03/12/2020
Delivery Units,Adults and Health,Other Agencies - Third Party P,0090309878,DYNAMIC PEOPLE LTD,68.48,03/12/2020
Delivery Units,Adults and Health,Other Agencies - Third Party P,0090309879,DYNAMIC PEOPLE LTD,45.65,03/12/2020
Delivery Units,Adults and Health,Other Agencies - Third Party P,0090309880,DYNAMIC PEOPLE LTD,73.04,03/12/2020
Delivery Units,Adults and Health,Other Agencies - Third Party P,0090309881,DYNAMIC PEOPLE LTD,54.78,03/12/2020
Delivery Units,Adults and Health,Other Agencies - Third Party P,0090309882,DYNAMIC PEOPLE LTD,18.26,03/12/2020
Delivery Units,Adults and Health,Other Agencies - Third Party P,0090309883,DYNAMIC PEOPLE LTD,54.78,03/12/2020
Delivery Units,Adults and Health,Other Agencies - Third Party P,0090309885,DYNAMIC PEOPLE LTD,200.86,03/12/2020
Delivery Units,Adults and Health,Other Agencies - Third Party P,0090309886,DYNAMIC PEOPLE LTD,27.39,03/12/2020
Delivery Units,Adults and Health,Other Agencies - Third Party P,0090309887,DYNAMIC PEOPLE LTD,337.81,03/12/2020
Delivery Units,Adults and Health,Other Agencies - Third Party P,0090309888,DYNAMIC PEOPLE LTD,319.55,03/12/2020
Delivery Units,Adults and Health,Other Agencies - Third Party P,0090309889,DYNAMIC PEOPLE LTD,337.81,03/12/2020
Delivery Units,Adults and Health,Other Agencies - Third Party P,0090309890,DYNAMIC PEOPLE LTD,287.60,03/12/2020
Delivery Units,Adults and Health,Other Agencies - Third Party P,0090309891,DYNAMIC PEOPLE LTD,95.86,03/12/2020
Delivery Units,Adults and Health,Other Agencies - Third Party P,0090309893,DYNAMIC PEOPLE LTD,91.30,03/12/2020
Delivery Units,Adults and Health,Other Agencies - Third Party P,0090309894,DYNAMIC PEOPLE LTD,292.16,03/12/2020
Delivery Units,Adults and Health,Other Agencies - Third Party P,0090309895,DYNAMIC PEOPLE LTD,100.43,03/12/2020
Delivery Units,Adults and Health,Other Agencies - Third Party P,0090309896,DYNAMIC PEOPLE LTD,95.86,03/12/2020
Delivery Units,Adults and Health,Other Agencies - Third Party P,0090309897,DYNAMIC PEOPLE LTD,27.39,03/12/2020
Delivery Units,Adults and Health,Other Agencies - Third Party P,0090309898,DYNAMIC PEOPLE LTD,95.86,03/12/2020
Delivery Units,Adults and Health,Other Agencies - Third Party P,0090309899,DYNAMIC PEOPLE LTD,127.82,03/12/2020
Delivery Units,Adults and Health,Other Agencies - Third Party P,0090309901,DYNAMIC PEOPLE LTD,511.28,03/12/2020
Delivery Units,Adults and Health,Other Agencies - Third Party P,0090309904,DYNAMIC PEOPLE LTD,82.17,03/12/2020
Delivery Units,Adults and Health,Other Agencies - Third Party P,0090309905,DYNAMIC PEOPLE LTD,68.48,03/12/2020
Delivery Units,Adults and Health,Other Agencies - Third Party P,0090309906,DYNAMIC PEOPLE LTD,95.86,03/12/2020
Delivery Units,Adults and Health,Other Agencies - Third Party P,0090309907,DYNAMIC PEOPLE LTD,146.08,03/12/2020
Delivery Units,Adults and Health,Other Agencies - Third Party P,0090309908,DYNAMIC PEOPLE LTD,223.69,03/12/2020
Delivery Units,Adults and Health,Other Agencies - Third Party P,0090309909,DYNAMIC PEOPLE LTD,319.55,03/12/2020
Delivery Units,Adults and Health,Other Agencies - Third Party P,0090309911,DYNAMIC PEOPLE LTD,95.86,03/12/2020
Delivery Units,Adults and Health,Other Agencies - Third Party P,0090309913,DYNAMIC PEOPLE LTD,68.48,03/12/2020
Delivery Units,Adults and Health,Other Agencies - Third Party P,0090309914,DYNAMIC PEOPLE LTD,287.60,03/12/2020
Delivery Units,Adults and Health,Other Agencies - Third Party P,0090309915,DYNAMIC PEOPLE LTD,214.56,03/12/2020
Delivery Units,Adults and Health,Other Agencies - Third Party P,0090309918,DYNAMIC PEOPLE LTD,59.35,03/12/2020
Delivery Units,Adults and Health,Other Agencies - Third Party P,0090309920,DYNAMIC PEOPLE LTD,159.78,03/12/2020
Delivery Units,Adults and Health,Other Agencies - Third Party P,0090309922,DYNAMIC PEOPLE LTD,54.78,03/12/2020
Delivery Units,Adults and Health,Other Agencies - Third Party P,0090309923,DYNAMIC PEOPLE LTD,127.82,03/12/2020
Delivery Units,Adults and Health,Other Agencies - Third Party P,0090309924,DYNAMIC PEOPLE LTD,141.52,03/12/2020
Delivery Units,Adults and Health,Other Agencies - Third Party P,0090309925,DYNAMIC PEOPLE LTD,68.48,03/12/2020
Delivery Units,Adults and Health,Other Agencies - Third Party P,0090309926,DYNAMIC PEOPLE LTD,109.56,03/12/2020
Delivery Units,Adults and Health,Other Agencies - Third Party P,0090309927,DYNAMIC PEOPLE LTD,287.60,03/12/2020
Delivery Units,Adults and Health,Other Agencies - Third Party P,0090309928,DYNAMIC PEOPLE LTD,511.28,03/12/2020
Delivery Units,Adults and Health,Other Agencies - Third Party P,0090309930,DYNAMIC PEOPLE LTD,319.55,03/12/2020
Delivery Units,Adults and Health,Other Agencies - Third Party P,0090309931,DYNAMIC PEOPLE LTD,109.56,03/12/2020
Delivery Units,Adults and Health,Other Agencies - Third Party P,0090309933,DYNAMIC PEOPLE LTD,255.64,03/12/2020
Delivery Units,Adults and Health,Other Agencies - Third Party P,0090309935,DYNAMIC PEOPLE LTD,351.51,03/12/2020
Delivery Units,Adults and Health,Other Agencies - Third Party P,0090309936,DYNAMIC PEOPLE LTD,95.86,03/12/2020
Delivery Units,Adults and Health,Other Agencies - Third Party P,0090309937,DYNAMIC PEOPLE LTD,223.69,03/12/2020
Delivery Units,Adults and Health,Other Agencies - Third Party P,0090309938,DYNAMIC PEOPLE LTD,63.91,03/12/2020
Delivery Units,Adults and Health,Other Agencies - Third Party P,0090309939,DYNAMIC PEOPLE LTD,159.78,03/12/2020
Delivery Units,Adults and Health,Other Agencies - Third Party P,0090309944,DYNAMIC PEOPLE LTD,41.08,03/12/2020
Delivery Units,Adults and Health,Other Agencies - Third Party P,0090309946,DYNAMIC PEOPLE LTD,95.86,03/12/2020
Delivery Units,Adults and Health,Other Agencies - Third Party P,0090309948,DYNAMIC PEOPLE LTD,95.86,03/12/2020
Delivery Units,Adults and Health,Other Agencies - Third Party P,0090309950,DYNAMIC PEOPLE LTD,127.82,03/12/2020
Delivery Units,Adults and Health,Other Agencies - Third Party P,0090309951,DYNAMIC PEOPLE LTD,95.86,03/12/2020
Delivery Units,Adults and Health,Other Agencies - Third Party P,0090309954,DYNAMIC PEOPLE LTD,36.52,03/12/2020
Delivery Units,Adults and Health,Other Agencies - Third Party P,0090309955,DYNAMIC PEOPLE LTD,351.51,03/12/2020
Delivery Units,Adults and Health,Other Agencies - Third Party P,0090309956,DYNAMIC PEOPLE LTD,109.56,03/12/2020
Delivery Units,Adults and Health,Other Agencies - Third Party P,0090309957,DYNAMIC PEOPLE LTD,703.01,03/12/2020
Delivery Units,Adults and Health,Other Agencies - Third Party P,0090309958,DYNAMIC PEOPLE LTD,159.78,03/12/2020
Delivery Units,Adults and Health,Other Agencies - Third Party P,0090309959,DYNAMIC PEOPLE LTD,136.95,03/12/2020
Delivery Units,Adults and Health,Other Agencies - Third Party P,0090309961,DYNAMIC PEOPLE LTD,671.06,03/12/2020
Delivery Units,Adults and Health,Other Agencies - Third Party P,0090309962,DYNAMIC PEOPLE LTD,319.55,03/12/2020
Delivery Units,Adults and Health,Other Agencies - Third Party P,0090309963,DYNAMIC PEOPLE LTD,214.56,03/12/2020
Delivery Units,Adults and Health,Other Agencies - Third Party P,0090309964,DYNAMIC PEOPLE LTD,223.69,03/12/2020
Delivery Units,Adults and Health,Other Agencies - Third Party P,0090309965,DYNAMIC PEOPLE LTD,415.42,03/12/2020
Delivery Units,Adults and Health,Other Agencies - Third Party P,0090309966,DYNAMIC PEOPLE LTD,141.52,03/12/2020
Delivery Units,Adults and Health,Other Agencies - Third Party P,0090309967,DYNAMIC PEOPLE LTD,73.04,03/12/2020
Delivery Units,Adults and Health,Other Agencies - Third Party P,0090309968,DYNAMIC PEOPLE LTD,223.69,03/12/2020
Delivery Units,Adults and Health,Other Agencies - Third Party P,0090309969,DYNAMIC PEOPLE LTD,305.86,03/12/2020
Delivery Units,Adults and Health,Other Agencies - Third Party P,0090309970,DYNAMIC PEOPLE LTD,369.77,03/12/2020
Delivery Units,Adults and Health,Other Agencies - Third Party P,0090309971,DYNAMIC PEOPLE LTD,68.48,03/12/2020
Delivery Units,Adults and Health,Other Agencies - Third Party P,0090309973,DYNAMIC PEOPLE LTD,95.86,03/12/2020
Delivery Units,Adults and Health,Other Agencies - Third Party P,0090309974,DYNAMIC PEOPLE LTD,95.86,03/12/2020
Delivery Units,Adults and Health,Other Agencies - Third Party P,0090309976,DYNAMIC PEOPLE LTD,100.43,03/12/2020
Delivery Units,Adults and Health,Other Agencies - Third Party P,0090309978,DYNAMIC PEOPLE LTD,319.55,03/12/2020
Delivery Units,Adults and Health,Other Agencies - Third Party P,0090309979,DYNAMIC PEOPLE LTD,319.55,03/12/2020
Delivery Units,Adults and Health,Other Agencies - Third Party P,0090309980,DYNAMIC PEOPLE LTD,264.77,03/12/2020
Delivery Units,Adults and Health,Other Agencies - Third Party P,0090309981,DYNAMIC PEOPLE LTD,95.86,03/12/2020
Delivery Units,Adults and Health,Other Agencies - Third Party P,0090309982,DYNAMIC PEOPLE LTD,141.52,03/12/2020
Delivery Units,Adults and Health,Other Agencies - Third Party P,0090309983,DYNAMIC PEOPLE LTD,255.64,03/12/2020
Delivery Units,Adults and Health,Other Agencies - Third Party P,0090309985,DYNAMIC PEOPLE LTD,273.90,03/12/2020
Delivery Units,Adults and Health,Other Agencies - Third Party P,0090309986,DYNAMIC PEOPLE LTD,447.37,03/12/2020
Delivery Units,Adults and Health,Other Agencies - Third Party P,0090309987,DYNAMIC PEOPLE LTD,264.77,03/12/2020
Delivery Units,Adults and Health,Other Agencies - Third Party P,0090309988,DYNAMIC PEOPLE LTD,511.28,03/12/2020
Delivery Units,Adults and Health,Other Agencies - Third Party P,0090309989,DYNAMIC PEOPLE LTD,73.04,03/12/2020
Delivery Units,Adults and Health,Other Agencies - Third Party P,0090309990,DYNAMIC PEOPLE LTD,319.55,03/12/2020
Delivery Units,Adults and Health,Other Agencies - Third Party P,0090309991,DYNAMIC PEOPLE LTD,95.86,03/12/2020
Delivery Units,Adults and Health,Other Agencies - Third Party P,0090309992,DYNAMIC PEOPLE LTD,159.78,03/12/2020
Delivery Units,Adults and Health,Other Agencies - Third Party P,0090309994,DYNAMIC PEOPLE LTD,159.78,03/12/2020
Delivery Units,Adults and Health,Other Agencies - Third Party P,0090309996,DYNAMIC PEOPLE LTD,337.81,03/12/2020
Delivery Units,Adults and Health,Other Agencies - Third Party P,0090309998,DYNAMIC PEOPLE LTD,191.73,03/12/2020
Delivery Units,Adults and Health,Other Agencies - Third Party P,0090310001,DYNAMIC PEOPLE LTD,191.73,03/12/2020
Delivery Units,Adults and Health,Other Agencies - Third Party P,0090310004,DYNAMIC PEOPLE LTD,287.60,03/12/2020
Delivery Units,Adults and Health,Other Agencies - Third Party P,0090310005,DYNAMIC PEOPLE LTD,296.73,03/12/2020
Delivery Units,Adults and Health,Other Agencies - Third Party P,0090310006,DYNAMIC PEOPLE LTD,95.86,03/12/2020
Delivery Units,Adults and Health,Other Agencies - Third Party P,0090310007,DYNAMIC PEOPLE LTD,639.10,03/12/2020
Delivery Units,Adults and Health,Other Agencies - Third Party P,0090310008,DYNAMIC PEOPLE LTD,91.30,03/12/2020
Delivery Units,Adults and Health,Other Agencies - Third Party P,0090310009,DYNAMIC PEOPLE LTD,54.78,03/12/2020
Delivery Units,Adults and Health,Other Agencies - Third Party P,0090310011,DYNAMIC PEOPLE LTD,54.78,03/12/2020
Delivery Units,Adults and Health,Other Agencies - Third Party P,0090310012,DYNAMIC PEOPLE LTD,68.48,03/12/2020
Delivery Units,Adults and Health,Other Agencies - Third Party P,0090310013,DYNAMIC PEOPLE LTD,200.86,03/12/2020
Delivery Units,Adults and Health,Other Agencies - Third Party P,0090310014,DYNAMIC PEOPLE LTD,223.69,03/12/2020
Delivery Units,Adults and Health,Other Agencies - Third Party P,0090310015,DYNAMIC PEOPLE LTD,415.42,03/12/2020
Delivery Units,Adults and Health,Other Agencies - Third Party P,0090310016,DYNAMIC PEOPLE LTD,27.39,03/12/2020
Delivery Units,Adults and Health,Other Agencies - Third Party P,0090310017,DYNAMIC PEOPLE LTD,95.86,03/12/2020
Delivery Units,Adults and Health,Other Agencies - Third Party P,0090310018,DYNAMIC PEOPLE LTD,54.78,03/12/2020
Delivery Units,Adults and Health,Other Agencies - Third Party P,0090310019,DYNAMIC PEOPLE LTD,127.82,03/12/2020
Delivery Units,Adults and Health,Other Agencies - Third Party P,0090310020,DYNAMIC PEOPLE LTD,127.82,03/12/2020
Delivery Units,Adults and Health,Other Agencies - Third Party P,0090310021,DYNAMIC PEOPLE LTD,127.82,03/12/2020
Delivery Units,Adults and Health,Other Agencies - Third Party P,0090310023,DYNAMIC PEOPLE LTD,54.78,03/12/2020
Delivery Units,Adults and Health,Other Agencies - Third Party P,0090310024,DYNAMIC PEOPLE LTD,73.04,03/12/2020
Delivery Units,Adults and Health,Other Agencies - Third Party P,0090310025,DYNAMIC PEOPLE LTD,730.40,03/12/2020
Delivery Units,Adults and Health,Other Agencies - Third Party P,0090310028,DYNAMIC PEOPLE LTD,9.13,03/12/2020
Delivery Units,Adults and Health,Other Agencies - Third Party P,0090310030,DYNAMIC PEOPLE LTD,200.86,03/12/2020
Delivery Units,Adults and Health,Other Agencies - Third Party P,0090310031,DYNAMIC PEOPLE LTD,27.39,03/12/2020
Delivery Units,Adults and Health,Other Agencies - Third Party P,0090310032,DYNAMIC PEOPLE LTD,337.81,03/12/2020
Delivery Units,Adults and Health,Other Agencies - Third Party P,0090310033,DYNAMIC PEOPLE LTD,319.55,03/12/2020
Delivery Units,Adults and Health,Other Agencies - Third Party P,0090310034,DYNAMIC PEOPLE LTD,337.81,03/12/2020
Delivery Units,Adults and Health,Other Agencies - Third Party P,0090310035,DYNAMIC PEOPLE LTD,287.60,03/12/2020
Delivery Units,Adults and Health,Other Agencies - Third Party P,0090310036,DYNAMIC PEOPLE LTD,95.86,03/12/2020
Delivery Units,Adults and Health,Other Agencies - Third Party P,0090310038,DYNAMIC PEOPLE LTD,91.30,03/12/2020
Delivery Units,Adults and Health,Other Agencies - Third Party P,0090310039,DYNAMIC PEOPLE LTD,292.16,03/12/2020
Delivery Units,Adults and Health,Other Agencies - Third Party P,0090310040,DYNAMIC PEOPLE LTD,100.43,03/12/2020
Delivery Units,Adults and Health,Other Agencies - Third Party P,0090310041,DYNAMIC PEOPLE LTD,95.86,03/12/2020
Delivery Units,Adults and Health,Other Agencies - Third Party P,0090310042,DYNAMIC PEOPLE LTD,27.39,03/12/2020
Delivery Units,Adults and Health,Other Agencies - Third Party P,0090310043,DYNAMIC PEOPLE LTD,95.86,03/12/2020
Delivery Units,Adults and Health,Other Agencies - Third Party P,0090310044,DYNAMIC PEOPLE LTD,127.82,03/12/2020
Delivery Units,Adults and Health,Other Agencies - Third Party P,0090310046,DYNAMIC PEOPLE LTD,511.28,03/12/2020
Delivery Units,Adults and Health,Other Agencies - Third Party P,0090310049,MAYFAIR HOMECARE LTD,749.25,03/12/2020
Delivery Units,Adults and Health,Other Agencies - Third Party P,0090310050,MAYFAIR HOMECARE LTD,419.58,03/12/2020
Delivery Units,Adults and Health,Other Agencies - Third Party P,0090310052,MAYFAIR HOMECARE LTD,"1,298.70",03/12/2020
Delivery Units,Adults and Health,Other Agencies - Third Party P,0090310053,MAYFAIR HOMECARE LTD,594.41,03/12/2020
Delivery Units,Adults and Health,Other Agencies - Third Party P,0090310056,MAYFAIR HOMECARE LTD,714.29,03/12/2020
Delivery Units,Adults and Health,Other Agencies - Third Party P,0090310057,MAYFAIR HOMECARE LTD,"1,478.52",03/12/2020
Delivery Units,Adults and Health,Other Agencies - Third Party P,0090310058,MAYFAIR HOMECARE LTD,"1,638.36",03/12/2020
Delivery Units,Adults and Health,Other Agencies - Third Party P,0090310059,MAYFAIR HOMECARE LTD,39.96,03/12/2020
Delivery Units,Adults and Health,Other Agencies - Third Party P,0090310060,MAYFAIR HOMECARE LTD,479.52,03/12/2020
Delivery Units,Adults and Health,Other Agencies - Third Party P,0090310061,MAYFAIR HOMECARE LTD,"1,518.48",03/12/2020
Delivery Units,Adults and Health,Other Agencies - Third Party P,0090310062,MAYFAIR HOMECARE LTD,"1,198.80",03/12/2020
Delivery Units,Adults and Health,Other Agencies - Third Party P,0090310063,MAYFAIR HOMECARE LTD,79.92,03/12/2020
Delivery Units,Adults and Health,Other Agencies - Third Party P,0090310066,MAYFAIR HOMECARE LTD,829.17,03/12/2020
Delivery Units,Adults and Health,Other Agencies - Third Party P,0090310067,MAYFAIR HOMECARE LTD,"1,408.59",03/12/2020
Delivery Units,Adults and Health,Other Agencies - Third Party P,0090310068,MAYFAIR HOMECARE LTD,139.86,03/12/2020
Delivery Units,Adults and Health,Other Agencies - Third Party P,0090310069,MAYFAIR HOMECARE LTD,"1,598.40",03/12/2020
Delivery Units,Adults and Health,Other Agencies - Third Party P,0090310071,MAYFAIR HOMECARE LTD,859.14,03/12/2020
Delivery Units,Adults and Health,Other Agencies - Third Party P,0090310072,MAYFAIR HOMECARE LTD,419.58,03/12/2020
Delivery Units,Adults and Health,Other Agencies - Third Party P,0090310075,MAYFAIR HOMECARE LTD,"1,398.60",03/12/2020
Delivery Units,Adults and Health,Other Agencies - Third Party P,0090310078,MAYFAIR HOMECARE LTD,979.02,03/12/2020
Delivery Units,Adults and Health,Other Agencies - Third Party P,0090310082,MAYFAIR HOMECARE LTD,"1,118.88",03/12/2020
Delivery Units,Adults and Health,Other Agencies - Third Party P,0090310084,MAYFAIR HOMECARE LTD,"1,478.52",03/12/2020
Delivery Units,Adults and Health,Other Agencies - Third Party P,0090310085,MAYFAIR HOMECARE LTD,729.27,03/12/2020
Delivery Units,Adults and Health,Other Agencies - Third Party P,0090310086,MAYFAIR HOMECARE LTD,"1,532.47",03/12/2020
Delivery Units,Adults and Health,Other Agencies - Third Party P,0090310087,MAYFAIR HOMECARE LTD,"1,518.48",03/12/2020
Delivery Units,Adults and Health,Other Agencies - Third Party P,0090310088,MAYFAIR HOMECARE LTD,559.44,03/12/2020
Delivery Units,Adults and Health,Other Agencies - Third Party P,0090310089,MAYFAIR HOMECARE LTD,"1,298.70",03/12/2020
Delivery Units,Adults and Health,Other Agencies - Third Party P,0090310091,MAYFAIR HOMECARE LTD,"1,198.80",03/12/2020
Delivery Units,Adults and Health,Other Agencies - Third Party P,0090310093,MAYFAIR HOMECARE LTD,499.50,03/12/2020
Delivery Units,Adults and Health,Other Agencies - Third Party P,0090310096,MAYFAIR HOMECARE LTD,"1,118.88",03/12/2020
Delivery Units,Adults and Health,Other Agencies - Third Party P,0090310097,MAYFAIR HOMECARE LTD,19.98,03/12/2020
Delivery Units,Adults and Health,Other Agencies - Third Party P,0090310102,MAYFAIR HOMECARE LTD,"1,398.60",03/12/2020
Delivery Units,Adults and Health,Other Agencies - Third Party P,0090310103,MAYFAIR HOMECARE LTD,159.84,03/12/2020
Delivery Units,Adults and Health,Other Agencies - Third Party P,0090309757,SOMA HEALTHCARE LTD,841.75,03/12/2020
Delivery Units,Adults and Health,Other Agencies - Third Party P,0090310104,RESPECT CARE SERVICES LTD,67.20,03/12/2020
Delivery Units,Adults and Health,Other Agencies - Third Party P,0090310105,RESPECT CARE SERVICES LTD,"1,058.40",03/12/2020
Delivery Units,Adults and Health,Other Agencies - Third Party P,0090310452,MI HOMECARE LIMITED,177.35,04/12/2020
Delivery Units,Adults and Health,Other Agencies - Third Party P,0090310453,MI HOMECARE LIMITED,222.83,04/12/2020
Delivery Units,Adults and Health,Other Agencies - Third Party P,0090310454,MI HOMECARE LIMITED,54.57,04/12/2020
Delivery Units,Adults and Health,Other Agencies - Third Party P,0090310455,MI HOMECARE LIMITED,54.57,04/12/2020
Delivery Units,Adults and Health,Other Agencies - Third Party P,0090310456,MI HOMECARE LIMITED,241.02,04/12/2020
Delivery Units,Adults and Health,Other Agencies - Third Party P,0090310457,MI HOMECARE LIMITED,127.33,04/12/2020
Delivery Units,Adults and Health,Other Agencies - Third Party P,0090310458,MI HOMECARE LIMITED,127.33,04/12/2020
Delivery Units,Adults and Health,Other Agencies - Third Party P,0090310459,MI HOMECARE LIMITED,163.71,04/12/2020
Delivery Units,Adults and Health,Other Agencies - Third Party P,0090310460,MI HOMECARE LIMITED,272.85,04/12/2020
Delivery Units,Adults and Health,Other Agencies - Third Party P,0090310461,MI HOMECARE LIMITED,222.83,04/12/2020
Delivery Units,Adults and Health,Other Agencies - Third Party P,0090310462,MI HOMECARE LIMITED,268.30,04/12/2020
Delivery Units,Adults and Health,Other Agencies - Third Party P,0090310463,MI HOMECARE LIMITED,68.21,04/12/2020
Delivery Units,Adults and Health,Other Agencies - Third Party P,0090310464,MI HOMECARE LIMITED,191.00,04/12/2020
Delivery Units,Adults and Health,Other Agencies - Third Party P,0090310465,MI HOMECARE LIMITED,45.48,04/12/2020
Delivery Units,Adults and Health,Other Agencies - Third Party P,0090310466,MI HOMECARE LIMITED,90.95,04/12/2020
Delivery Units,Adults and Health,Other Agencies - Third Party P,0090310470,MI HOMECARE LIMITED,172.80,04/12/2020
Delivery Units,Adults and Health,Other Agencies - Third Party P,0090310472,MI HOMECARE LIMITED,268.30,04/12/2020
Delivery Units,Adults and Health,Other Agencies - Third Party P,0090310474,MI HOMECARE LIMITED,40.93,04/12/2020
Delivery Units,Adults and Health,Other Agencies - Third Party P,0090310476,MI HOMECARE LIMITED,231.92,04/12/2020
Delivery Units,Adults and Health,Other Agencies - Third Party P,0090310477,MI HOMECARE LIMITED,81.86,04/12/2020
Delivery Units,Adults and Health,Other Agencies - Third Party P,0090310480,MI HOMECARE LIMITED,318.33,04/12/2020
Delivery Units,Adults and Health,Other Agencies - Third Party P,0090310481,MI HOMECARE LIMITED,636.65,04/12/2020
Delivery Units,Adults and Health,Other Agencies - Third Party P,0090310483,MI HOMECARE LIMITED,109.14,04/12/2020
Delivery Units,Adults and Health,Other Agencies - Third Party P,0090310484,MI HOMECARE LIMITED,122.78,04/12/2020
Delivery Units,Adults and Health,Other Agencies - Third Party P,0090310485,MI HOMECARE LIMITED,177.35,04/12/2020
Delivery Units,Adults and Health,Other Agencies - Third Party P,0090310486,MI HOMECARE LIMITED,959.52,04/12/2020
Delivery Units,Adults and Health,Other Agencies - Third Party P,0090310487,MI HOMECARE LIMITED,18.19,04/12/2020
Delivery Units,Adults and Health,Other Agencies - Third Party P,0090310488,MI HOMECARE LIMITED,250.11,04/12/2020
Delivery Units,Adults and Health,Other Agencies - Third Party P,0090310489,MI HOMECARE LIMITED,272.30,04/12/2020
Delivery Units,Adults and Health,Other Agencies - Third Party P,0090310490,MI HOMECARE LIMITED,63.67,04/12/2020
Delivery Units,Adults and Health,Other Agencies - Third Party P,0090310491,MI HOMECARE LIMITED,227.38,04/12/2020
Delivery Units,Adults and Health,Other Agencies - Third Party P,0090310492,MI HOMECARE LIMITED,127.33,04/12/2020
Delivery Units,Adults and Health,Other Agencies - Third Party P,0090310493,MI HOMECARE LIMITED,127.33,04/12/2020
Delivery Units,Adults and Health,Other Agencies - Third Party P,0090310495,MI HOMECARE LIMITED,127.33,04/12/2020
Delivery Units,Adults and Health,Other Agencies - Third Party P,0090310496,MI HOMECARE LIMITED,9.10,04/12/2020
Delivery Units,Adults and Health,Other Agencies - Third Party P,0090310497,MI HOMECARE LIMITED,159.16,04/12/2020
Delivery Units,Adults and Health,Other Agencies - Third Party P,0090310498,MI HOMECARE LIMITED,127.33,04/12/2020
Delivery Units,Adults and Health,Other Agencies - Third Party P,0090310501,MI HOMECARE LIMITED,191.00,04/12/2020
Delivery Units,Adults and Health,Other Agencies - Third Party P,0090310502,MI HOMECARE LIMITED,95.50,04/12/2020
Delivery Units,Adults and Health,Other Agencies - Third Party P,0090310504,MI HOMECARE LIMITED,172.80,04/12/2020
Delivery Units,Adults and Health,Other Agencies - Third Party P,0090310505,MI HOMECARE LIMITED,263.76,04/12/2020
Delivery Units,Adults and Health,Other Agencies - Third Party P,0090310506,MI HOMECARE LIMITED,81.86,04/12/2020
Delivery Units,Adults and Health,Other Agencies - Third Party P,0090310507,MI HOMECARE LIMITED,286.49,04/12/2020
Delivery Units,Adults and Health,Other Agencies - Third Party P,0090310509,MI HOMECARE LIMITED,263.76,04/12/2020
Delivery Units,Adults and Health,Other Agencies - Third Party P,0090310510,MI HOMECARE LIMITED,95.50,04/12/2020
Delivery Units,Adults and Health,Other Agencies - Third Party P,0090310511,MI HOMECARE LIMITED,95.50,04/12/2020
Delivery Units,Adults and Health,Other Agencies - Third Party P,0090310512,MI HOMECARE LIMITED,236.47,04/12/2020
Delivery Units,Adults and Health,Other Agencies - Third Party P,0090310513,MI HOMECARE LIMITED,241.02,04/12/2020
Delivery Units,Adults and Health,Other Agencies - Third Party P,0090310514,MI HOMECARE LIMITED,81.86,04/12/2020
Delivery Units,Adults and Health,Other Agencies - Third Party P,0090310515,MI HOMECARE LIMITED,127.33,04/12/2020
Delivery Units,Adults and Health,Other Agencies - Third Party P,0090310516,MI HOMECARE LIMITED,36.38,04/12/2020
Delivery Units,Adults and Health,Other Agencies - Third Party P,0090310517,MI HOMECARE LIMITED,318.33,04/12/2020
Delivery Units,Adults and Health,Other Agencies - Third Party P,0090310519,MI HOMECARE LIMITED,645.74,04/12/2020
Delivery Units,Adults and Health,Other Agencies - Third Party P,0090310520,MI HOMECARE LIMITED,272.85,04/12/2020
Delivery Units,Adults and Health,Other Agencies - Third Party P,0090310522,MI HOMECARE LIMITED,318.33,04/12/2020
Delivery Units,Adults and Health,Other Agencies - Third Party P,0090310523,MI HOMECARE LIMITED,209.18,04/12/2020
Delivery Units,Adults and Health,Other Agencies - Third Party P,0090310524,MI HOMECARE LIMITED,277.40,04/12/2020
Delivery Units,Adults and Health,Other Agencies - Third Party P,0090310525,MI HOMECARE LIMITED,54.57,04/12/2020
Delivery Units,Adults and Health,Other Agencies - Third Party P,0090310527,MI HOMECARE LIMITED,327.42,04/12/2020
Delivery Units,Adults and Health,Other Agencies - Third Party P,0090310529,MI HOMECARE LIMITED,572.98,04/12/2020
Delivery Units,Adults and Health,Other Agencies - Third Party P,0090310530,MI HOMECARE LIMITED,95.50,04/12/2020
Delivery Units,Adults and Health,Other Agencies - Third Party P,0090310531,MI HOMECARE LIMITED,95.50,04/12/2020
Delivery Units,Adults and Health,Other Agencies - Third Party P,0090310532,MI HOMECARE LIMITED,218.28,04/12/2020
Delivery Units,Adults and Health,Other Agencies - Third Party P,0090310533,MI HOMECARE LIMITED,72.76,04/12/2020
Delivery Units,Adults and Health,Other Agencies - Third Party P,0090310534,MI HOMECARE LIMITED,136.43,04/12/2020
Delivery Units,Adults and Health,Other Agencies - Third Party P,0090310535,MI HOMECARE LIMITED,90.95,04/12/2020
Delivery Units,Adults and Health,Other Agencies - Third Party P,0090310536,MI HOMECARE LIMITED,213.73,04/12/2020
Delivery Units,Adults and Health,Other Agencies - Third Party P,0090310537,MI HOMECARE LIMITED,222.83,04/12/2020
Delivery Units,Adults and Health,Other Agencies - Third Party P,0090310538,MI HOMECARE LIMITED,177.35,04/12/2020
Delivery Units,Adults and Health,Other Agencies - Third Party P,0090310541,MI HOMECARE LIMITED,191.00,04/12/2020
Delivery Units,Adults and Health,Other Agencies - Third Party P,0090310542,MI HOMECARE LIMITED,127.33,04/12/2020
Delivery Units,Adults and Health,Other Agencies - Third Party P,0090310543,MI HOMECARE LIMITED,318.33,04/12/2020
Delivery Units,Adults and Health,Other Agencies - Third Party P,0090310544,MI HOMECARE LIMITED,54.57,04/12/2020
Delivery Units,Adults and Health,Other Agencies - Third Party P,0090310545,MI HOMECARE LIMITED,572.98,04/12/2020
Delivery Units,Adults and Health,Other Agencies - Third Party P,0090310546,MI HOMECARE LIMITED,159.16,04/12/2020
Delivery Units,Adults and Health,Other Agencies - Third Party P,0090310547,MI HOMECARE LIMITED,149.70,04/12/2020
Delivery Units,Adults and Health,Other Agencies - Third Party P,0090310548,MI HOMECARE LIMITED,63.67,04/12/2020
Delivery Units,Adults and Health,Other Agencies - Third Party P,0090310549,MI HOMECARE LIMITED,231.92,04/12/2020
Delivery Units,Adults and Health,Other Agencies - Third Party P,0090310551,MI HOMECARE LIMITED,272.85,04/12/2020
Delivery Units,Adults and Health,Other Agencies - Third Party P,0090310552,MI HOMECARE LIMITED,318.33,04/12/2020
Delivery Units,Adults and Health,Other Agencies - Third Party P,0090310553,MI HOMECARE LIMITED,127.33,04/12/2020
Delivery Units,Adults and Health,Other Agencies - Third Party P,0090310555,MI HOMECARE LIMITED,331.97,04/12/2020
Delivery Units,Adults and Health,Other Agencies - Third Party P,0090310556,MI HOMECARE LIMITED,118.24,04/12/2020
Delivery Units,Adults and Health,Other Agencies - Third Party P,0090310557,MI HOMECARE LIMITED,127.33,04/12/2020
Delivery Units,Adults and Health,Other Agencies - Third Party P,0090310558,MI HOMECARE LIMITED,268.30,04/12/2020
Delivery Units,Adults and Health,Other Agencies - Third Party P,0090310560,MI HOMECARE LIMITED,127.33,04/12/2020
Delivery Units,Adults and Health,Other Agencies - Third Party P,0090310561,MI HOMECARE LIMITED,318.33,04/12/2020
Delivery Units,Adults and Health,Other Agencies - Third Party P,0090310562,MI HOMECARE LIMITED,90.95,04/12/2020
Delivery Units,Adults and Health,Other Agencies - Third Party P,0090310563,MI HOMECARE LIMITED,209.18,04/12/2020
Delivery Units,Adults and Health,Other Agencies - Third Party P,0090310564,MI HOMECARE LIMITED,345.61,04/12/2020
Delivery Units,Adults and Health,Other Agencies - Third Party P,0090310565,MI HOMECARE LIMITED,95.50,04/12/2020
Delivery Units,Adults and Health,Other Agencies - Third Party P,0090310567,MI HOMECARE LIMITED,191.00,04/12/2020
Delivery Units,Adults and Health,Other Agencies - Third Party P,0090310569,MI HOMECARE LIMITED,159.16,04/12/2020
Delivery Units,Adults and Health,Other Agencies - Third Party P,0090310570,MI HOMECARE LIMITED,527.51,04/12/2020
Delivery Units,Adults and Health,Other Agencies - Third Party P,0090310571,MI HOMECARE LIMITED,286.49,04/12/2020
Delivery Units,Adults and Health,Other Agencies - Third Party P,0090310573,MI HOMECARE LIMITED,127.33,04/12/2020
Delivery Units,Adults and Health,Other Agencies - Third Party P,0090310574,MI HOMECARE LIMITED,550.25,04/12/2020
Delivery Units,Adults and Health,Other Agencies - Third Party P,0090310575,MI HOMECARE LIMITED,218.28,04/12/2020
Delivery Units,Adults and Health,Other Agencies - Third Party P,0090310576,MI HOMECARE LIMITED,236.47,04/12/2020
Delivery Units,Adults and Health,Other Agencies - Third Party P,0090310577,MI HOMECARE LIMITED,127.33,04/12/2020
Delivery Units,Adults and Health,Other Agencies - Third Party P,0090310578,MI HOMECARE LIMITED,163.71,04/12/2020
Delivery Units,Adults and Health,Other Agencies - Third Party P,0090310579,MI HOMECARE LIMITED,250.11,04/12/2020
Delivery Units,Adults and Health,Other Agencies - Third Party P,0090310580,MI HOMECARE LIMITED,286.49,04/12/2020
Delivery Units,Adults and Health,Other Agencies - Third Party P,0090310581,MI HOMECARE LIMITED,691.22,04/12/2020
Delivery Units,Adults and Health,Other Agencies - Third Party P,0090310583,MI HOMECARE LIMITED,95.50,04/12/2020
Delivery Units,Adults and Health,Other Agencies - Third Party P,0090310584,MI HOMECARE LIMITED,277.40,04/12/2020
Delivery Units,Adults and Health,Other Agencies - Third Party P,0090310585,MI HOMECARE LIMITED,286.49,04/12/2020
Delivery Units,Adults and Health,Other Agencies - Third Party P,0090310586,MI HOMECARE LIMITED,445.66,04/12/2020
Delivery Units,Adults and Health,Other Agencies - Third Party P,0090310587,MI HOMECARE LIMITED,236.47,04/12/2020
Delivery Units,Adults and Health,Other Agencies - Third Party P,0090310588,MI HOMECARE LIMITED,127.33,04/12/2020
Delivery Units,Adults and Health,Other Agencies - Third Party P,0090310589,MI HOMECARE LIMITED,286.49,04/12/2020
Delivery Units,Adults and Health,Other Agencies - Third Party P,0090310590,MI HOMECARE LIMITED,127.33,04/12/2020
Delivery Units,Adults and Health,Other Agencies - Third Party P,0090310591,MI HOMECARE LIMITED,300.14,04/12/2020
Delivery Units,Adults and Health,Other Agencies - Third Party P,0090310594,MI HOMECARE LIMITED,191.00,04/12/2020
Delivery Units,Adults and Health,Other Agencies - Third Party P,0090310599,MI HOMECARE LIMITED,68.21,04/12/2020
Delivery Units,Adults and Health,Other Agencies - Third Party P,0090310600,MI HOMECARE LIMITED,154.62,04/12/2020
Delivery Units,Adults and Health,Other Agencies - Third Party P,0090310601,MI HOMECARE LIMITED,122.78,04/12/2020
Delivery Units,Adults and Health,Other Agencies - Third Party P,0090310602,MI HOMECARE LIMITED,127.33,04/12/2020
Delivery Units,Adults and Health,Other Agencies - Third Party P,0090310603,MI HOMECARE LIMITED,95.50,04/12/2020
Delivery Units,Adults and Health,Other Agencies - Third Party P,0090310604,MI HOMECARE LIMITED,36.38,04/12/2020
Delivery Units,Adults and Health,Other Agencies - Third Party P,0090310606,MI HOMECARE LIMITED,218.28,04/12/2020
Delivery Units,Adults and Health,Other Agencies - Third Party P,0090310609,MI HOMECARE LIMITED,118.24,04/12/2020
Delivery Units,Adults and Health,Other Agencies - Third Party P,0090310611,MI HOMECARE LIMITED,31.83,04/12/2020
Delivery Units,Adults and Health,Other Agencies - Third Party P,0090310612,MI HOMECARE LIMITED,86.40,04/12/2020
Delivery Units,Adults and Health,Other Agencies - Third Party P,0090310616,MI HOMECARE LIMITED,218.28,04/12/2020
Delivery Units,Adults and Health,Other Agencies - Third Party P,0090310617,MI HOMECARE LIMITED,291.04,04/12/2020
Delivery Units,Adults and Health,Other Agencies - Third Party P,0090310620,MI HOMECARE LIMITED,68.21,04/12/2020
Delivery Units,Adults and Health,Other Agencies - Third Party P,0090310621,MI HOMECARE LIMITED,227.38,04/12/2020
Delivery Units,Adults and Health,Other Agencies - Third Party P,0090310623,MI HOMECARE LIMITED,254.66,04/12/2020
Delivery Units,Adults and Health,Other Agencies - Third Party P,0090310624,MI HOMECARE LIMITED,213.73,04/12/2020
Delivery Units,Adults and Health,Other Agencies - Third Party P,0090310625,MI HOMECARE LIMITED,95.50,04/12/2020
Delivery Units,Adults and Health,Other Agencies - Third Party P,0090310626,MI HOMECARE LIMITED,40.93,04/12/2020
Delivery Units,Adults and Health,Other Agencies - Third Party P,0090310627,MI HOMECARE LIMITED,222.83,04/12/2020
Delivery Units,Adults and Health,Other Agencies - Third Party P,0090310629,MI HOMECARE LIMITED,63.67,04/12/2020
Delivery Units,Adults and Health,Other Agencies - Third Party P,0090310630,MI HOMECARE LIMITED,172.80,04/12/2020
Delivery Units,Adults and Health,Other Agencies - Third Party P,0090310631,MI HOMECARE LIMITED,159.16,04/12/2020
Delivery Units,Adults and Health,Other Agencies - Third Party P,0090310640,MI HOMECARE LIMITED,131.88,04/12/2020
Delivery Units,Adults and Health,Other Agencies - Third Party P,0090310642,MI HOMECARE LIMITED,63.67,04/12/2020
Delivery Units,Adults and Health,Other Agencies - Third Party P,0090310643,MI HOMECARE LIMITED,509.32,04/12/2020
Delivery Units,Adults and Health,Other Agencies - Third Party P,0090310645,BLUEBIRD CARE CAMDEN & HAMPSTEAD,"2,753.00",04/12/2020
Delivery Units,Adults and Health,Other Agencies - Third Party P,0090310646,HOMECARE ALLIANCE LTD,127.10,04/12/2020
Delivery Units,Adults and Health,Other Agencies - Third Party P,0090310647,ENABLE U SENSORY SUPPORT LTD,60.00,04/12/2020
Delivery Units,Adults and Health,Other Agencies - Third Party P,0090310652,MI HOMECARE LIMITED,177.35,04/12/2020
Delivery Units,Adults and Health,Other Agencies - Third Party P,0090310653,MI HOMECARE LIMITED,227.38,04/12/2020
Delivery Units,Adults and Health,Other Agencies - Third Party P,0090310654,MI HOMECARE LIMITED,54.57,04/12/2020
Delivery Units,Adults and Health,Other Agencies - Third Party P,0090310655,MI HOMECARE LIMITED,54.57,04/12/2020
Delivery Units,Adults and Health,Other Agencies - Third Party P,0090310656,MI HOMECARE LIMITED,241.02,04/12/2020
Delivery Units,Adults and Health,Other Agencies - Third Party P,0090310657,MI HOMECARE LIMITED,127.33,04/12/2020
Delivery Units,Adults and Health,Other Agencies - Third Party P,0090310658,MI HOMECARE LIMITED,127.33,04/12/2020
Delivery Units,Adults and Health,Other Agencies - Third Party P,0090310659,MI HOMECARE LIMITED,163.71,04/12/2020
Delivery Units,Adults and Health,Other Agencies - Third Party P,0090310660,MI HOMECARE LIMITED,281.94,04/12/2020
Delivery Units,Adults and Health,Other Agencies - Third Party P,0090310661,MI HOMECARE LIMITED,222.83,04/12/2020
Delivery Units,Adults and Health,Other Agencies - Third Party P,0090310662,MI HOMECARE LIMITED,272.85,04/12/2020
Delivery Units,Adults and Health,Other Agencies - Third Party P,0090310663,MI HOMECARE LIMITED,68.21,04/12/2020
Delivery Units,Adults and Health,Other Agencies - Third Party P,0090310664,MI HOMECARE LIMITED,191.00,04/12/2020
Delivery Units,Adults and Health,Other Agencies - Third Party P,0090310665,MI HOMECARE LIMITED,45.48,04/12/2020
Delivery Units,Adults and Health,Other Agencies - Third Party P,0090310666,MI HOMECARE LIMITED,90.95,04/12/2020
Delivery Units,Adults and Health,Other Agencies - Third Party P,0090310670,MI HOMECARE LIMITED,168.26,04/12/2020
Delivery Units,Adults and Health,Other Agencies - Third Party P,0090310672,MI HOMECARE LIMITED,281.94,04/12/2020
Delivery Units,Adults and Health,Other Agencies - Third Party P,0090310674,MI HOMECARE LIMITED,40.93,04/12/2020
Delivery Units,Adults and Health,Other Agencies - Third Party P,0090310676,MI HOMECARE LIMITED,236.47,04/12/2020
Delivery Units,Adults and Health,Other Agencies - Third Party P,0090310677,MI HOMECARE LIMITED,81.86,04/12/2020
Delivery Units,Adults and Health,Other Agencies - Third Party P,0090310680,MI HOMECARE LIMITED,313.78,04/12/2020
Delivery Units,Adults and Health,Other Agencies - Third Party P,0090310682,MI HOMECARE LIMITED,109.14,04/12/2020
Delivery Units,Adults and Health,Other Agencies - Third Party P,0090310683,MI HOMECARE LIMITED,122.78,04/12/2020
Delivery Units,Adults and Health,Other Agencies - Third Party P,0090310684,MI HOMECARE LIMITED,191.00,04/12/2020
Delivery Units,Adults and Health,Other Agencies - Third Party P,0090310685,MI HOMECARE LIMITED,968.62,04/12/2020
Delivery Units,Adults and Health,Other Agencies - Third Party P,0090310686,MI HOMECARE LIMITED,18.19,04/12/2020
Delivery Units,Adults and Health,Other Agencies - Third Party P,0090310687,MI HOMECARE LIMITED,245.57,04/12/2020
Delivery Units,Adults and Health,Other Agencies - Third Party P,0090310688,MI HOMECARE LIMITED,275.03,04/12/2020
Delivery Units,Adults and Health,Other Agencies - Third Party P,0090310689,MI HOMECARE LIMITED,63.67,04/12/2020
Delivery Units,Adults and Health,Other Agencies - Third Party P,0090310690,MI HOMECARE LIMITED,213.73,04/12/2020
Delivery Units,Adults and Health,Other Agencies - Third Party P,0090310691,MI HOMECARE LIMITED,127.33,04/12/2020
Delivery Units,Adults and Health,Other Agencies - Third Party P,0090310692,MI HOMECARE LIMITED,127.33,04/12/2020
Delivery Units,Adults and Health,Other Agencies - Third Party P,0090310694,MI HOMECARE LIMITED,127.33,04/12/2020
Delivery Units,Adults and Health,Other Agencies - Third Party P,0090310695,MI HOMECARE LIMITED,159.16,04/12/2020
Delivery Units,Adults and Health,Other Agencies - Third Party P,0090310696,MI HOMECARE LIMITED,127.33,04/12/2020
Delivery Units,Adults and Health,Other Agencies - Third Party P,0090310699,MI HOMECARE LIMITED,191.00,04/12/2020
Delivery Units,Adults and Health,Other Agencies - Third Party P,0090310700,MI HOMECARE LIMITED,95.50,04/12/2020
Delivery Units,Adults and Health,Other Agencies - Third Party P,0090310701,MI HOMECARE LIMITED,36.38,04/12/2020
Delivery Units,Adults and Health,Other Agencies - Third Party P,0090310703,MI HOMECARE LIMITED,31.83,04/12/2020
Delivery Units,Adults and Health,Other Agencies - Third Party P,0090310704,MI HOMECARE LIMITED,222.83,04/12/2020
Delivery Units,Adults and Health,Other Agencies - Third Party P,0090310705,MI HOMECARE LIMITED,277.40,04/12/2020
Delivery Units,Adults and Health,Other Agencies - Third Party P,0090310706,MI HOMECARE LIMITED,81.86,04/12/2020
Delivery Units,Adults and Health,Other Agencies - Third Party P,0090310707,MI HOMECARE LIMITED,281.94,04/12/2020
Delivery Units,Adults and Health,Other Agencies - Third Party P,0090310709,MI HOMECARE LIMITED,263.76,04/12/2020
Delivery Units,Adults and Health,Other Agencies - Third Party P,0090310710,MI HOMECARE LIMITED,95.50,04/12/2020
Delivery Units,Adults and Health,Other Agencies - Third Party P,0090310711,MI HOMECARE LIMITED,95.50,04/12/2020
Delivery Units,Adults and Health,Other Agencies - Third Party P,0090310712,MI HOMECARE LIMITED,236.47,04/12/2020
Delivery Units,Adults and Health,Other Agencies - Third Party P,0090310713,MI HOMECARE LIMITED,241.02,04/12/2020
Delivery Units,Adults and Health,Other Agencies - Third Party P,0090310714,MI HOMECARE LIMITED,81.86,04/12/2020
Delivery Units,Adults and Health,Other Agencies - Third Party P,0090310715,MI HOMECARE LIMITED,122.78,04/12/2020
Delivery Units,Adults and Health,Other Agencies - Third Party P,0090310716,MI HOMECARE LIMITED,36.38,04/12/2020
Delivery Units,Adults and Health,Other Agencies - Third Party P,0090310717,MI HOMECARE LIMITED,318.33,04/12/2020
Delivery Units,Adults and Health,Other Agencies - Third Party P,0090310719,MI HOMECARE LIMITED,659.39,04/12/2020
Delivery Units,Adults and Health,Other Agencies - Third Party P,0090310720,MI HOMECARE LIMITED,272.85,04/12/2020
Delivery Units,Adults and Health,Other Agencies - Third Party P,0090310722,MI HOMECARE LIMITED,318.33,04/12/2020
Delivery Units,Adults and Health,Other Agencies - Third Party P,0090310723,MI HOMECARE LIMITED,227.38,04/12/2020
Delivery Units,Adults and Health,Other Agencies - Third Party P,0090310724,MI HOMECARE LIMITED,281.94,04/12/2020
Delivery Units,Adults and Health,Other Agencies - Third Party P,0090310725,MI HOMECARE LIMITED,63.67,04/12/2020
Delivery Units,Adults and Health,Other Agencies - Third Party P,0090310727,MI HOMECARE LIMITED,327.42,04/12/2020
Delivery Units,Adults and Health,Other Agencies - Third Party P,0090310729,MI HOMECARE LIMITED,568.44,04/12/2020
Delivery Units,Adults and Health,Other Agencies - Third Party P,0090310730,MI HOMECARE LIMITED,95.50,04/12/2020
Delivery Units,Adults and Health,Other Agencies - Third Party P,0090310731,MI HOMECARE LIMITED,95.50,04/12/2020
Delivery Units,Adults and Health,Other Agencies - Third Party P,0090310732,MI HOMECARE LIMITED,222.83,04/12/2020
Delivery Units,Adults and Health,Other Agencies - Third Party P,0090310733,MI HOMECARE LIMITED,95.50,04/12/2020
Delivery Units,Adults and Health,Other Agencies - Third Party P,0090310734,MI HOMECARE LIMITED,50.02,04/12/2020
Delivery Units,Adults and Health,Other Agencies - Third Party P,0090310735,MI HOMECARE LIMITED,95.50,04/12/2020
Delivery Units,Adults and Health,Other Agencies - Third Party P,0090310736,MI HOMECARE LIMITED,72.76,04/12/2020
Delivery Units,Adults and Health,Other Agencies - Third Party P,0090310737,MI HOMECARE LIMITED,222.83,04/12/2020
Delivery Units,Adults and Health,Other Agencies - Third Party P,0090310738,MI HOMECARE LIMITED,50.02,04/12/2020
Delivery Units,Adults and Health,Other Agencies - Third Party P,0090310739,MI HOMECARE LIMITED,181.90,04/12/2020
Delivery Units,Adults and Health,Other Agencies - Third Party P,0090310740,MI HOMECARE LIMITED,27.29,04/12/2020
Delivery Units,Adults and Health,Other Agencies - Third Party P,0090310743,MI HOMECARE LIMITED,186.45,04/12/2020
Delivery Units,Adults and Health,Other Agencies - Third Party P,0090310744,MI HOMECARE LIMITED,127.33,04/12/2020
Delivery Units,Adults and Health,Other Agencies - Third Party P,0090310745,MI HOMECARE LIMITED,54.57,04/12/2020
Delivery Units,Adults and Health,Other Agencies - Third Party P,0090310746,MI HOMECARE LIMITED,572.98,04/12/2020
Delivery Units,Adults and Health,Other Agencies - Third Party P,0090310747,MI HOMECARE LIMITED,159.16,04/12/2020
Delivery Units,Adults and Health,Other Agencies - Third Party P,0090310748,MI HOMECARE LIMITED,127.33,04/12/2020
Delivery Units,Adults and Health,Other Agencies - Third Party P,0090310749,MI HOMECARE LIMITED,63.67,04/12/2020
Delivery Units,Adults and Health,Other Agencies - Third Party P,0090310750,MI HOMECARE LIMITED,286.49,04/12/2020
Delivery Units,Adults and Health,Other Agencies - Third Party P,0090310752,MI HOMECARE LIMITED,281.94,04/12/2020
Delivery Units,Adults and Health,Other Agencies - Third Party P,0090310753,MI HOMECARE LIMITED,313.78,04/12/2020
Delivery Units,Adults and Health,Other Agencies - Third Party P,0090310754,MI HOMECARE LIMITED,127.33,04/12/2020
Delivery Units,Adults and Health,Other Agencies - Third Party P,0090310756,MI HOMECARE LIMITED,331.97,04/12/2020
Delivery Units,Adults and Health,Other Agencies - Third Party P,0090310757,MI HOMECARE LIMITED,118.24,04/12/2020
Delivery Units,Adults and Health,Other Agencies - Third Party P,0090310759,MI HOMECARE LIMITED,127.33,04/12/2020
Delivery Units,Adults and Health,Other Agencies - Third Party P,0090310760,MI HOMECARE LIMITED,254.66,04/12/2020
Delivery Units,Adults and Health,Other Agencies - Third Party P,0090310762,MI HOMECARE LIMITED,36.38,04/12/2020
Delivery Units,Adults and Health,Other Agencies - Third Party P,0090310763,MI HOMECARE LIMITED,313.78,04/12/2020
Delivery Units,Adults and Health,Other Agencies - Third Party P,0090310764,MI HOMECARE LIMITED,90.95,04/12/2020
Delivery Units,Adults and Health,Other Agencies - Third Party P,0090310765,MI HOMECARE LIMITED,222.83,04/12/2020
Delivery Units,Adults and Health,Other Agencies - Third Party P,0090310766,MI HOMECARE LIMITED,350.16,04/12/2020
Delivery Units,Adults and Health,Other Agencies - Third Party P,0090310767,MI HOMECARE LIMITED,81.86,04/12/2020
Delivery Units,Adults and Health,Other Agencies - Third Party P,0090310769,MI HOMECARE LIMITED,222.83,04/12/2020
Delivery Units,Adults and Health,Other Agencies - Third Party P,0090310771,MI HOMECARE LIMITED,159.16,04/12/2020
Delivery Units,Adults and Health,Other Agencies - Third Party P,0090310772,MI HOMECARE LIMITED,532.06,04/12/2020
Delivery Units,Adults and Health,Other Agencies - Third Party P,0090310773,MI HOMECARE LIMITED,122.78,04/12/2020
Delivery Units,Adults and Health,Other Agencies - Third Party P,0090310775,MI HOMECARE LIMITED,127.33,04/12/2020
Delivery Units,Adults and Health,Other Agencies - Third Party P,0090310776,MI HOMECARE LIMITED,500.22,04/12/2020
Delivery Units,Adults and Health,Other Agencies - Third Party P,0090310777,MI HOMECARE LIMITED,209.18,04/12/2020
Delivery Units,Adults and Health,Other Agencies - Third Party P,0090310778,MI HOMECARE LIMITED,218.28,04/12/2020
Delivery Units,Adults and Health,Other Agencies - Third Party P,0090310779,MI HOMECARE LIMITED,159.16,04/12/2020
Delivery Units,Adults and Health,Other Agencies - Third Party P,0090310780,MI HOMECARE LIMITED,127.33,04/12/2020
Delivery Units,Adults and Health,Other Agencies - Third Party P,0090310781,MI HOMECARE LIMITED,254.66,04/12/2020
Delivery Units,Adults and Health,Other Agencies - Third Party P,0090310782,MI HOMECARE LIMITED,277.40,04/12/2020
Delivery Units,Adults and Health,Other Agencies - Third Party P,0090310783,MI HOMECARE LIMITED,695.77,04/12/2020
Delivery Units,Adults and Health,Other Agencies - Third Party P,0090310785,MI HOMECARE LIMITED,95.50,04/12/2020
Delivery Units,Adults and Health,Other Agencies - Third Party P,0090310786,MI HOMECARE LIMITED,277.40,04/12/2020
Delivery Units,Adults and Health,Other Agencies - Third Party P,0090310787,MI HOMECARE LIMITED,277.40,04/12/2020
Delivery Units,Adults and Health,Other Agencies - Third Party P,0090310788,MI HOMECARE LIMITED,432.01,04/12/2020
Delivery Units,Adults and Health,Other Agencies - Third Party P,0090310789,MI HOMECARE LIMITED,272.85,04/12/2020
Delivery Units,Adults and Health,Other Agencies - Third Party P,0090310790,MI HOMECARE LIMITED,127.33,04/12/2020
Delivery Units,Adults and Health,Other Agencies - Third Party P,0090310791,MI HOMECARE LIMITED,286.49,04/12/2020
Delivery Units,Adults and Health,Other Agencies - Third Party P,0090310792,MI HOMECARE LIMITED,127.33,04/12/2020
Delivery Units,Adults and Health,Other Agencies - Third Party P,0090310793,MI HOMECARE LIMITED,327.42,04/12/2020
Delivery Units,Adults and Health,Other Agencies - Third Party P,0090310796,MI HOMECARE LIMITED,181.90,04/12/2020
Delivery Units,Adults and Health,Other Agencies - Third Party P,0090310801,MI HOMECARE LIMITED,68.21,04/12/2020
Delivery Units,Adults and Health,Other Agencies - Third Party P,0090310802,MI HOMECARE LIMITED,154.62,04/12/2020
Delivery Units,Adults and Health,Other Agencies - Third Party P,0090310803,MI HOMECARE LIMITED,200.09,04/12/2020
Delivery Units,Adults and Health,Other Agencies - Third Party P,0090310804,MI HOMECARE LIMITED,127.33,04/12/2020
Delivery Units,Adults and Health,Other Agencies - Third Party P,0090310805,MI HOMECARE LIMITED,95.50,04/12/2020
Delivery Units,Adults and Health,Other Agencies - Third Party P,0090310806,MI HOMECARE LIMITED,54.57,04/12/2020
Delivery Units,Adults and Health,Other Agencies - Third Party P,0090310808,MI HOMECARE LIMITED,218.28,04/12/2020
Delivery Units,Adults and Health,Other Agencies - Third Party P,0090310810,MI HOMECARE LIMITED,127.33,04/12/2020
Delivery Units,Adults and Health,Other Agencies - Third Party P,0090310812,MI HOMECARE LIMITED,45.48,04/12/2020
Delivery Units,Adults and Health,Other Agencies - Third Party P,0090310813,MI HOMECARE LIMITED,100.04,04/12/2020
Delivery Units,Adults and Health,Other Agencies - Third Party P,0090310816,MI HOMECARE LIMITED,209.18,04/12/2020
Delivery Units,Adults and Health,Other Agencies - Third Party P,0090310817,MI HOMECARE LIMITED,291.04,04/12/2020
Delivery Units,Adults and Health,Other Agencies - Third Party P,0090310821,MI HOMECARE LIMITED,63.67,04/12/2020
Delivery Units,Adults and Health,Other Agencies - Third Party P,0090310823,MI HOMECARE LIMITED,227.38,04/12/2020
Delivery Units,Adults and Health,Other Agencies - Third Party P,0090310824,MI HOMECARE LIMITED,18.19,04/12/2020
Delivery Units,Adults and Health,Other Agencies - Third Party P,0090310827,MI HOMECARE LIMITED,254.66,04/12/2020
Delivery Units,Adults and Health,Other Agencies - Third Party P,0090310828,MI HOMECARE LIMITED,241.02,04/12/2020
Delivery Units,Adults and Health,Other Agencies - Third Party P,0090310829,MI HOMECARE LIMITED,95.50,04/12/2020
Delivery Units,Adults and Health,Other Agencies - Third Party P,0090310830,MI HOMECARE LIMITED,9.10,04/12/2020
Delivery Units,Adults and Health,Other Agencies - Third Party P,0090310831,MI HOMECARE LIMITED,222.83,04/12/2020
Delivery Units,Adults and Health,Other Agencies - Third Party P,0090310833,MI HOMECARE LIMITED,63.67,04/12/2020
Delivery Units,Adults and Health,Other Agencies - Third Party P,0090310834,MI HOMECARE LIMITED,159.16,04/12/2020
Delivery Units,Adults and Health,Other Agencies - Third Party P,0090310843,MI HOMECARE LIMITED,113.69,04/12/2020
Delivery Units,Adults and Health,Other Agencies - Third Party P,0090310845,MI HOMECARE LIMITED,45.48,04/12/2020
Delivery Units,Adults and Health,Other Agencies - Third Party P,0090310846,MI HOMECARE LIMITED,509.32,04/12/2020
Delivery Units,Adults and Health,Other Agencies - Third Party P,0090310899,SERVESOUL LIMITED,629.65,04/12/2020
Delivery Units,Adults and Health,Other Agencies - Third Party P,0090310900,SERVESOUL LIMITED,161.91,04/12/2020
Delivery Units,Adults and Health,Other Agencies - Third Party P,0090310903,SERVESOUL LIMITED,"3,242.70",04/12/2020
Delivery Units,Adults and Health,Other Agencies - Third Party P,0090310904,SERVESOUL LIMITED,67.46,04/12/2020
Delivery Units,Adults and Health,Other Agencies - Third Party P,0090310905,SERVESOUL LIMITED,917.49,04/12/2020
Delivery Units,Adults and Health,Other Agencies - Third Party P,0090310906,SERVESOUL LIMITED,107.94,04/12/2020
Delivery Units,Adults and Health,Other Agencies - Third Party P,0090310907,SERVESOUL LIMITED,80.96,04/12/2020
Delivery Units,Adults and Health,Other Agencies - Third Party P,0090310909,SERVESOUL LIMITED,62.97,04/12/2020
Delivery Units,Adults and Health,Other Agencies - Third Party P,0090310910,SERVESOUL LIMITED,125.93,04/12/2020
Delivery Units,Adults and Health,Other Agencies - Third Party P,0090310912,SERVESOUL LIMITED,251.86,04/12/2020
Delivery Units,Adults and Health,Other Agencies - Third Party P,0090310913,SERVESOUL LIMITED,188.90,04/12/2020
Delivery Units,Adults and Health,Other Agencies - Third Party P,0090310914,SERVESOUL LIMITED,472.24,04/12/2020
Delivery Units,Adults and Health,Other Agencies - Third Party P,0090310915,SERVESOUL LIMITED,503.72,04/12/2020
Delivery Units,Adults and Health,Other Agencies - Third Party P,0090310918,SERVESOUL LIMITED,346.31,04/12/2020
Delivery Units,Adults and Health,Other Agencies - Third Party P,0090310920,SERVESOUL LIMITED,283.34,04/12/2020
Delivery Units,Adults and Health,Other Agencies - Third Party P,0090310921,SERVESOUL LIMITED,395.78,04/12/2020
Delivery Units,Adults and Health,Other Agencies - Third Party P,0090310923,SERVESOUL LIMITED,157.41,04/12/2020
Delivery Units,Adults and Health,Other Agencies - Third Party P,0090310924,SERVESOUL LIMITED,301.33,04/12/2020
Delivery Units,Adults and Health,Other Agencies - Third Party P,0090310926,SERVESOUL LIMITED,283.34,04/12/2020
Delivery Units,Adults and Health,Other Agencies - Third Party P,0090310927,SERVESOUL LIMITED,157.41,04/12/2020
Delivery Units,Adults and Health,Other Agencies - Third Party P,0090310928,SERVESOUL LIMITED,53.97,04/12/2020
Delivery Units,Adults and Health,Other Agencies - Third Party P,0090310929,SERVESOUL LIMITED,188.90,04/12/2020
Delivery Units,Adults and Health,Other Agencies - Third Party P,0090310931,SERVESOUL LIMITED,125.93,04/12/2020
Delivery Units,Adults and Health,Other Agencies - Third Party P,0090310932,SERVESOUL LIMITED,566.69,04/12/2020
Delivery Units,Adults and Health,Other Agencies - Third Party P,0090310933,SERVESOUL LIMITED,359.80,04/12/2020
Delivery Units,Adults and Health,Other Agencies - Third Party P,0090310934,SERVESOUL LIMITED,220.38,04/12/2020
Delivery Units,Adults and Health,Other Agencies - Third Party P,0090310935,SERVESOUL LIMITED,188.90,04/12/2020
Delivery Units,Adults and Health,Other Agencies - Third Party P,0090310936,SERVESOUL LIMITED,125.93,04/12/2020
Delivery Units,Adults and Health,Other Agencies - Third Party P,0090310937,SERVESOUL LIMITED,94.45,04/12/2020
Delivery Units,Adults and Health,Other Agencies - Third Party P,0090310938,SERVESOUL LIMITED,440.76,04/12/2020
Delivery Units,Adults and Health,Other Agencies - Third Party P,0090310939,SERVESOUL LIMITED,251.86,04/12/2020
Delivery Units,Adults and Health,Other Agencies - Third Party P,0090310941,SERVESOUL LIMITED,251.86,04/12/2020
Delivery Units,Adults and Health,Other Agencies - Third Party P,0090310942,SERVESOUL LIMITED,566.69,04/12/2020
Delivery Units,Adults and Health,Other Agencies - Third Party P,0090310943,SERVESOUL LIMITED,503.72,04/12/2020
Delivery Units,Adults and Health,Other Agencies - Third Party P,0090310944,SERVESOUL LIMITED,755.58,04/12/2020
Delivery Units,Adults and Health,Other Agencies - Third Party P,0090310945,SERVESOUL LIMITED,395.78,04/12/2020
Delivery Units,Adults and Health,Other Agencies - Third Party P,0090310946,SERVESOUL LIMITED,440.76,04/12/2020
Delivery Units,Adults and Health,Other Agencies - Third Party P,0090310947,SERVESOUL LIMITED,314.83,04/12/2020
Delivery Units,Adults and Health,Other Agencies - Third Party P,0090310948,SERVESOUL LIMITED,629.65,04/12/2020
Delivery Units,Adults and Health,Other Agencies - Third Party P,0090310949,SERVESOUL LIMITED,314.83,04/12/2020
Delivery Units,Adults and Health,Other Agencies - Third Party P,0090310951,SERVESOUL LIMITED,"1,070.41",04/12/2020
Delivery Units,Adults and Health,Other Agencies - Third Party P,0090310952,SERVESOUL LIMITED,94.45,04/12/2020
Delivery Units,Adults and Health,Other Agencies - Third Party P,0090310954,SERVESOUL LIMITED,251.86,04/12/2020
Delivery Units,Adults and Health,Other Agencies - Third Party P,0090310956,SERVESOUL LIMITED,440.76,04/12/2020
Delivery Units,Adults and Health,Other Agencies - Third Party P,0090310958,SERVESOUL LIMITED,449.75,04/12/2020
Delivery Units,Adults and Health,Other Agencies - Third Party P,0090310959,SERVESOUL LIMITED,26.99,04/12/2020
Delivery Units,Adults and Health,Other Agencies - Third Party P,0090310962,SERVESOUL LIMITED,"3,229.21",04/12/2020
Delivery Units,Adults and Health,Other Agencies - Third Party P,0090310963,SERVESOUL LIMITED,67.46,04/12/2020
Delivery Units,Adults and Health,Other Agencies - Third Party P,0090310964,SERVESOUL LIMITED,917.49,04/12/2020
Delivery Units,Adults and Health,Other Agencies - Third Party P,0090310965,SERVESOUL LIMITED,125.93,04/12/2020
Delivery Units,Adults and Health,Other Agencies - Third Party P,0090310966,SERVESOUL LIMITED,188.90,04/12/2020
Delivery Units,Adults and Health,Other Agencies - Third Party P,0090310967,SERVESOUL LIMITED,220.38,04/12/2020
Delivery Units,Adults and Health,Other Agencies - Third Party P,0090310969,SERVESOUL LIMITED,62.97,04/12/2020
Delivery Units,Adults and Health,Other Agencies - Third Party P,0090310970,SERVESOUL LIMITED,107.94,04/12/2020
Delivery Units,Adults and Health,Other Agencies - Third Party P,0090310971,SERVESOUL LIMITED,251.86,04/12/2020
Delivery Units,Adults and Health,Other Agencies - Third Party P,0090310972,SERVESOUL LIMITED,188.90,04/12/2020
Delivery Units,Adults and Health,Other Agencies - Third Party P,0090310973,SERVESOUL LIMITED,472.24,04/12/2020
Delivery Units,Adults and Health,Other Agencies - Third Party P,0090310974,SERVESOUL LIMITED,521.71,04/12/2020
Delivery Units,Adults and Health,Other Agencies - Third Party P,0090310977,SERVESOUL LIMITED,346.31,04/12/2020
Delivery Units,Adults and Health,Other Agencies - Third Party P,0090310979,SERVESOUL LIMITED,283.34,04/12/2020
Delivery Units,Adults and Health,Other Agencies - Third Party P,0090310980,SERVESOUL LIMITED,395.78,04/12/2020
Delivery Units,Adults and Health,Other Agencies - Third Party P,0090310982,SERVESOUL LIMITED,157.41,04/12/2020
Delivery Units,Adults and Health,Other Agencies - Third Party P,0090310983,SERVESOUL LIMITED,301.33,04/12/2020
Delivery Units,Adults and Health,Other Agencies - Third Party P,0090310985,SERVESOUL LIMITED,85.45,04/12/2020
Delivery Units,Adults and Health,Other Agencies - Third Party P,0090310986,SERVESOUL LIMITED,157.41,04/12/2020
Delivery Units,Adults and Health,Other Agencies - Third Party P,0090310987,SERVESOUL LIMITED,80.96,04/12/2020
Delivery Units,Adults and Health,Other Agencies - Third Party P,0090310988,SERVESOUL LIMITED,188.90,04/12/2020
Delivery Units,Adults and Health,Other Agencies - Third Party P,0090310991,SERVESOUL LIMITED,125.93,04/12/2020
Delivery Units,Adults and Health,Other Agencies - Third Party P,0090310992,SERVESOUL LIMITED,566.69,04/12/2020
Delivery Units,Adults and Health,Other Agencies - Third Party P,0090310993,SERVESOUL LIMITED,359.80,04/12/2020
Delivery Units,Adults and Health,Other Agencies - Third Party P,0090310994,SERVESOUL LIMITED,220.38,04/12/2020
Delivery Units,Adults and Health,Other Agencies - Third Party P,0090310995,SERVESOUL LIMITED,188.90,04/12/2020
Delivery Units,Adults and Health,Other Agencies - Third Party P,0090310996,SERVESOUL LIMITED,125.93,04/12/2020
Delivery Units,Adults and Health,Other Agencies - Third Party P,0090310997,SERVESOUL LIMITED,94.45,04/12/2020
Delivery Units,Adults and Health,Other Agencies - Third Party P,0090310998,SERVESOUL LIMITED,440.76,04/12/2020
Delivery Units,Adults and Health,Other Agencies - Third Party P,0090310999,SERVESOUL LIMITED,251.86,04/12/2020
Delivery Units,Adults and Health,Other Agencies - Third Party P,0090311001,SERVESOUL LIMITED,251.86,04/12/2020
Delivery Units,Adults and Health,Other Agencies - Third Party P,0090311002,SERVESOUL LIMITED,485.73,04/12/2020
Delivery Units,Adults and Health,Other Agencies - Third Party P,0090311003,SERVESOUL LIMITED,503.72,04/12/2020
Delivery Units,Adults and Health,Other Agencies - Third Party P,0090311004,SERVESOUL LIMITED,755.58,04/12/2020
Delivery Units,Adults and Health,Other Agencies - Third Party P,0090311005,SERVESOUL LIMITED,395.78,04/12/2020
Delivery Units,Adults and Health,Other Agencies - Third Party P,0090311006,SERVESOUL LIMITED,440.76,04/12/2020
Delivery Units,Adults and Health,Other Agencies - Third Party P,0090311007,SERVESOUL LIMITED,314.83,04/12/2020
Delivery Units,Adults and Health,Other Agencies - Third Party P,0090311008,SERVESOUL LIMITED,629.65,04/12/2020
Delivery Units,Adults and Health,Other Agencies - Third Party P,0090311009,SERVESOUL LIMITED,314.83,04/12/2020
Delivery Units,Adults and Health,Other Agencies - Third Party P,0090311012,SERVESOUL LIMITED,"1,070.41",04/12/2020
Delivery Units,Adults and Health,Other Agencies - Third Party P,0090311013,SERVESOUL LIMITED,94.45,04/12/2020
Delivery Units,Adults and Health,Other Agencies - Third Party P,0090311015,SERVESOUL LIMITED,251.86,04/12/2020
Delivery Units,Adults and Health,Other Agencies - Third Party P,0090311017,SERVESOUL LIMITED,440.76,04/12/2020
Delivery Units,Adults and Health,Other Agencies - Third Party P,0090311018,SPRINGVILLA CARE LTD,"1,008.00",04/12/2020
Delivery Units,Adults and Health,Other Agencies - Third Party P,0090311019,SPRINGVILLA CARE LTD,"2,128.00",04/12/2020
Delivery Units,Adults and Health,Other Agencies - Third Party P,0090311020,SPRINGVILLA CARE LTD,392.00,04/12/2020
Delivery Units,Adults and Health,Other Agencies - Third Party P,0090311021,SPRINGVILLA CARE LTD,"1,120.00",04/12/2020
Delivery Units,Adults and Health,Other Agencies - Third Party P,0090311078,MI HOMECARE LIMITED,13.64,04/12/2020
Delivery Units,Adults and Health,Other Agencies - Third Party P,0090311079,MI HOMECARE LIMITED,327.42,04/12/2020
Delivery Units,Adults and Health,Other Agencies - Third Party P,0090311096,MI HOMECARE LIMITED,318.36,04/12/2020
Delivery Units,Adults and Health,Other Agencies - Third Party P,0090311097,MI HOMECARE LIMITED,313.80,04/12/2020
Delivery Units,Adults and Health,Other Agencies - Third Party P,0090311098,MI HOMECARE LIMITED,27.28,04/12/2020
Delivery Units,Adults and Health,Other Agencies - Third Party P,0090311099,MI HOMECARE LIMITED,318.36,04/12/2020
Delivery Units,Adults and Health,Other Agencies - Third Party P,0090311100,MI HOMECARE LIMITED,313.80,04/12/2020
Delivery Units,Adults and Health,Other Agencies - Third Party P,0090311102,DYNAMIC PEOPLE LTD,392.59,04/12/2020
Delivery Units,Adults and Health,Other Agencies - Third Party P,0090311112,SERVESOUL LIMITED,161.91,04/12/2020
Delivery Units,Adults and Health,Other Agencies - Third Party P,0090311115,SERVESOUL LIMITED,"3,242.70",04/12/2020
Delivery Units,Adults and Health,Other Agencies - Third Party P,0090311116,SERVESOUL LIMITED,67.46,04/12/2020
Delivery Units,Adults and Health,Other Agencies - Third Party P,0090311117,SERVESOUL LIMITED,917.49,04/12/2020
Delivery Units,Adults and Health,Other Agencies - Third Party P,0090311118,SERVESOUL LIMITED,107.94,04/12/2020
Delivery Units,Adults and Health,Other Agencies - Third Party P,0090311119,SERVESOUL LIMITED,566.69,04/12/2020
Delivery Units,Adults and Health,Other Agencies - Third Party P,0090311120,SERVESOUL LIMITED,220.38,04/12/2020
Delivery Units,Adults and Health,Other Agencies - Third Party P,0090311121,SERVESOUL LIMITED,332.82,04/12/2020
Delivery Units,Adults and Health,Other Agencies - Third Party P,0090311123,SERVESOUL LIMITED,62.97,04/12/2020
Delivery Units,Adults and Health,Other Agencies - Third Party P,0090311124,SERVESOUL LIMITED,125.93,04/12/2020
Delivery Units,Adults and Health,Other Agencies - Third Party P,0090311125,SERVESOUL LIMITED,251.86,04/12/2020
Delivery Units,Adults and Health,Other Agencies - Third Party P,0090311126,SERVESOUL LIMITED,188.90,04/12/2020
Delivery Units,Adults and Health,Other Agencies - Third Party P,0090311127,SERVESOUL LIMITED,472.24,04/12/2020
Delivery Units,Adults and Health,Other Agencies - Third Party P,0090311128,SERVESOUL LIMITED,503.72,04/12/2020
Delivery Units,Adults and Health,Other Agencies - Third Party P,0090311131,SERVESOUL LIMITED,346.31,04/12/2020
Delivery Units,Adults and Health,Other Agencies - Third Party P,0090311133,SERVESOUL LIMITED,283.34,04/12/2020
Delivery Units,Adults and Health,Other Agencies - Third Party P,0090311134,SERVESOUL LIMITED,395.78,04/12/2020
Delivery Units,Adults and Health,Other Agencies - Third Party P,0090311136,SERVESOUL LIMITED,157.41,04/12/2020
Delivery Units,Adults and Health,Other Agencies - Third Party P,0090311137,SERVESOUL LIMITED,301.33,04/12/2020
Delivery Units,Adults and Health,Other Agencies - Third Party P,0090311139,SERVESOUL LIMITED,157.41,04/12/2020
Delivery Units,Adults and Health,Other Agencies - Third Party P,0090311140,SERVESOUL LIMITED,13.49,04/12/2020
Delivery Units,Adults and Health,Other Agencies - Third Party P,0090311141,SERVESOUL LIMITED,188.90,04/12/2020
Delivery Units,Adults and Health,Other Agencies - Third Party P,0090311144,SERVESOUL LIMITED,125.93,04/12/2020
Delivery Units,Adults and Health,Other Agencies - Third Party P,0090311145,SERVESOUL LIMITED,584.68,04/12/2020
Delivery Units,Adults and Health,Other Agencies - Third Party P,0090311146,SERVESOUL LIMITED,359.80,04/12/2020
Delivery Units,Adults and Health,Other Agencies - Third Party P,0090311147,SERVESOUL LIMITED,220.38,04/12/2020
Delivery Units,Adults and Health,Other Agencies - Third Party P,0090311148,SERVESOUL LIMITED,188.90,04/12/2020
Delivery Units,Adults and Health,Other Agencies - Third Party P,0090311149,SERVESOUL LIMITED,125.93,04/12/2020
Delivery Units,Adults and Health,Other Agencies - Third Party P,0090311150,SERVESOUL LIMITED,13.49,04/12/2020
Delivery Units,Adults and Health,Other Agencies - Third Party P,0090311152,SERVESOUL LIMITED,440.76,04/12/2020
Delivery Units,Adults and Health,Other Agencies - Third Party P,0090311153,SERVESOUL LIMITED,251.86,04/12/2020
Delivery Units,Adults and Health,Other Agencies - Third Party P,0090311155,SERVESOUL LIMITED,251.86,04/12/2020
Delivery Units,Adults and Health,Other Agencies - Third Party P,0090311156,SERVESOUL LIMITED,377.79,04/12/2020
Delivery Units,Adults and Health,Other Agencies - Third Party P,0090311157,SERVESOUL LIMITED,503.72,04/12/2020
Delivery Units,Adults and Health,Other Agencies - Third Party P,0090311158,SERVESOUL LIMITED,755.58,04/12/2020
Delivery Units,Adults and Health,Other Agencies - Third Party P,0090311159,SERVESOUL LIMITED,395.78,04/12/2020
Delivery Units,Adults and Health,Other Agencies - Third Party P,0090311160,SERVESOUL LIMITED,440.76,04/12/2020
Delivery Units,Adults and Health,Other Agencies - Third Party P,0090311161,SERVESOUL LIMITED,314.83,04/12/2020
Delivery Units,Adults and Health,Other Agencies - Third Party P,0090311162,SERVESOUL LIMITED,629.65,04/12/2020
Delivery Units,Adults and Health,Other Agencies - Third Party P,0090311163,SERVESOUL LIMITED,314.83,04/12/2020
Delivery Units,Adults and Health,Other Agencies - Third Party P,0090311166,SERVESOUL LIMITED,"1,070.41",04/12/2020
Delivery Units,Adults and Health,Other Agencies - Third Party P,0090311167,SERVESOUL LIMITED,94.45,04/12/2020
Delivery Units,Adults and Health,Other Agencies - Third Party P,0090311169,SERVESOUL LIMITED,251.86,04/12/2020
Delivery Units,Adults and Health,Other Agencies - Third Party P,0090311171,SERVESOUL LIMITED,440.76,04/12/2020
Delivery Units,Adults and Health,Other Agencies - Third Party P,0090311173,SURECARE BARNET & BRENT,493.27,04/12/2020
Delivery Units,Adults and Health,Other Agencies - Third Party P,0090311174,SURECARE BARNET & BRENT,710.85,04/12/2020
Delivery Units,Adults and Health,Other Agencies - Third Party P,0090311175,SURECARE BARNET & BRENT,304.64,04/12/2020
Delivery Units,Adults and Health,Other Agencies - Third Party P,0090311177,SURECARE BARNET & BRENT,473.90,04/12/2020
Delivery Units,Adults and Health,Other Agencies - Third Party P,0090311178,SURECARE BARNET & BRENT,227.28,04/12/2020
Delivery Units,Adults and Health,Other Agencies - Third Party P,0090311179,SURECARE BARNET & BRENT,169.26,04/12/2020
Delivery Units,Adults and Health,Other Agencies - Third Party P,0090311180,SURECARE BARNET & BRENT,236.95,04/12/2020
Delivery Units,Adults and Health,Other Agencies - Third Party P,0090311181,SURECARE BARNET & BRENT,236.95,04/12/2020
Delivery Units,Adults and Health,Other Agencies - Third Party P,0090311182,SURECARE BARNET & BRENT,710.85,04/12/2020
Delivery Units,Adults and Health,Other Agencies - Third Party P,0090311184,SURECARE BARNET & BRENT,222.41,04/12/2020
Delivery Units,Adults and Health,Other Agencies - Third Party P,0090311186,SURECARE BARNET & BRENT,58.02,04/12/2020
Delivery Units,Adults and Health,Other Agencies - Third Party P,0090311187,SURECARE BARNET & BRENT,676.90,04/12/2020
Delivery Units,Adults and Health,Other Agencies - Third Party P,0090311189,SURECARE BARNET & BRENT,270.76,04/12/2020
Delivery Units,Adults and Health,Other Agencies - Third Party P,0090311190,SURECARE BARNET & BRENT,169.26,04/12/2020
Delivery Units,Adults and Health,Other Agencies - Third Party P,0090311192,SURECARE BARNET & BRENT,507.71,04/12/2020
Delivery Units,Adults and Health,Other Agencies - Third Party P,0090311193,SURECARE BARNET & BRENT,135.38,04/12/2020
Delivery Units,Adults and Health,Other Agencies - Third Party P,0090311194,SURECARE BARNET & BRENT,261.15,04/12/2020
Delivery Units,Adults and Health,Other Agencies - Third Party P,0090311195,SURECARE BARNET & BRENT,377.13,04/12/2020
Delivery Units,Adults and Health,Other Agencies - Third Party P,0090311196,SURECARE BARNET & BRENT,290.10,04/12/2020
Delivery Units,Adults and Health,Other Agencies - Third Party P,0090310269,HARTWIG CARE LIMITED,204.32,04/12/2020
Delivery Units,Adults and Health,Other Agencies - Third Party P,0090310271,HARTWIG CARE LIMITED,140.10,04/12/2020
Delivery Units,Adults and Health,Other Agencies - Third Party P,0090310272,HARTWIG CARE LIMITED,30.36,04/12/2020
Delivery Units,Adults and Health,Other Agencies - Third Party P,0090310273,HARTWIG CARE LIMITED,56.04,04/12/2020
Delivery Units,Adults and Health,Other Agencies - Third Party P,0090310274,HARTWIG CARE LIMITED,56.04,04/12/2020
Delivery Units,Adults and Health,Other Agencies - Third Party P,0090310644,CHURCHILL HEALTH CARE LTD,"2,124.18",04/12/2020
Delivery Units,Adults and Health,Other Agencies - Third Party P,0090310648,FOCUS CARE LINK LTD,"1,315.86",04/12/2020
Delivery Units,Adults and Health,Other Agencies - Third Party P,0090310649,FOCUS CARE LINK LTD,"3,400.00",04/12/2020
Delivery Units,Adults and Health,Other Agencies - Third Party P,0090310848,PRACTICAL CARE,311.85,04/12/2020
Delivery Units,Adults and Health,Other Agencies - Third Party P,0090310849,PRACTICAL CARE,601.43,04/12/2020
Delivery Units,Adults and Health,Other Agencies - Third Party P,0090310850,PRACTICAL CARE,363.83,04/12/2020
Delivery Units,Adults and Health,Other Agencies - Third Party P,0090310851,PRACTICAL CARE,77.96,04/12/2020
Delivery Units,Adults and Health,Other Agencies - Third Party P,0090310852,PRACTICAL CARE,623.70,04/12/2020
Delivery Units,Adults and Health,Other Agencies - Third Party P,0090310853,PRACTICAL CARE,196.76,04/12/2020
Delivery Units,Adults and Health,Other Agencies - Third Party P,0090310855,PRACTICAL CARE,378.68,04/12/2020
Delivery Units,Adults and Health,Other Agencies - Third Party P,0090310857,PRACTICAL CARE,233.89,04/12/2020
Delivery Units,Adults and Health,Other Agencies - Third Party P,0090310858,PRACTICAL CARE,300.71,04/12/2020
Delivery Units,Adults and Health,Other Agencies - Third Party P,0090310859,PRACTICAL CARE,181.91,04/12/2020
Delivery Units,Adults and Health,Other Agencies - Third Party P,0090310860,PRACTICAL CARE,549.45,04/12/2020
Delivery Units,Adults and Health,Other Agencies - Third Party P,0090310862,PRACTICAL CARE,259.88,04/12/2020
Delivery Units,Adults and Health,Other Agencies - Third Party P,0090310864,PRACTICAL CARE,207.90,04/12/2020
Delivery Units,Adults and Health,Other Agencies - Third Party P,0090310865,PRACTICAL CARE,289.58,04/12/2020
Delivery Units,Adults and Health,Other Agencies - Third Party P,0090310866,PRACTICAL CARE,371.25,04/12/2020
Delivery Units,Adults and Health,Other Agencies - Third Party P,0090310867,PRACTICAL CARE,311.85,04/12/2020
Delivery Units,Adults and Health,Other Agencies - Third Party P,0090310868,PRACTICAL CARE,749.93,04/12/2020
Delivery Units,Adults and Health,Other Agencies - Third Party P,0090310870,PRACTICAL CARE,675.68,04/12/2020
Delivery Units,Adults and Health,Other Agencies - Third Party P,0090310871,PRACTICAL CARE,259.88,04/12/2020
Delivery Units,Adults and Health,Other Agencies - Third Party P,0090310872,PRACTICAL CARE,259.88,04/12/2020
Delivery Units,Adults and Health,Other Agencies - Third Party P,0090310873,PRACTICAL CARE,519.75,04/12/2020
Delivery Units,Adults and Health,Other Agencies - Third Party P,0090310874,PRACTICAL CARE,571.73,04/12/2020
Delivery Units,Adults and Health,Other Agencies - Third Party P,0090310875,PRACTICAL CARE,207.90,04/12/2020
Delivery Units,Adults and Health,Other Agencies - Third Party P,0090310876,PRACTICAL CARE,638.55,04/12/2020
Delivery Units,Adults and Health,Other Agencies - Third Party P,0090310877,PRACTICAL CARE,363.83,04/12/2020
Delivery Units,Adults and Health,Other Agencies - Third Party P,0090310878,PRACTICAL CARE,341.55,04/12/2020
Delivery Units,Adults and Health,Other Agencies - Third Party P,0090310879,PRACTICAL CARE,233.89,04/12/2020
Delivery Units,Adults and Health,Other Agencies - Third Party P,0090310880,PRACTICAL CARE,126.23,04/12/2020
Delivery Units,Adults and Health,Other Agencies - Third Party P,0090310881,PRACTICAL CARE,181.91,04/12/2020
Delivery Units,Adults and Health,Other Agencies - Third Party P,0090310884,PRACTICAL CARE,181.91,04/12/2020
Delivery Units,Adults and Health,Other Agencies - Third Party P,0090310885,PRACTICAL CARE,467.78,04/12/2020
Delivery Units,Adults and Health,Other Agencies - Third Party P,0090310886,PRACTICAL CARE,22.28,04/12/2020
Delivery Units,Adults and Health,Other Agencies - Third Party P,0090310887,PRACTICAL CARE,467.78,04/12/2020
Delivery Units,Adults and Health,Other Agencies - Third Party P,0090310888,PRACTICAL CARE,285.86,04/12/2020
Delivery Units,Adults and Health,Other Agencies - Third Party P,0090310889,PRACTICAL CARE,753.64,04/12/2020
Delivery Units,Adults and Health,Other Agencies - Third Party P,0090310890,PRACTICAL CARE,675.68,04/12/2020
Delivery Units,Adults and Health,Other Agencies - Third Party P,0090310891,PRACTICAL CARE,51.98,04/12/2020
Delivery Units,Adults and Health,Other Agencies - Third Party P,0090310892,PRACTICAL CARE,233.89,04/12/2020
Delivery Units,Adults and Health,Other Agencies - Third Party P,0090310893,PRACTICAL CARE,623.70,04/12/2020
Delivery Units,Adults and Health,Other Agencies - Third Party P,0090310894,PRACTICAL CARE,204.19,04/12/2020
Delivery Units,Adults and Health,Other Agencies - Third Party P,0090310895,PRACTICAL CARE,675.68,04/12/2020
Delivery Units,Adults and Health,Other Agencies - Third Party P,0090310896,PRACTICAL CARE,181.91,04/12/2020
Delivery Units,Adults and Health,Other Agencies - Third Party P,0090310897,PRACTICAL CARE,207.90,04/12/2020
Delivery Units,Adults and Health,Other Agencies - Third Party P,0090311081,OASIS CARE & TRAINING AGENCY,25.96,04/12/2020
Delivery Units,Adults and Health,Other Agencies - Third Party P,0090311083,OASIS CARE & TRAINING AGENCY,657.46,04/12/2020
Delivery Units,Adults and Health,Other Agencies - Third Party P,0090311084,OASIS CARE & TRAINING AGENCY,302.82,04/12/2020
Delivery Units,Adults and Health,Other Agencies - Third Party P,0090311086,OASIS CARE & TRAINING AGENCY,211.96,04/12/2020
Delivery Units,Adults and Health,Other Agencies - Third Party P,0090311089,OASIS CARE & TRAINING AGENCY,25.96,04/12/2020
Delivery Units,Adults and Health,Other Agencies - Third Party P,0090311091,OASIS CARE & TRAINING AGENCY,666.12,04/12/2020
Delivery Units,Adults and Health,Other Agencies - Third Party P,0090311092,OASIS CARE & TRAINING AGENCY,302.82,04/12/2020
Delivery Units,Adults and Health,Other Agencies - Third Party P,0090311094,OASIS CARE & TRAINING AGENCY,211.96,04/12/2020
Delivery Units,Adults and Health,Other Agencies - Third Party P,1004954202,ENARA COMMUNITY CARE,"2,546.60",04/12/2020
Delivery Units,Adults and Health,Other Agencies - Third Party P,0090311204,THAMES HOMECARE SERVICES LTD,528.64,07/12/2020
Delivery Units,Adults and Health,Other Agencies - Third Party P,0090311205,THAMES HOMECARE SERVICES LTD,587.44,07/12/2020
Delivery Units,Adults and Health,Other Agencies - Third Party P,0090311207,THAMES HOMECARE SERVICES LTD,352.45,07/12/2020
Delivery Units,Adults and Health,Other Agencies - Third Party P,0090311208,THAMES HOMECARE SERVICES LTD,205.59,07/12/2020
Delivery Units,Adults and Health,Other Agencies - Third Party P,0090311210,THAMES HOMECARE SERVICES LTD,176.19,07/12/2020
Delivery Units,Adults and Health,Other Agencies - Third Party P,0090311211,THAMES HOMECARE SERVICES LTD,587.30,07/12/2020
Delivery Units,Adults and Health,Other Agencies - Third Party P,0090311212,THAMES HOMECARE SERVICES LTD,37.76,07/12/2020
Delivery Units,Adults and Health,Other Agencies - Third Party P,0090311213,THAMES HOMECARE SERVICES LTD,251.70,07/12/2020
Delivery Units,Adults and Health,Other Agencies - Third Party P,0090311215,THAMES HOMECARE SERVICES LTD,671.20,07/12/2020
Delivery Units,Adults and Health,Other Agencies - Third Party P,0090311217,THAMES HOMECARE SERVICES LTD,352.52,07/12/2020
Delivery Units,Adults and Health,Other Agencies - Third Party P,0090311218,THAMES HOMECARE SERVICES LTD,264.32,07/12/2020
Delivery Units,Adults and Health,Other Agencies - Third Party P,0090311219,THAMES HOMECARE SERVICES LTD,264.32,07/12/2020
Delivery Units,Adults and Health,Other Agencies - Third Party P,0090311220,THAMES HOMECARE SERVICES LTD,763.70,07/12/2020
Delivery Units,Adults and Health,Other Agencies - Third Party P,0090311221,THAMES HOMECARE SERVICES LTD,679.80,07/12/2020
Delivery Units,Adults and Health,Other Agencies - Third Party P,0090311223,THAMES HOMECARE SERVICES LTD,281.10,07/12/2020
Delivery Units,Adults and Health,Other Agencies - Third Party P,0090311224,THAMES HOMECARE SERVICES LTD,302.08,07/12/2020
Delivery Units,Adults and Health,Other Agencies - Third Party P,0090311226,THAMES HOMECARE SERVICES LTD,369.16,07/12/2020
Delivery Units,Adults and Health,Other Agencies - Third Party P,0090311227,THAMES HOMECARE SERVICES LTD,205.59,07/12/2020
Delivery Units,Adults and Health,Other Agencies - Third Party P,0090311228,THAMES HOMECARE SERVICES LTD,117.46,07/12/2020
Delivery Units,Adults and Health,Other Agencies - Third Party P,0090311229,THAMES HOMECARE SERVICES LTD,142.63,07/12/2020
Delivery Units,Adults and Health,Other Agencies - Third Party P,0090311230,THAMES HOMECARE SERVICES LTD,234.92,07/12/2020
Delivery Units,Adults and Health,Other Agencies - Third Party P,0090311231,THAMES HOMECARE SERVICES LTD,264.32,07/12/2020
Delivery Units,Adults and Health,Other Agencies - Third Party P,0090311232,THAMES HOMECARE SERVICES LTD,419.50,07/12/2020
Delivery Units,Adults and Health,Other Agencies - Third Party P,0090311233,THAMES HOMECARE SERVICES LTD,54.54,07/12/2020
Delivery Units,Adults and Health,Other Agencies - Third Party P,0090311234,THAMES HOMECARE SERVICES LTD,780.27,07/12/2020
Delivery Units,Adults and Health,Other Agencies - Third Party P,0090311235,THAMES HOMECARE SERVICES LTD,381.85,07/12/2020
Delivery Units,Adults and Health,Other Agencies - Third Party P,0090311236,THAMES HOMECARE SERVICES LTD,381.78,07/12/2020
Delivery Units,Adults and Health,Other Agencies - Third Party P,0090311237,THAMES HOMECARE SERVICES LTD,323.05,07/12/2020
Delivery Units,Adults and Health,Other Agencies - Third Party P,0090311238,THAMES HOMECARE SERVICES LTD,117.46,07/12/2020
Delivery Units,Adults and Health,Other Agencies - Third Party P,0090311239,THAMES HOMECARE SERVICES LTD,117.46,07/12/2020
Delivery Units,Adults and Health,Other Agencies - Third Party P,0090311241,THAMES HOMECARE SERVICES LTD,138.44,07/12/2020
Delivery Units,Adults and Health,Other Agencies - Third Party P,0090311242,THAMES HOMECARE SERVICES LTD,704.83,07/12/2020
Delivery Units,Adults and Health,Other Agencies - Third Party P,0090311243,THAMES HOMECARE SERVICES LTD,146.86,07/12/2020
Delivery Units,Adults and Health,Other Agencies - Third Party P,0090311244,THAMES HOMECARE SERVICES LTD,587.44,07/12/2020
Delivery Units,Adults and Health,Other Agencies - Third Party P,0090311245,THAMES HOMECARE SERVICES LTD,88.13,07/12/2020
Delivery Units,Adults and Health,Other Agencies - Third Party P,0090311246,THAMES HOMECARE SERVICES LTD,293.65,07/12/2020
Delivery Units,Adults and Health,Other Agencies - Third Party P,0090311247,THAMES HOMECARE SERVICES LTD,763.70,07/12/2020
Delivery Units,Adults and Health,Other Agencies - Third Party P,0090311248,THAMES HOMECARE SERVICES LTD,293.72,07/12/2020
Delivery Units,Adults and Health,Other Agencies - Third Party P,0090311249,THAMES HOMECARE SERVICES LTD,264.32,07/12/2020
Delivery Units,Adults and Health,Other Agencies - Third Party P,0090311250,THAMES HOMECARE SERVICES LTD,276.91,07/12/2020
Delivery Units,Adults and Health,Other Agencies - Third Party P,0090311251,THAMES HOMECARE SERVICES LTD,469.84,07/12/2020
Delivery Units,Adults and Health,Other Agencies - Third Party P,0090311252,THAMES HOMECARE SERVICES LTD,705.04,07/12/2020
Delivery Units,Adults and Health,Other Agencies - Third Party P,0090311253,THAMES HOMECARE SERVICES LTD,704.90,07/12/2020
Delivery Units,Adults and Health,Other Agencies - Third Party P,0090311255,THAMES HOMECARE SERVICES LTD,587.30,07/12/2020
Delivery Units,Adults and Health,Other Agencies - Third Party P,0090311256,THAMES HOMECARE SERVICES LTD,528.64,07/12/2020
Delivery Units,Adults and Health,Other Agencies - Third Party P,0090311257,THAMES HOMECARE SERVICES LTD,469.98,07/12/2020
Delivery Units,Adults and Health,Other Agencies - Third Party P,0090311259,THAMES HOMECARE SERVICES LTD,675.50,07/12/2020
Delivery Units,Adults and Health,Other Agencies - Third Party P,0090311260,THAMES HOMECARE SERVICES LTD,293.65,07/12/2020
Delivery Units,Adults and Health,Other Agencies - Third Party P,0090311262,THAMES HOMECARE SERVICES LTD,88.10,07/12/2020
Delivery Units,Adults and Health,Other Agencies - Third Party P,0090311264,THAMES HOMECARE SERVICES LTD,117.46,07/12/2020
Delivery Units,Adults and Health,Other Agencies - Third Party P,0090311265,THAMES HOMECARE SERVICES LTD,146.86,07/12/2020
Delivery Units,Adults and Health,Other Agencies - Third Party P,0090311268,THAMES HOMECARE SERVICES LTD,146.86,07/12/2020
Delivery Units,Adults and Health,Other Agencies - Third Party P,0090311269,THAMES HOMECARE SERVICES LTD,620.93,07/12/2020
Delivery Units,Adults and Health,Other Agencies - Third Party P,0090311270,THAMES HOMECARE SERVICES LTD,587.30,07/12/2020
Delivery Units,Adults and Health,Other Agencies - Third Party P,0090311273,THAMES HOMECARE SERVICES LTD,763.56,07/12/2020
Delivery Units,Adults and Health,Other Agencies - Third Party P,0090311274,THAMES HOMECARE SERVICES LTD,251.70,07/12/2020
Delivery Units,Adults and Health,Other Agencies - Third Party P,0090311275,THAMES HOMECARE SERVICES LTD,213.98,07/12/2020
Delivery Units,Adults and Health,Other Agencies - Third Party P,0090311276,THAMES HOMECARE SERVICES LTD,704.76,07/12/2020
Delivery Units,Adults and Health,Other Agencies - Third Party P,0090311277,THAMES HOMECARE SERVICES LTD,88.10,07/12/2020
